Department Family,Entity,Date,Expense Type,Expense Area,Supplier,Transaction Number,Amount,Description
Department for Education,DEPARTMENT FOR EDUCATION,01/09/2017,Communications,Communications Group,CABINET OFFICE,1041008212,40000,"Publicity, advertising, media advertising campaigns (excluding recruitment adverts)"
Department for Education,DEPARTMENT FOR EDUCATION,22/09/2017,Communications,Government Equalities Office,CADENCE PARTNERSHIP LLP,1041010431,86100,"Publicity, advertising, media advertising campaigns (excluding recruitment adverts)"
Department for Education,NATIONAL COLLEGE FOR TEACHING & LEADERSHIP,01/09/2017,Communications,Delivery Directorate,CARAT,1041008176,21079.93,"Publicity, advertising, media advertising campaigns (excluding recruitment adverts)"
Department for Education,NATIONAL COLLEGE FOR TEACHING & LEADERSHIP,04/09/2017,Communications,Operations Directorate,CARAT,1041008574,107746.15,"Publicity, advertising, media advertising campaigns (excluding recruitment adverts)"
Department for Education,NATIONAL COLLEGE FOR TEACHING & LEADERSHIP,04/09/2017,Communications,Operations Directorate,CARAT,1041008574,21528.94,"Publicity, advertising, media advertising campaigns (excluding recruitment adverts)"
Department for Education,NATIONAL COLLEGE FOR TEACHING & LEADERSHIP,04/09/2017,Communications,Operations Directorate,CARAT,1041008574,57425.45,"Publicity, advertising, media advertising campaigns (excluding recruitment adverts)"
Department for Education,NATIONAL COLLEGE FOR TEACHING & LEADERSHIP,04/09/2017,Communications,Operations Directorate,CARAT,1041008574,11474.77,"Publicity, advertising, media advertising campaigns (excluding recruitment adverts)"
Department for Education,NATIONAL COLLEGE FOR TEACHING & LEADERSHIP,04/09/2017,Communications,Operations Directorate,CARAT,1041008574,126949.37,"Publicity, advertising, media advertising campaigns (excluding recruitment adverts)"
Department for Education,NATIONAL COLLEGE FOR TEACHING & LEADERSHIP,04/09/2017,Communications,Operations Directorate,CARAT,1041008574,207183.68,"Publicity, advertising, media advertising campaigns (excluding recruitment adverts)"
Department for Education,NATIONAL COLLEGE FOR TEACHING & LEADERSHIP,04/09/2017,Communications,Operations Directorate,CARAT,1041008574,31632.37,"Publicity, advertising, media advertising campaigns (excluding recruitment adverts)"
Department for Education,NATIONAL COLLEGE FOR TEACHING & LEADERSHIP,04/09/2017,Communications,Operations Directorate,CARAT,1041008574,74340.35,"Publicity, advertising, media advertising campaigns (excluding recruitment adverts)"
Department for Education,NATIONAL COLLEGE FOR TEACHING & LEADERSHIP,20/09/2017,Communications,Operations Directorate,CARAT,1041010127,-33712.86,"Publicity, advertising, media advertising campaigns (excluding recruitment adverts)"
Department for Education,NATIONAL COLLEGE FOR TEACHING & LEADERSHIP,20/09/2017,Communications,Operations Directorate,CARAT,1041010127,32383.94,"Publicity, advertising, media advertising campaigns (excluding recruitment adverts)"
Department for Education,NATIONAL COLLEGE FOR TEACHING & LEADERSHIP,20/09/2017,Communications,Operations Directorate,CARAT,1041010127,-6736.22,"Publicity, advertising, media advertising campaigns (excluding recruitment adverts)"
Department for Education,NATIONAL COLLEGE FOR TEACHING & LEADERSHIP,20/09/2017,Communications,Operations Directorate,CARAT,1041010127,6470.69,"Publicity, advertising, media advertising campaigns (excluding recruitment adverts)"
Department for Education,DEPARTMENT FOR EDUCATION,20/09/2017,Communications,Communications Group,CARAT,1041010127,23958.13,"Publicity, advertising, media advertising campaigns (excluding recruitment adverts)"
Department for Education,NATIONAL COLLEGE FOR TEACHING & LEADERSHIP,26/09/2017,Communications,Operations Directorate,CARAT,1041010634,20976.31,"Publicity, advertising, media advertising campaigns (excluding recruitment adverts)"
Department for Education,NATIONAL COLLEGE FOR TEACHING & LEADERSHIP,26/09/2017,Communications,Operations Directorate,CARAT,1041010634,4191.72,"Publicity, advertising, media advertising campaigns (excluding recruitment adverts)"
Department for Education,NATIONAL COLLEGE FOR TEACHING & LEADERSHIP,04/09/2017,Communications,Operations Directorate,INFERNO LTD,1041008588,60592.22,"Publicity, advertising, media advertising campaigns (excluding recruitment adverts)"
Department for Education,DEPARTMENT FOR EDUCATION,22/09/2017,Communications,Government Equalities Office,PORTLAND PR LTD,1041010423,-43971.42,Marketing services
Department for Education,DEPARTMENT FOR EDUCATION,22/09/2017,Communications,Government Equalities Office,PORTLAND PR LTD,1041010423,43971.42,Marketing services
Department for Education,DEPARTMENT FOR EDUCATION,22/09/2017,Communications,Government Equalities Office,PORTLAND PR LTD,1041010423,44411.13,Marketing services
Department for Education,DEPARTMENT FOR EDUCATION,22/09/2017,Communications,Government Equalities Office,PORTLAND PR LTD,1041010423,-8794.28,Marketing services
Department for Education,DEPARTMENT FOR EDUCATION,22/09/2017,Communications,Government Equalities Office,PORTLAND PR LTD,1041010423,8794.28,Marketing services
Department for Education,DEPARTMENT FOR EDUCATION,22/09/2017,Communications,Government Equalities Office,PORTLAND PR LTD,1041010423,8882.22,Marketing services
Department for Education,NATIONAL COLLEGE FOR TEACHING & LEADERSHIP,07/09/2017,Communications,Operations Directorate,SPEAKEASY PRODUCTIONS LTD,1041008900,115000,"Publicity, advertising, media advertising campaigns (excluding recruitment adverts)"
Department for Education,DEPARTMENT FOR EDUCATION,28/09/2017,Energy and Fuels,Property Asset Management Group,EDF ENERGY,1041010960,194800,Electricity supply
Department for Education,DEPARTMENT FOR EDUCATION,12/09/2017,Facilities,Property Asset Management Group,ACTIVE FACILITIES MANAGEMENT LTD,1041009251,75945.15,Property management
Department for Education,DEPARTMENT FOR EDUCATION,12/09/2017,Facilities,Property Asset Management Group,ACTIVE FACILITIES MANAGEMENT LTD,1041009251,15189.03,Property management
Department for Education,DEPARTMENT FOR EDUCATION,13/09/2017,Facilities,Property Asset Management Group,ACTIVE FACILITIES MANAGEMENT LTD,1041009307,99338.9,Property management
Department for Education,DEPARTMENT FOR EDUCATION,13/09/2017,Facilities,Property Asset Management Group,ACTIVE FACILITIES MANAGEMENT LTD,1041009307,19867.78,Property management
Department for Education,DEPARTMENT FOR EDUCATION,19/09/2017,Facilities,Property Asset Management Group,AMEY,1041009929,37941.85,Property management
Department for Education,DEPARTMENT FOR EDUCATION,19/09/2017,Facilities,Property Asset Management Group,AMEY,1041009929,7588.37,Property management
Department for Education,DEPARTMENT FOR EDUCATION,28/09/2017,Facilities,Property Asset Management Group,AMEY,1041010870,30802.75,Property management
Department for Education,DEPARTMENT FOR EDUCATION,13/09/2017,Facilities,Digital and Technology Group,CADENCE PARTNERSHIP LLP,1041009336,32184,"Maintenance, repair and cleaning including of equipment"
Department for Education,DEPARTMENT FOR EDUCATION,18/09/2017,Facilities,Digital and Technology Group,CAPGEMINI UK PLC,1041009800,180177.2,"Maintenance, repair and cleaning including of equipment"
Department for Education,DEPARTMENT FOR EDUCATION,15/09/2017,Facilities,Property Asset Management Group,DECC,1041009748,73065.6,Non specified facilities related expenditure
Department for Education,DEPARTMENT FOR EDUCATION,14/09/2017,Facilities,Property Asset Management Group,DEPARTMENT OF ENERGY & CLIMATE CHANGE,30000082,46508.8,Non specified facilities related expenditure
Department for Education,DEPARTMENT FOR EDUCATION,05/09/2017,Facilities,International Education Group,DTZ DEBENHAM TIE LEUNG,1041008649,37627.43,Property management
Department for Education,DEPARTMENT FOR EDUCATION,05/09/2017,Facilities,International Education Group,DTZ DEBENHAM TIE LEUNG,1041008649,7525.49,Property management
Department for Education,DEPARTMENT FOR EDUCATION,06/09/2017,Facilities,Property Asset Management Group,ENGIE SERVICES LTD,1041008766,603630.07,"Fees / expenses of professionals such as auditors, accountants, lawyers, etc. engaged to provide advice or opinion on how to affect something"
Department for Education,DEPARTMENT FOR EDUCATION,06/09/2017,Facilities,Property Asset Management Group,ENGIE SERVICES LTD,1041008766,120726.01,"Fees / expenses of professionals such as auditors, accountants, lawyers, etc. engaged to provide advice or opinion on how to affect something"
Department for Education,DEPARTMENT FOR EDUCATION,15/09/2017,Facilities,Property Asset Management Group,GVA GRIMLEY LTD,1041009747,144568.94,Rent
Department for Education,DEPARTMENT FOR EDUCATION,15/09/2017,Facilities,Property Asset Management Group,GVA GRIMLEY LTD,1041009747,3275592.93,Rent
Department for Education,DEPARTMENT FOR EDUCATION,25/09/2017,Facilities,Property Asset Management Group,GVA GRIMLEY LTD,1041010469,485326,Business rates
Department for Education,DEPARTMENT FOR EDUCATION,15/09/2017,Facilities,Property Asset Management Group,GVA GRIMLEY LTD DCLG,1041009736,1091962.5,Rent
Department for Education,DEPARTMENT FOR EDUCATION,15/09/2017,Facilities,Property Asset Management Group,GVA GRIMLEY LTD DCLG,1041009736,4883282.37,Rent
Department for Education,DEPARTMENT FOR EDUCATION,22/09/2017,Facilities,Property Asset Management Group,GVA GRIMLEY LTD DCLG,1041010430,1603786.78,Rent
Department for Education,DEPARTMENT FOR EDUCATION,25/09/2017,Facilities,Property Asset Management Group,GVA GRIMLEY LTD DCLG,1041010453,373046,Business rates
Department for Education,DEPARTMENT FOR EDUCATION,25/09/2017,Facilities,Property Asset Management Group,GVA GRIMLEY LTD DCLG,1041010453,656344.35,Business rates
Department for Education,DEPARTMENT FOR EDUCATION,07/09/2017,Facilities,Digital and Technology Group,INSIGHT DIRECT UK LIMITED,1041008821,57426.6,"Maintenance, repair and cleaning including of equipment"
Department for Education,DEPARTMENT FOR EDUCATION,13/09/2017,Facilities,Digital and Technology Group,INSIGHT DIRECT UK LIMITED,1041009487,30113.6,"Maintenance, repair and cleaning including of equipment"
Department for Education,DEPARTMENT FOR EDUCATION,01/09/2017,Facilities,Property Asset Management Group,INTERSERVE FACILITIES MANAGEMENT LTD,1041008177,23293.39,Property management
Department for Education,DEPARTMENT FOR EDUCATION,01/09/2017,Facilities,Property Asset Management Group,INTERSERVE FACILITIES MANAGEMENT LTD,1041008177,104376.63,Property management
Department for Education,DEPARTMENT FOR EDUCATION,01/09/2017,Facilities,Property Asset Management Group,INTERSERVE FACILITIES MANAGEMENT LTD,1041008177,256996.65,Property management
Department for Education,DEPARTMENT FOR EDUCATION,01/09/2017,Facilities,Property Asset Management Group,INTERSERVE FACILITIES MANAGEMENT LTD,1041008177,4658.68,Property management
Department for Education,DEPARTMENT FOR EDUCATION,01/09/2017,Facilities,Property Asset Management Group,INTERSERVE FACILITIES MANAGEMENT LTD,1041008177,20875.33,Property management
Department for Education,DEPARTMENT FOR EDUCATION,01/09/2017,Facilities,Property Asset Management Group,INTERSERVE FACILITIES MANAGEMENT LTD,1041008177,51399.33,Property management
Department for Education,DEPARTMENT FOR EDUCATION,01/09/2017,Facilities,Property Asset Management Group,INTERSERVE FACILITIES MANAGEMENT LTD,1041008177,175551.65,Property management
Department for Education,DEPARTMENT FOR EDUCATION,01/09/2017,Facilities,Property Asset Management Group,INTERSERVE FACILITIES MANAGEMENT LTD,1041008177,35110.33,Property management
Department for Education,DEPARTMENT FOR EDUCATION,01/09/2017,Facilities,Property Asset Management Group,INTERSERVE FACILITIES MANAGEMENT LTD,1041008242,99367.33,Property management
Department for Education,DEPARTMENT FOR EDUCATION,01/09/2017,Facilities,Property Asset Management Group,INTERSERVE FACILITIES MANAGEMENT LTD,1041008242,132856.41,Property management
Department for Education,DEPARTMENT FOR EDUCATION,01/09/2017,Facilities,Property Asset Management Group,INTERSERVE FACILITIES MANAGEMENT LTD,1041008242,19873.47,Property management
Department for Education,DEPARTMENT FOR EDUCATION,01/09/2017,Facilities,Property Asset Management Group,INTERSERVE FACILITIES MANAGEMENT LTD,1041008242,26571.28,Property management
Department for Education,DEPARTMENT FOR EDUCATION,06/09/2017,Facilities,Property Asset Management Group,INTERSERVE FACILITIES MANAGEMENT LTD,1041008776,23364.07,Property management
Department for Education,DEPARTMENT FOR EDUCATION,06/09/2017,Facilities,Property Asset Management Group,INTERSERVE FACILITIES MANAGEMENT LTD,1041008776,4672.81,Property management
Department for Education,DEPARTMENT FOR EDUCATION,07/09/2017,Facilities,Property Asset Management Group,INTERSERVE FACILITIES MANAGEMENT LTD,1041008902,547836.11,Property management
Department for Education,DEPARTMENT FOR EDUCATION,07/09/2017,Facilities,Property Asset Management Group,INTERSERVE FACILITIES MANAGEMENT LTD,1041008902,109567.22,Property management
Department for Education,DEPARTMENT FOR EDUCATION,13/09/2017,Facilities,Property Asset Management Group,INTERSERVE FACILITIES MANAGEMENT LTD,1041009391,213491.53,Property management
Department for Education,DEPARTMENT FOR EDUCATION,13/09/2017,Facilities,Property Asset Management Group,INTERSERVE FACILITIES MANAGEMENT LTD,1041009391,42698.31,Property management
Department for Education,DEPARTMENT FOR EDUCATION,13/09/2017,Facilities,Property Asset Management Group,INTERSERVE FACILITIES MANAGEMENT LTD,1041009391,216544.73,Property management
Department for Education,DEPARTMENT FOR EDUCATION,13/09/2017,Facilities,Property Asset Management Group,INTERSERVE FACILITIES MANAGEMENT LTD,1041009391,43308.95,Property management
Department for Education,DEPARTMENT FOR EDUCATION,26/09/2017,Facilities,Property Asset Management Group,INTERSERVE FACILITIES MANAGEMENT LTD,1041010636,22869.19,Property management
Department for Education,DEPARTMENT FOR EDUCATION,26/09/2017,Facilities,Property Asset Management Group,INTERSERVE FACILITIES MANAGEMENT LTD,1041010636,112018.3,Property management
Department for Education,DEPARTMENT FOR EDUCATION,26/09/2017,Facilities,Property Asset Management Group,INTERSERVE FACILITIES MANAGEMENT LTD,1041010636,256635.18,Property management
Department for Education,DEPARTMENT FOR EDUCATION,26/09/2017,Facilities,Property Asset Management Group,INTERSERVE FACILITIES MANAGEMENT LTD,1041010636,4573.84,Property management
Department for Education,DEPARTMENT FOR EDUCATION,26/09/2017,Facilities,Property Asset Management Group,INTERSERVE FACILITIES MANAGEMENT LTD,1041010636,22403.66,Property management
Department for Education,DEPARTMENT FOR EDUCATION,26/09/2017,Facilities,Property Asset Management Group,INTERSERVE FACILITIES MANAGEMENT LTD,1041010636,51327.04,Property management
Department for Education,DEPARTMENT FOR EDUCATION,27/09/2017,Facilities,Property Asset Management Group,INTERSERVE FACILITIES MANAGEMENT LTD,1041010765,175551.65,Property management
Department for Education,DEPARTMENT FOR EDUCATION,27/09/2017,Facilities,Property Asset Management Group,INTERSERVE FACILITIES MANAGEMENT LTD,1041010765,35110.33,Property management
Department for Education,DEPARTMENT FOR EDUCATION,27/09/2017,Facilities,Property Asset Management Group,INTERSERVE FACILITIES MANAGEMENT LTD,1041010804,99367.33,Property management
Department for Education,DEPARTMENT FOR EDUCATION,27/09/2017,Facilities,Property Asset Management Group,INTERSERVE FACILITIES MANAGEMENT LTD,1041010804,132603.23,Property management
Department for Education,DEPARTMENT FOR EDUCATION,27/09/2017,Facilities,Property Asset Management Group,INTERSERVE FACILITIES MANAGEMENT LTD,1041010804,19873.47,Property management
Department for Education,DEPARTMENT FOR EDUCATION,27/09/2017,Facilities,Property Asset Management Group,INTERSERVE FACILITIES MANAGEMENT LTD,1041010804,26520.65,Property management
Department for Education,DEPARTMENT FOR EDUCATION,18/09/2017,Facilities,Digital and Technology Group,LEIDOS INNOVATIONS UK LTD,1041009834,26916.1,"Maintenance, repair and cleaning including of equipment"
Department for Education,DEPARTMENT FOR EDUCATION,18/09/2017,Facilities,Digital and Technology Group,LEIDOS INNOVATIONS UK LTD,1041009834,26916.1,"Maintenance, repair and cleaning including of equipment"
Department for Education,DEPARTMENT FOR EDUCATION,14/09/2017,Facilities,Property Asset Management Group,WILLMOTT DIXON CONSTRUCTION LTD,1041009620,468852.8,purchase of capital expense e.g. furniture
Department for Education,DEPARTMENT FOR EDUCATION,14/09/2017,Facilities,Property Asset Management Group,WILLMOTT DIXON CONSTRUCTION LTD,1041009620,1635662.3,purchase of capital expense e.g. furniture
Department for Education,DEPARTMENT FOR EDUCATION,14/09/2017,Facilities,Property Asset Management Group,WILLMOTT DIXON CONSTRUCTION LTD,1041009620,93770.56,purchase of capital expense e.g. furniture
Department for Education,DEPARTMENT FOR EDUCATION,14/09/2017,Facilities,Property Asset Management Group,WILLMOTT DIXON CONSTRUCTION LTD,1041009620,327132.46,purchase of capital expense e.g. furniture
Department for Education,DEPARTMENT FOR EDUCATION,12/09/2017,Facilities,Property Asset Management Group,WILLMOTT DIXON INTERIORS LTD,1041009222,50875,purchase of capital expense e.g. furniture
Department for Education,DEPARTMENT FOR EDUCATION,12/09/2017,Facilities,Property Asset Management Group,WILLMOTT DIXON INTERIORS LTD,1041009222,10175,purchase of capital expense e.g. furniture
Department for Education,DEPARTMENT FOR EDUCATION,05/09/2017,Grants,Student Finance and Analysis Group,A SKIPP,10000286,29500,Capital grants paid to a private sector organisation
Department for Education,NATIONAL COLLEGE FOR TEACHING & LEADERSHIP,04/09/2017,Grants,Operations Directorate,ALBAN FEDERATION,1041008489,33131.97,Grants to educational establishments or not for profit organisations including other businesses
Department for Education,DEPARTMENT FOR EDUCATION,14/09/2017,Grants,Free Schools Group,ANGLIAN LEARNING,1041009618,30000,Grants to educational establishments or not for profit organisations including other businesses
Department for Education,DEPARTMENT FOR EDUCATION,28/09/2017,Grants,Academies Regional Delivery Group,ANGLIAN LEARNING,1041010940,25000,Grants to educational establishments or not for profit organisations including other businesses
Department for Education,DEPARTMENT FOR EDUCATION,28/09/2017,Grants,Academies Regional Delivery Group,ANGLIAN LEARNING,1041010940,25000,Grants to educational establishments or not for profit organisations including other businesses
Department for Education,DEPARTMENT FOR EDUCATION,28/09/2017,Grants,Academies Regional Delivery Group,ANGLIAN LEARNING,1041010940,25000,Grants to educational establishments or not for profit organisations including other businesses
Department for Education,NATIONAL COLLEGE FOR TEACHING & LEADERSHIP,12/09/2017,Grants,Delivery Directorate,ANTON JUNIOR SCHOOL,1041009257,40000,Grants to educational establishments or not for profit organisations including other businesses
Department for Education,NATIONAL COLLEGE FOR TEACHING & LEADERSHIP,04/09/2017,Grants,Operations Directorate,ARK SCHOOLS,1041008275,28932.3,Grants to educational establishments or not for profit organisations including other businesses
Department for Education,NATIONAL COLLEGE FOR TEACHING & LEADERSHIP,26/09/2017,Grants,Delivery Directorate,ARTHUR MELLOWS VILLAGE COLLEGE,1041010571,50000,Grants to educational establishments or not for profit organisations including other businesses
Department for Education,NATIONAL COLLEGE FOR TEACHING & LEADERSHIP,04/09/2017,Grants,Delivery Directorate,ASH GROVE ACADEMY,1041008319,40000,Grants to educational establishments or not for profit organisations including other businesses
Department for Education,NATIONAL COLLEGE FOR TEACHING & LEADERSHIP,12/09/2017,Grants,Delivery Directorate,ASKWITH COMMUNITY PRIMARY SCHOOL,1041009115,40000,Grants to educational establishments or not for profit organisations including other businesses
Department for Education,DEPARTMENT FOR EDUCATION,05/09/2017,Grants,Academies Regional Delivery Group,ASPIRATIONS ACADEMIES TRUST,1041008662,150000,Grants to educational establishments or not for profit organisations including other businesses
Department for Education,DEPARTMENT FOR EDUCATION,13/09/2017,Grants,Academies Regional Delivery Group,ASTON COMMUNITY EDUCATION TRUST,1041009288,45000,Grants to educational establishments or not for profit organisations including other businesses
Department for Education,NATIONAL COLLEGE FOR TEACHING & LEADERSHIP,04/09/2017,Grants,Operations Directorate,ASTRA SCITT,1041008331,50620.41,Grants to educational establishments or not for profit organisations including other businesses
Department for Education,DEPARTMENT FOR EDUCATION,12/09/2017,Grants,System Reform Group,BABCOCK 4S LTD,1041009114,41360,Grants to educational establishments or not for profit organisations including other businesses
Department for Education,NATIONAL COLLEGE FOR TEACHING & LEADERSHIP,12/09/2017,Grants,Delivery Directorate,BALCARRAS SCHOOL,1041009145,40000,Grants to educational establishments or not for profit organisations including other businesses
Department for Education,NATIONAL COLLEGE FOR TEACHING & LEADERSHIP,04/09/2017,Grants,Operations Directorate,BARR BEACON SCITT,1041008314,73625.13,Grants to educational establishments or not for profit organisations including other businesses
Department for Education,NATIONAL COLLEGE FOR TEACHING & LEADERSHIP,12/09/2017,Grants,Delivery Directorate,BARROW CEVCP SCHOOL TS ACCOUNT,1041009217,40000,Grants to educational establishments or not for profit organisations including other businesses
Department for Education,DEPARTMENT FOR EDUCATION,13/09/2017,Grants,Academies Regional Delivery Group,BATH & WELLS MULTI ACADEMY TRUST,1041009451,70000,Grants to educational establishments or not for profit organisations including other businesses
Department for Education,NATIONAL COLLEGE FOR TEACHING & LEADERSHIP,04/09/2017,Grants,Operations Directorate,BATH SPA UNIVERSITY,1041008488,163494.36,Grants to educational establishments or not for profit organisations including other businesses
Department for Education,DEPARTMENT FOR EDUCATION,05/09/2017,Grants,Academies Regional Delivery Group,BATLEY MULTI ACADEMY TRUST,1041008641,70000,Grants to educational establishments or not for profit organisations including other businesses
Department for Education,NATIONAL COLLEGE FOR TEACHING & LEADERSHIP,19/09/2017,Grants,Delivery Directorate,BEAL MULTI ACADEMY TRUST,1041010034,40000,Grants to educational establishments or not for profit organisations including other businesses
Department for Education,DEPARTMENT FOR EDUCATION,04/09/2017,Grants,Academies Regional Delivery Group,BEAUCHAMP COLLEGE,1041008364,80000,Grants to educational establishments or not for profit organisations including other businesses
Department for Education,DEPARTMENT FOR EDUCATION,22/09/2017,Grants,Free Schools Group,BEDFORD & KEMPSTON FREE SCHOOL TRUST,1041010353,30000,Grants to educational establishments or not for profit organisations including other businesses
Department for Education,NATIONAL COLLEGE FOR TEACHING & LEADERSHIP,04/09/2017,Grants,Delivery Directorate,BEECHWOOD JUNIOR SCHOOL,1041008473,60000,Grants to educational establishments or not for profit organisations including other businesses
Department for Education,DEPARTMENT FOR EDUCATION,12/09/2017,Grants,System Reform Group,BEST PRACTICE NETWORK LTD,1041009109,69120,Grants to educational establishments or not for profit organisations including other businesses
Department for Education,NATIONAL COLLEGE FOR TEACHING & LEADERSHIP,04/09/2017,Grants,Operations Directorate,BILLERICAY EDUCATIONAL CONSORTIUM,1041008468,35856.18,Grants to educational establishments or not for profit organisations including other businesses
Department for Education,NATIONAL COLLEGE FOR TEACHING & LEADERSHIP,04/09/2017,Grants,Operations Directorate,BIRMINGHAM CITY UNIVERSITY,1041008467,234772.74,Grants to educational establishments or not for profit organisations including other businesses
Department for Education,NATIONAL COLLEGE FOR TEACHING & LEADERSHIP,19/09/2017,Grants,Delivery Directorate,BISHOP CHALLONER CATHOLIC COLLEGE,1041009989,40000,Grants to educational establishments or not for profit organisations including other businesses
Department for Education,NATIONAL COLLEGE FOR TEACHING & LEADERSHIP,04/09/2017,Grants,Operations Directorate,BISHOP GROSSETESTE COLLEGE,1041008465,148115.88,Grants to educational establishments or not for profit organisations including other businesses
Department for Education,NATIONAL COLLEGE FOR TEACHING & LEADERSHIP,19/09/2017,Grants,Delivery Directorate,BLACKFRIARS ACADEMY,1041010014,40000,Grants to educational establishments or not for profit organisations including other businesses
Department for Education,NATIONAL COLLEGE FOR TEACHING & LEADERSHIP,12/09/2017,Grants,Delivery Directorate,BLEAK HILL PRIMARY SCHOOL TS ACCOUNT,1041009219,40000,Grants to educational establishments or not for profit organisations including other businesses
Department for Education,DEPARTMENT FOR EDUCATION,05/09/2017,Grants,Free Schools Group,BOORLEY GREEN SCHOOL,1041008712,30000,Grants to educational establishments or not for profit organisations including other businesses
Department for Education,NATIONAL COLLEGE FOR TEACHING & LEADERSHIP,04/09/2017,Grants,Operations Directorate,BOURNEMOUTH POOLE & DORSET EAST SECONDARY,1041008464,44595,Grants to educational establishments or not for profit organisations including other businesses
Department for Education,NATIONAL COLLEGE FOR TEACHING & LEADERSHIP,12/09/2017,Grants,Delivery Directorate,BOURNVILLE COMMUNITY PRIMARY SCHOOL,1041009095,50000,Grants to educational establishments or not for profit organisations including other businesses
Department for Education,NATIONAL COLLEGE FOR TEACHING & LEADERSHIP,01/09/2017,Grants,Operations Directorate,BRADFORD COLLEGE,1041008232,39155.91,Grants to educational establishments or not for profit organisations including other businesses
Department for Education,NATIONAL COLLEGE FOR TEACHING & LEADERSHIP,04/09/2017,Grants,Operations Directorate,BRADFORD COLLEGE,1041008443,92121.21,Grants to educational establishments or not for profit organisations including other businesses
Department for Education,NATIONAL COLLEGE FOR TEACHING & LEADERSHIP,04/09/2017,Grants,Operations Directorate,BROMLEY SCHOOLS COLLEGIATE,1041008442,34529.04,Grants to educational establishments or not for profit organisations including other businesses
Department for Education,NATIONAL COLLEGE FOR TEACHING & LEADERSHIP,26/09/2017,Grants,Delivery Directorate,BROUGHTON BUSINESS & ENTERPRISE COLLEGE,1041010708,40000,Grants to educational establishments or not for profit organisations including other businesses
Department for Education,DEPARTMENT FOR EDUCATION,05/09/2017,Grants,Free Schools Group,BRUNEL SEN MULTI ACADEMY TRUST,1041008714,30000,Grants to educational establishments or not for profit organisations including other businesses
Department for Education,NATIONAL COLLEGE FOR TEACHING & LEADERSHIP,04/09/2017,Grants,Operations Directorate,BRUNEL UNIVERSITY,1041008441,87823.89,Grants to educational establishments or not for profit organisations including other businesses
Department for Education,NATIONAL COLLEGE FOR TEACHING & LEADERSHIP,04/09/2017,Grants,Operations Directorate,CABOT LEARNING FEDERATION,1041008381,45222.3,Grants to educational establishments or not for profit organisations including other businesses
Department for Education,NATIONAL COLLEGE FOR TEACHING & LEADERSHIP,12/09/2017,Grants,Delivery Directorate,CABOT LEARNING FEDERATION,1041009104,40000,Grants to educational establishments or not for profit organisations including other businesses
Department for Education,DEPARTMENT FOR EDUCATION,07/09/2017,Grants,Strategy and Social Mobility and Opportunity Areas Group,CALDERDALE MBC,1041008840,51250.94,Grants to local authorities / other establishments within aggregate external funding or aggregate exchequer grant
Department for Education,DEPARTMENT FOR EDUCATION,13/09/2017,Grants,Adoption and Children in Care Division,CAMBRIDGE EDUCATION,1041009272,2400000,Grants to educational establishments or not for profit organisations including other businesses
Department for Education,DEPARTMENT FOR EDUCATION,13/09/2017,Grants,Strategy and Social Mobility and Opportunity Areas Group,CAMBRIDGESHIRE COUNTY COUNCIL,1041009417,48000,Grants to local authorities / other establishments within aggregate external funding or aggregate exchequer grant
Department for Education,DEPARTMENT FOR EDUCATION,13/09/2017,Grants,System Reform Group,CAMBRIDGESHIRE COUNTY COUNCIL,1041009417,39717,Grants to local authorities / other establishments within aggregate external funding or aggregate exchequer grant
Department for Education,NATIONAL COLLEGE FOR TEACHING & LEADERSHIP,04/09/2017,Grants,Operations Directorate,CANTERBURY CHRIST CHURCH UNIVERSITY,1041008440,249725.16,Grants to educational establishments or not for profit organisations including other businesses
Department for Education,NATIONAL COLLEGE FOR TEACHING & LEADERSHIP,04/09/2017,Grants,Operations Directorate,CARMEL TEACHER TRAINING PARTNERSHIP,1041008439,85520.34,Grants to educational establishments or not for profit organisations including other businesses
Department for Education,DEPARTMENT FOR EDUCATION,12/09/2017,Grants,System Reform Group,CARNEGIE LEADERS IN LEARNING PARTNERSHIP,1041009227,54320,Grants to educational establishments or not for profit organisations including other businesses
Department for Education,NATIONAL COLLEGE FOR TEACHING & LEADERSHIP,25/09/2017,Grants,Delivery Directorate,CASTLE HILL SCHOOL,1041010450,75000,Grants to educational establishments or not for profit organisations including other businesses
Department for Education,DEPARTMENT FOR EDUCATION,14/09/2017,Grants,Academies Regional Delivery Group,CASTLE PHOENIX TRUST,1041009630,80000,Grants to educational establishments or not for profit organisations including other businesses
Department for Education,DEPARTMENT FOR EDUCATION,13/09/2017,Grants,"Accountability, Curriculum and Qualifications Group",CATHOLIC EDUCATION SERVICE,1041009410,61375,Grants to educational establishments or not for profit organisations including other businesses
Department for Education,NATIONAL COLLEGE FOR TEACHING & LEADERSHIP,26/09/2017,Grants,Delivery Directorate,CATMOSE COLLEGE,1041010698,40000,Grants to educational establishments or not for profit organisations including other businesses
Department for Education,NATIONAL COLLEGE FOR TEACHING & LEADERSHIP,04/09/2017,Grants,Operations Directorate,CFBT THE DEEPINGS SCITT,1041008269,26087.13,Grants to educational establishments or not for profit organisations including other businesses
Department for Education,NATIONAL COLLEGE FOR TEACHING & LEADERSHIP,26/09/2017,Grants,Delivery Directorate,CHADSGROVE SCHOOL,1041010676,40000,Grants to educational establishments or not for profit organisations including other businesses
Department for Education,NATIONAL COLLEGE FOR TEACHING & LEADERSHIP,04/09/2017,Grants,Operations Directorate,CHEADLE HULME HIGH SCHOOL,1041008563,33750,Grants to educational establishments or not for profit organisations including other businesses
Department for Education,DEPARTMENT FOR EDUCATION,11/09/2017,Grants,Academies Regional Delivery Group,CHESTERTON PRIMARY SCHOOL TS ACCOUNT,1041009020,25000,Grants to educational establishments or not for profit organisations including other businesses
Department for Education,NATIONAL COLLEGE FOR TEACHING & LEADERSHIP,12/09/2017,Grants,Delivery Directorate,CHILDHAVEN COMMUNITY NURSERY SCHOOL BCAP,1041009207,40000,Grants to educational establishments or not for profit organisations including other businesses
Department for Education,NATIONAL COLLEGE FOR TEACHING & LEADERSHIP,04/09/2017,Grants,Operations Directorate,CHILTERN TRAINING GROUP,1041008419,45865.53,Grants to educational establishments or not for profit organisations including other businesses
Department for Education,NATIONAL COLLEGE FOR TEACHING & LEADERSHIP,26/09/2017,Grants,Delivery Directorate,CHIPPING VIEW PRIMARY ACADEMY,1041010685,40000,Grants to educational establishments or not for profit organisations including other businesses
Department for Education,DEPARTMENT FOR EDUCATION,21/09/2017,Grants,"Accountability, Curriculum and Qualifications Group",CHOIR SCHOOLS ASSOCIATION BURSARY TRUST LTD,1041010338,6387600,Grants to educational establishments or not for profit organisations including other businesses
Department for Education,NATIONAL COLLEGE FOR TEACHING & LEADERSHIP,12/09/2017,Grants,Delivery Directorate,CHURCHILL COMMUNITY COLLEGE,1041009146,40000,Grants to educational establishments or not for profit organisations including other businesses
Department for Education,DEPARTMENT FOR EDUCATION,22/09/2017,Grants,Free Schools Group,CITY LEARNING TRUST,1041010425,30000,Grants to educational establishments or not for profit organisations including other businesses
Department for Education,NATIONAL COLLEGE FOR TEACHING & LEADERSHIP,04/09/2017,Grants,Operations Directorate,COLCHESTER TEACHER TRAINING CONSORTIUM,1041008611,57159.63,Grants to educational establishments or not for profit organisations including other businesses
Department for Education,DEPARTMENT FOR EDUCATION,07/09/2017,Grants,Teachers and Teaching Group,COLLEGE OF TEACHING LTD,1041008898,156000,Grants to educational establishments or not for profit organisations including other businesses
Department for Education,NATIONAL COLLEGE FOR TEACHING & LEADERSHIP,04/09/2017,Grants,Delivery Directorate,COLMORE JUNIOR SCHOOL,1041008339,40000,Grants to educational establishments or not for profit organisations including other businesses
Department for Education,NATIONAL COLLEGE FOR TEACHING & LEADERSHIP,19/09/2017,Grants,Delivery Directorate,COOMBE GIRLS SCHOOL,1041009905,40000,Grants to educational establishments or not for profit organisations including other businesses
Department for Education,DEPARTMENT FOR EDUCATION,13/09/2017,Grants,System Reform Group,CORNWALL COUNCIL,1041009363,47300,Grants to local authorities / other establishments within aggregate external funding or aggregate exchequer grant
Department for Education,NATIONAL COLLEGE FOR TEACHING & LEADERSHIP,04/09/2017,Grants,Operations Directorate,CORNWALL SCITT,1041008460,91735.56,Grants to educational establishments or not for profit organisations including other businesses
Department for Education,NATIONAL COLLEGE FOR TEACHING & LEADERSHIP,04/09/2017,Grants,Delivery Directorate,CORSHAM PRIMARY SCHOOL,1041008328,38122,Grants to educational establishments or not for profit organisations including other businesses
Department for Education,DEPARTMENT FOR EDUCATION,05/09/2017,Grants,"Accountability, Curriculum and Qualifications Group",CREDO CARE LTD,1041008698,100219,Grants to educational establishments or not for profit organisations including other businesses
Department for Education,DEPARTMENT FOR EDUCATION,11/09/2017,Grants,Academies Regional Delivery Group,CUMBRIA EDUCATION TRUST,1041009057,140000,Grants to educational establishments or not for profit organisations including other businesses
Department for Education,NATIONAL COLLEGE FOR TEACHING & LEADERSHIP,12/09/2017,Grants,Delivery Directorate,DANE COURT GRAMMAR SCHOOL CF ACCOUNT,1041009105,40000,Grants to educational establishments or not for profit organisations including other businesses
Department for Education,NATIONAL COLLEGE FOR TEACHING & LEADERSHIP,26/09/2017,Grants,Delivery Directorate,DARTFORD GRAMMAR SCHOOL,1041010579,50000,Grants to educational establishments or not for profit organisations including other businesses
Department for Education,DEPARTMENT FOR EDUCATION,05/09/2017,Grants,Academies Regional Delivery Group,DE FERRERS SPECIALIST TECHNOLOGY COLLEGE,1041008685,25000,Grants to educational establishments or not for profit organisations including other businesses
Department for Education,NATIONAL COLLEGE FOR TEACHING & LEADERSHIP,04/09/2017,Grants,Operations Directorate,DENBIGH SCHOOL,1041008606,30120.03,Grants to educational establishments or not for profit organisations including other businesses
Department for Education,DEPARTMENT FOR EDUCATION,08/09/2017,Grants,"Accountability, Curriculum and Qualifications Group",DEPARTMENT FOR CULTURE MEDIA & SPORT,30000078,26250,Current grant funding to other government departments for DfE's contribution to jointly funded programmes 
Department for Education,DEPARTMENT FOR EDUCATION,08/09/2017,Grants,"Accountability, Curriculum and Qualifications Group",DEPARTMENT FOR CULTURE MEDIA & SPORT,30000078,10000,Current grant funding to other government departments for DfE's contribution to jointly funded programmes 
Department for Education,DEPARTMENT FOR EDUCATION,08/09/2017,Grants,"Accountability, Curriculum and Qualifications Group",DEPARTMENT FOR CULTURE MEDIA & SPORT,30000079,132457.75,Current grant funding to other government departments for DfE's contribution to jointly funded programmes 
Department for Education,DEPARTMENT FOR EDUCATION,08/09/2017,Grants,"Accountability, Curriculum and Qualifications Group",DEPARTMENT FOR CULTURE MEDIA & SPORT,30000079,18750000,Current grant funding to other government departments for DfE's contribution to jointly funded programmes 
Department for Education,DEPARTMENT FOR EDUCATION,08/09/2017,Grants,"Accountability, Curriculum and Qualifications Group",DEPARTMENT FOR CULTURE MEDIA & SPORT,30000079,3688,Current grant funding to other government departments for DfE's contribution to jointly funded programmes 
Department for Education,DEPARTMENT FOR EDUCATION,08/09/2017,Grants,"Accountability, Curriculum and Qualifications Group",DEPARTMENT FOR CULTURE MEDIA & SPORT,30000079,31250,Current grant funding to other government departments for DfE's contribution to jointly funded programmes 
Department for Education,DEPARTMENT FOR EDUCATION,08/09/2017,Grants,"Accountability, Curriculum and Qualifications Group",DEPARTMENT FOR CULTURE MEDIA & SPORT,30000079,536250,Current grant funding to other government departments for DfE's contribution to jointly funded programmes 
Department for Education,DEPARTMENT FOR EDUCATION,08/09/2017,Grants,"Accountability, Curriculum and Qualifications Group",DEPARTMENT FOR CULTURE MEDIA & SPORT,30000080,118750,Current grant funding to other government departments for DfE's contribution to jointly funded programmes 
Department for Education,DEPARTMENT FOR EDUCATION,08/09/2017,Grants,"Accountability, Curriculum and Qualifications Group",DEPARTMENT FOR CULTURE MEDIA & SPORT,30000080,104852.5,Current grant funding to other government departments for DfE's contribution to jointly funded programmes 
Department for Education,DEPARTMENT FOR EDUCATION,08/09/2017,Grants,"Accountability, Curriculum and Qualifications Group",DEPARTMENT FOR CULTURE MEDIA & SPORT,30000080,8819.25,Current grant funding to other government departments for DfE's contribution to jointly funded programmes 
Department for Education,DEPARTMENT FOR EDUCATION,08/09/2017,Grants,"Accountability, Curriculum and Qualifications Group",DEPARTMENT FOR CULTURE MEDIA & SPORT,30000080,195560.75,Current grant funding to other government departments for DfE's contribution to jointly funded programmes 
Department for Education,DEPARTMENT FOR EDUCATION,08/09/2017,Grants,"Accountability, Curriculum and Qualifications Group",DEPARTMENT FOR CULTURE MEDIA & SPORT,30000080,240000,Current grant funding to other government departments for DfE's contribution to jointly funded programmes 
Department for Education,DEPARTMENT FOR EDUCATION,22/09/2017,Grants,Student Finance and Analysis Group,DEPARTMENT FOR THE ECONOMY,10000329,6451781,Current grant funding to other government departments for DfE's contribution to jointly funded programmes 
Department for Education,DEPARTMENT FOR EDUCATION,11/09/2017,Grants,Academies Regional Delivery Group,DERBY DIOCESAN ACADEMY TRUST,1041009007,40000,Capital grants paid to a private sector organisation
Department for Education,DEPARTMENT FOR EDUCATION,11/09/2017,Grants,Academies Regional Delivery Group,DERBY DIOCESAN ACADEMY TRUST,1041009007,40000,Grants to educational establishments or not for profit organisations including other businesses
Department for Education,DEPARTMENT FOR EDUCATION,13/09/2017,Grants,System Reform Group,DERBYSHIRE COUNTY COUNCIL,1041009568,56225,Grants to local authorities / other establishments within aggregate external funding or aggregate exchequer grant
Department for Education,DEPARTMENT FOR EDUCATION,13/09/2017,Grants,System Reform Group,DEVON COUNTY COUNCIL,1041009475,43642,Grants to local authorities / other establishments within aggregate external funding or aggregate exchequer grant
Department for Education,NATIONAL COLLEGE FOR TEACHING & LEADERSHIP,04/09/2017,Grants,Operations Directorate,DEYES HIGH SCHOOL,1041008603,47421.36,Grants to educational establishments or not for profit organisations including other businesses
Department for Education,DEPARTMENT FOR EDUCATION,11/09/2017,Grants,Academies Regional Delivery Group,DIOCESE OF ELY MULTI ACADEMY TRUST,1041009014,70000,Grants to educational establishments or not for profit organisations including other businesses
Department for Education,DEPARTMENT FOR EDUCATION,07/09/2017,Grants,Further Education Group,DISABILITY RIGHTS UK,1041008891,40000,Grants to educational establishments or not for profit organisations including other businesses
Department for Education,DEPARTMENT FOR EDUCATION,14/09/2017,Grants,Strategy and Social Mobility and Opportunity Areas Group,DONCASTER CHILDRENS SERVICES TRUST,1041009650,552392,Grants to educational establishments or not for profit organisations including other businesses
Department for Education,NATIONAL COLLEGE FOR TEACHING & LEADERSHIP,04/09/2017,Grants,Operations Directorate,DONCASTER MBC,1041008517,27386.46,Grants to educational establishments or not for profit organisations including other businesses
Department for Education,DEPARTMENT FOR EDUCATION,13/09/2017,Grants,System Reform Group,DORSET COUNTY COUNCIL,1041009493,39092,Grants to local authorities / other establishments within aggregate external funding or aggregate exchequer grant
Department for Education,DEPARTMENT FOR EDUCATION,13/09/2017,Grants,System Reform Group,DURHAM COUNTY COUNCIL,1041009490,80950,Grants to local authorities / other establishments within aggregate external funding or aggregate exchequer grant
Department for Education,NATIONAL COLLEGE FOR TEACHING & LEADERSHIP,04/09/2017,Grants,Operations Directorate,DURHAM SECONDARY APPLIED SCITT,1041008277,72774,Grants to educational establishments or not for profit organisations including other businesses
Department for Education,NATIONAL COLLEGE FOR TEACHING & LEADERSHIP,04/09/2017,Grants,Delivery Directorate,E QUALITAS PROFESSIONAL SERVICES LTD,1041008416,42255,Grants to educational establishments or not for profit organisations including other businesses
Department for Education,NATIONAL COLLEGE FOR TEACHING & LEADERSHIP,04/09/2017,Grants,Operations Directorate,E QUALITAS PROFESSIONAL SERVICES LTD,1041008416,30637.53,Grants to educational establishments or not for profit organisations including other businesses
Department for Education,NATIONAL COLLEGE FOR TEACHING & LEADERSHIP,26/09/2017,Grants,Delivery Directorate,EARLY FOUNDATIONS TEACHING SCHOOL,1041010606,40000,Grants to educational establishments or not for profit organisations including other businesses
Department for Education,DEPARTMENT FOR EDUCATION,07/09/2017,Grants,Strategy and Social Mobility and Opportunity Areas Group,EAST SUSSEX COUNTY COUNCIL,1041008908,74305.27,Grants to local authorities / other establishments within aggregate external funding or aggregate exchequer grant
Department for Education,DEPARTMENT FOR EDUCATION,13/09/2017,Grants,System Reform Group,EAST SUSSEX COUNTY COUNCIL,1041009429,46942,Grants to local authorities / other establishments within aggregate external funding or aggregate exchequer grant
Department for Education,DEPARTMENT FOR EDUCATION,20/09/2017,Grants,Early Years Group,ECORYS UK LTD CHILDCARE BUSINESS GRANT PAYMENTS,1041010261,250000,Grants to educational establishments or not for profit organisations including other businesses
Department for Education,NATIONAL COLLEGE FOR TEACHING & LEADERSHIP,04/09/2017,Grants,Delivery Directorate,EDGE HILL UNIVERSITY,1041008447,30555,Grants to educational establishments or not for profit organisations including other businesses
Department for Education,NATIONAL COLLEGE FOR TEACHING & LEADERSHIP,04/09/2017,Grants,Operations Directorate,EDGE HILL UNIVERSITY,1041008447,380081.61,Grants to educational establishments or not for profit organisations including other businesses
Department for Education,DEPARTMENT FOR EDUCATION,12/09/2017,Grants,System Reform Group,EDGE HILL UNIVERSITY,1041009163,52000,Grants to educational establishments or not for profit organisations including other businesses
Department for Education,NATIONAL COLLEGE FOR TEACHING & LEADERSHIP,26/09/2017,Grants,Delivery Directorate,EGGLESCLIFFE SCHOOL,1041010603,40000,Grants to educational establishments or not for profit organisations including other businesses
Department for Education,NATIONAL COLLEGE FOR TEACHING & LEADERSHIP,12/09/2017,Grants,Delivery Directorate,ELMHURST PRIMARY SCHOOL,1041009101,40000,Grants to educational establishments or not for profit organisations including other businesses
Department for Education,NATIONAL COLLEGE FOR TEACHING & LEADERSHIP,12/09/2017,Grants,Delivery Directorate,EMMANUEL COLLEGE,1041009094,40000,Grants to educational establishments or not for profit organisations including other businesses
Department for Education,DEPARTMENT FOR EDUCATION,05/09/2017,Grants,Government Equalities Office,EQUALITY & HUMAN RIGHTS COMMISSION,30000075,190140,Current grants paid to organisations including arms length bodies and educational establishments
Department for Education,DEPARTMENT FOR EDUCATION,05/09/2017,Grants,Government Equalities Office,EQUALITY & HUMAN RIGHTS COMMISSION,30000076,2000000,Current grants paid to organisations including arms length bodies and educational establishments
Department for Education,DEPARTMENT FOR EDUCATION,13/09/2017,Grants,System Reform Group,ESSEX COUNTY COUNCIL,1041009397,53550,Grants to local authorities / other establishments within aggregate external funding or aggregate exchequer grant
Department for Education,NATIONAL COLLEGE FOR TEACHING & LEADERSHIP,04/09/2017,Grants,Delivery Directorate,ESSEX PRY SCHOOLS TRAINING GROUP,1041008335,25200,Grants to educational establishments or not for profit organisations including other businesses
Department for Education,NATIONAL COLLEGE FOR TEACHING & LEADERSHIP,12/09/2017,Grants,Delivery Directorate,EVELYN STREET PRIMARY SCHOOL BCAP,1041009208,28716,Grants to educational establishments or not for profit organisations including other businesses
Department for Education,NATIONAL COLLEGE FOR TEACHING & LEADERSHIP,26/09/2017,Grants,Delivery Directorate,EVOLVE TEACHING SCHOOL ALLIANCE LTD,1041010575,40000,Grants to educational establishments or not for profit organisations including other businesses
Department for Education,NATIONAL COLLEGE FOR TEACHING & LEADERSHIP,12/09/2017,Grants,Delivery Directorate,EWELL GROVE INFANT & NURSERY SCHOOL,1041009100,60000,Grants to educational establishments or not for profit organisations including other businesses
Department for Education,NATIONAL COLLEGE FOR TEACHING & LEADERSHIP,04/09/2017,Grants,Delivery Directorate,FAIRFIELDS SCHOOL,1041008436,40000,Grants to educational establishments or not for profit organisations including other businesses
Department for Education,DEPARTMENT FOR EDUCATION,05/09/2017,Grants,Adoption and Children in Care Division,FAMILIES FOR CHILDREN,1041008644,80355,Grants to educational establishments or not for profit organisations including other businesses
Department for Education,DEPARTMENT FOR EDUCATION,07/09/2017,Grants,Strategy and Social Mobility and Opportunity Areas Group,FAMILY LIVES,1041008901,40083.96,Grants to educational establishments or not for profit organisations including other businesses
Department for Education,DEPARTMENT FOR EDUCATION,27/09/2017,Grants,Strategy and Social Mobility and Opportunity Areas Group,FAMILY LIVES,1041010755,41338.01,Grants to educational establishments or not for profit organisations including other businesses
Department for Education,DEPARTMENT FOR EDUCATION,13/09/2017,Grants,Strategy and Social Mobility and Opportunity Areas Group,FAMILY RIGHTS GROUP LTD,1041009358,58522,Grants to educational establishments or not for profit organisations including other businesses
Department for Education,NATIONAL COLLEGE FOR TEACHING & LEADERSHIP,26/09/2017,Grants,Delivery Directorate,FOSSE WAY SCHOOL,1041010581,40000,Grants to educational establishments or not for profit organisations including other businesses
Department for Education,NATIONAL COLLEGE FOR TEACHING & LEADERSHIP,26/09/2017,Grants,Delivery Directorate,FRANK WISE SCHOOL,1041010716,28200,Grants to educational establishments or not for profit organisations including other businesses
Department for Education,NATIONAL COLLEGE FOR TEACHING & LEADERSHIP,19/09/2017,Grants,Delivery Directorate,GADDESBY PRIMARY SCHOOL,1041009949,40000,Grants to educational establishments or not for profit organisations including other businesses
Department for Education,NATIONAL COLLEGE FOR TEACHING & LEADERSHIP,26/09/2017,Grants,Delivery Directorate,GATLEY PRIMARY SCHOOL,1041010695,40000,Grants to educational establishments or not for profit organisations including other businesses
Department for Education,NATIONAL COLLEGE FOR TEACHING & LEADERSHIP,04/09/2017,Grants,Delivery Directorate,GAWTHORPE COMMUNITY PRIMARY ACADEMY,1041008562,40000,Grants to educational establishments or not for profit organisations including other businesses
Department for Education,NATIONAL COLLEGE FOR TEACHING & LEADERSHIP,04/09/2017,Grants,Operations Directorate,GEORGE ABBOT ACADEMY,1041008415,26658,Grants to educational establishments or not for profit organisations including other businesses
Department for Education,NATIONAL COLLEGE FOR TEACHING & LEADERSHIP,26/09/2017,Grants,Delivery Directorate,GEORGE ABBOT ACADEMY,1041010731,40000,Grants to educational establishments or not for profit organisations including other businesses
Department for Education,NATIONAL COLLEGE FOR TEACHING & LEADERSHIP,19/09/2017,Grants,Delivery Directorate,GEORGE SPENCER ACADEMY,1041009991,40000,Grants to educational establishments or not for profit organisations including other businesses
Department for Education,NATIONAL COLLEGE FOR TEACHING & LEADERSHIP,04/09/2017,Grants,Operations Directorate,GEORGE SPENCER TRAINING SCHOOL,1041008394,38349.09,Grants to educational establishments or not for profit organisations including other businesses
Department for Education,NATIONAL COLLEGE FOR TEACHING & LEADERSHIP,26/09/2017,Grants,Delivery Directorate,GLENTHORNE HIGH SCHOOL,1041010549,40000,Grants to educational establishments or not for profit organisations including other businesses
Department for Education,DEPARTMENT FOR EDUCATION,13/09/2017,Grants,System Reform Group,GLOUCESTERSHIRE COUNTY COUNCIL,1041009402,33200,Grants to local authorities / other establishments within aggregate external funding or aggregate exchequer grant
Department for Education,NATIONAL COLLEGE FOR TEACHING & LEADERSHIP,04/09/2017,Grants,Operations Directorate,GLOUCESTERSHIRE ITE PARTNERSHIP,1041008492,74448.72,Grants to educational establishments or not for profit organisations including other businesses
Department for Education,NATIONAL COLLEGE FOR TEACHING & LEADERSHIP,04/09/2017,Grants,Operations Directorate,GLYN SURREY SCITT,1041008382,29400.03,Grants to educational establishments or not for profit organisations including other businesses
Department for Education,NATIONAL COLLEGE FOR TEACHING & LEADERSHIP,04/09/2017,Grants,Operations Directorate,GOLDSMITH COLLEGE,1041008393,180086.22,Grants to educational establishments or not for profit organisations including other businesses
Department for Education,DEPARTMENT FOR EDUCATION,28/09/2017,Grants,Academies Regional Delivery Group,GOSFORTH FEDERATED ACADEMIES LTD,1041010949,80000,Grants to educational establishments or not for profit organisations including other businesses
Department for Education,DEPARTMENT FOR EDUCATION,28/09/2017,Grants,Academies Regional Delivery Group,GOSFORTH FEDERATED ACADEMIES LTD,1041010949,150000,Grants to educational establishments or not for profit organisations including other businesses
Department for Education,NATIONAL COLLEGE FOR TEACHING & LEADERSHIP,26/09/2017,Grants,Delivery Directorate,GRAFTON PRIMARY SCHOOL TS ACCOUNT,1041010665,30000,Grants to educational establishments or not for profit organisations including other businesses
Department for Education,NATIONAL COLLEGE FOR TEACHING & LEADERSHIP,04/09/2017,Grants,Operations Directorate,GRAND UNION TRAINING PARTNERSHIP,1041008392,54150.03,Grants to educational establishments or not for profit organisations including other businesses
Department for Education,NATIONAL COLLEGE FOR TEACHING & LEADERSHIP,12/09/2017,Grants,Delivery Directorate,GREAT CROSBY CATHOLIC PRIMARY SCHOOL TS ACCOUNT,1041009215,60000,Grants to educational establishments or not for profit organisations including other businesses
Department for Education,DEPARTMENT FOR EDUCATION,14/09/2017,Grants,Academies Regional Delivery Group,GREAT LEARNERS TRUST,1041009683,25000,Grants to educational establishments or not for profit organisations including other businesses
Department for Education,NATIONAL COLLEGE FOR TEACHING & LEADERSHIP,26/09/2017,Grants,Delivery Directorate,GREEN LANE ACADEMY TS ACCOUNT,1041010644,40000,Grants to educational establishments or not for profit organisations including other businesses
Department for Education,DEPARTMENT FOR EDUCATION,14/09/2017,Grants,Academies Regional Delivery Group,GUISELEY SCHOOL,1041009686,25000,Grants to educational establishments or not for profit organisations including other businesses
Department for Education,DEPARTMENT FOR EDUCATION,18/09/2017,Grants,Academies Regional Delivery Group,GUNTHORPE PRIMARY SCHOOL,1041009857,25000,Grants to educational establishments or not for profit organisations including other businesses
Department for Education,DEPARTMENT FOR EDUCATION,19/09/2017,Grants,Strategy and Social Mobility and Opportunity Areas Group,HAMPSHIRE C C,1041009896,30000,Grants to local authorities / other establishments within aggregate external funding or aggregate exchequer grant
Department for Education,DEPARTMENT FOR EDUCATION,04/09/2017,Grants,Adoption and Children in Care Division,HAMPSHIRE COUNTY COUNCIL,1041008469,51643,Grants to local authorities / other establishments within aggregate external funding or aggregate exchequer grant
Department for Education,DEPARTMENT FOR EDUCATION,04/09/2017,Grants,Adoption and Children in Care Division,HAMPSHIRE COUNTY COUNCIL,1041008469,40408,Grants to local authorities / other establishments within aggregate external funding or aggregate exchequer grant
Department for Education,DEPARTMENT FOR EDUCATION,12/09/2017,Grants,System Reform Group,HAMPSHIRE COUNTY COUNCIL,1041009147,85600,Grants to educational establishments or not for profit organisations including other businesses
Department for Education,DEPARTMENT FOR EDUCATION,13/09/2017,Grants,System Reform Group,HAMPSHIRE COUNTY COUNCIL,1041009471,35167,Grants to local authorities / other establishments within aggregate external funding or aggregate exchequer grant
Department for Education,DEPARTMENT FOR EDUCATION,05/09/2017,Grants,Free Schools Group,HAMPTON ACADEMIES TRUST,1041008655,30000,Grants to educational establishments or not for profit organisations including other businesses
Department for Education,NATIONAL COLLEGE FOR TEACHING & LEADERSHIP,12/09/2017,Grants,Delivery Directorate,HAMPTON HARGATE PRIMARY SCHOOL,1041009096,50000,Grants to educational establishments or not for profit organisations including other businesses
Department for Education,NATIONAL COLLEGE FOR TEACHING & LEADERSHIP,04/09/2017,Grants,Delivery Directorate,HAREFIELD SCITT,1041008410,40000,Grants to educational establishments or not for profit organisations including other businesses
Department for Education,NATIONAL COLLEGE FOR TEACHING & LEADERSHIP,04/09/2017,Grants,Operations Directorate,HARRIS CITY ACADEMY,1041008537,107772.75,Grants to educational establishments or not for profit organisations including other businesses
Department for Education,NATIONAL COLLEGE FOR TEACHING & LEADERSHIP,19/09/2017,Grants,Delivery Directorate,HARRIS CITY ACADEMY CRYSTAL PALACE,1041009897,40000,Grants to educational establishments or not for profit organisations including other businesses
Department for Education,NATIONAL COLLEGE FOR TEACHING & LEADERSHIP,12/09/2017,Grants,Delivery Directorate,HAVEN EARLY YEARS CENTRE,1041009106,40000,Grants to educational establishments or not for profit organisations including other businesses
Department for Education,NATIONAL COLLEGE FOR TEACHING & LEADERSHIP,04/09/2017,Grants,Operations Directorate,HAVERING BEACON PARTNERSHIP,1041008391,36783,Grants to educational establishments or not for profit organisations including other businesses
Department for Education,NATIONAL COLLEGE FOR TEACHING & LEADERSHIP,04/09/2017,Grants,Operations Directorate,HAYBRIDGE ALLIANCE SCITT,1041008311,40321.89,Grants to educational establishments or not for profit organisations including other businesses
Department for Education,NATIONAL COLLEGE FOR TEACHING & LEADERSHIP,19/09/2017,Grants,Delivery Directorate,HEATHFIELD COMMUNITY SCHOOL,1041009928,40000,Grants to educational establishments or not for profit organisations including other businesses
Department for Education,NATIONAL COLLEGE FOR TEACHING & LEADERSHIP,19/09/2017,Grants,Delivery Directorate,HERNE CE INFANT SCHOOL,1041009941,40000,Grants to educational establishments or not for profit organisations including other businesses
Department for Education,NATIONAL COLLEGE FOR TEACHING & LEADERSHIP,19/09/2017,Grants,Delivery Directorate,HERONSGATE PRIMARY SCHOOL TS ACCOUNT,1041010089,33493,Grants to educational establishments or not for profit organisations including other businesses
Department for Education,DEPARTMENT FOR EDUCATION,15/09/2017,Grants,Early Years Group,HERTFORDSHIRE COUNTY COUNCIL,1041009745,491152.31,Grants to local authorities / other establishments within aggregate external funding or aggregate exchequer grant
Department for Education,DEPARTMENT FOR EDUCATION,14/09/2017,Grants,Academies Regional Delivery Group,HERTS FOR LEARNING MULTI ACADEMY TRUST,1041009616,25000,Grants to educational establishments or not for profit organisations including other businesses
Department for Education,DEPARTMENT FOR EDUCATION,14/09/2017,Grants,Academies Regional Delivery Group,HERTS FOR LEARNING MULTI ACADEMY TRUST,1041009616,25000,Grants to educational establishments or not for profit organisations including other businesses
Department for Education,NATIONAL COLLEGE FOR TEACHING & LEADERSHIP,01/09/2017,Grants,Operations Directorate,HIBERNIA COLLEGE UK,1041008171,1253169.52,Grants to educational establishments or not for profit organisations including other businesses
Department for Education,NATIONAL COLLEGE FOR TEACHING & LEADERSHIP,04/09/2017,Grants,Operations Directorate,HIBERNIA COLLEGE UK,1041008454,98246.34,Grants to educational establishments or not for profit organisations including other businesses
Department for Education,DEPARTMENT FOR EDUCATION,14/09/2017,Grants,Higher Education Strategy and Policy Group,HIGHER EDUCATION FUNDING COUNCIL,30000083,508000000,Current grants paid to organisations including arms length bodies and educational establishments
Department for Education,NATIONAL COLLEGE FOR TEACHING & LEADERSHIP,19/09/2017,Grants,Delivery Directorate,HIGHWORTH GRAMMAR SCHOOL,1041010016,39842,Grants to educational establishments or not for profit organisations including other businesses
Department for Education,NATIONAL COLLEGE FOR TEACHING & LEADERSHIP,26/09/2017,Grants,Delivery Directorate,HILLBOROUGH JUNIOR SCHOOL,1041010705,40000,Grants to educational establishments or not for profit organisations including other businesses
Department for Education,NATIONAL COLLEGE FOR TEACHING & LEADERSHIP,25/09/2017,Grants,Delivery Directorate,HISTON & IMPRINGTON JUNIOR SCHOOL,1041010477,75000,Grants to educational establishments or not for profit organisations including other businesses
Department for Education,NATIONAL COLLEGE FOR TEACHING & LEADERSHIP,19/09/2017,Grants,Delivery Directorate,HOLY FAMILY CATHOLIC PRIMARY SCHOOL,1041009945,40000,Grants to educational establishments or not for profit organisations including other businesses
Department for Education,DEPARTMENT FOR EDUCATION,27/09/2017,Grants,Academies Regional Delivery Group,HOLY TRINITY CHURCH OF ENGLAND PRIMARY SCHOOL,1041010780,25000,Grants to educational establishments or not for profit organisations including other businesses
Department for Education,DEPARTMENT FOR EDUCATION,13/09/2017,Grants,Academies Regional Delivery Group,HOSPITAL & OUTREACH EDUCATION,1041009424,45000,Grants to educational establishments or not for profit organisations including other businesses
Department for Education,NATIONAL COLLEGE FOR TEACHING & LEADERSHIP,04/09/2017,Grants,Delivery Directorate,HUNTINGDON NURSERY SCHOOL,1041008613,40000,Grants to educational establishments or not for profit organisations including other businesses
Department for Education,NATIONAL COLLEGE FOR TEACHING & LEADERSHIP,26/09/2017,Grants,Delivery Directorate,IFIELD SCHOOL,1041010651,37820,Grants to educational establishments or not for profit organisations including other businesses
Department for Education,DEPARTMENT FOR EDUCATION,04/09/2017,Grants,Adoption and Children in Care Division,INTERCOUNTRY ADOPTION CENTRE,1041008357,72547.23,Grants to educational establishments or not for profit organisations including other businesses
Department for Education,DEPARTMENT FOR EDUCATION,05/09/2017,Grants,Academies Regional Delivery Group,INVICTUS EDUCATION TRUST,1041008657,25000,Grants to educational establishments or not for profit organisations including other businesses
Department for Education,NATIONAL COLLEGE FOR TEACHING & LEADERSHIP,26/09/2017,Grants,Delivery Directorate,IVEGILL CE PRIMARY SCHOOL,1041010648,40000,Grants to educational establishments or not for profit organisations including other businesses
Department for Education,NATIONAL COLLEGE FOR TEACHING & LEADERSHIP,20/09/2017,Grants,Delivery Directorate,JAMES MONTGOMERY ACADEMY TRUST,1041010262,60000,Grants to educational establishments or not for profit organisations including other businesses
Department for Education,DEPARTMENT FOR EDUCATION,14/09/2017,Grants,Further Education Group,JISC LTD,1041009617,1270834,Grants to educational establishments or not for profit organisations including other businesses
Department for Education,DEPARTMENT FOR EDUCATION,27/09/2017,Grants,Academies Regional Delivery Group,JUBILEE WOOD PRIMARY SCHOOL,1041010782,25000,Grants to educational establishments or not for profit organisations including other businesses
Department for Education,NATIONAL COLLEGE FOR TEACHING & LEADERSHIP,26/09/2017,Grants,Delivery Directorate,KELSALL PRIMARY SCHOOL TS ACCOUNT,1041010668,39915,Grants to educational establishments or not for profit organisations including other businesses
Department for Education,NATIONAL COLLEGE FOR TEACHING & LEADERSHIP,04/09/2017,Grants,Operations Directorate,KENT & MEDWAY TRAINING,1041008510,107640.99,Grants to educational establishments or not for profit organisations including other businesses
Department for Education,DEPARTMENT FOR EDUCATION,13/09/2017,Grants,System Reform Group,KENT COUNTY COUNCIL,1041009376,102100,Grants to local authorities / other establishments within aggregate external funding or aggregate exchequer grant
Department for Education,NATIONAL COLLEGE FOR TEACHING & LEADERSHIP,12/09/2017,Grants,Delivery Directorate,KESGRAVE HIGH SCHOOL TS ACCOUNT,1041009206,25390,Grants to educational establishments or not for profit organisations including other businesses
Department for Education,NATIONAL COLLEGE FOR TEACHING & LEADERSHIP,04/09/2017,Grants,Delivery Directorate,KIBWORTH PRIMARY SCHOOL,1041008338,40000,Grants to educational establishments or not for profit organisations including other businesses
Department for Education,DEPARTMENT FOR EDUCATION,07/09/2017,Grants,Strategy and Social Mobility and Opportunity Areas Group,KIDSCAPE,1041008853,44943.99,Grants to educational establishments or not for profit organisations including other businesses
Department for Education,NATIONAL COLLEGE FOR TEACHING & LEADERSHIP,04/09/2017,Grants,Operations Directorate,KING EDWARDS CONSORTIUM,1041008369,50474.97,Grants to educational establishments or not for profit organisations including other businesses
Department for Education,NATIONAL COLLEGE FOR TEACHING & LEADERSHIP,04/09/2017,Grants,Operations Directorate,KINGS COLLEGE GUILDFORD,1041008368,291556.62,Grants to educational establishments or not for profit organisations including other businesses
Department for Education,NATIONAL COLLEGE FOR TEACHING & LEADERSHIP,12/09/2017,Grants,Delivery Directorate,KINGS NORTON NURSERY SCHOOL,1041009239,40000,Grants to educational establishments or not for profit organisations including other businesses
Department for Education,NATIONAL COLLEGE FOR TEACHING & LEADERSHIP,26/09/2017,Grants,Delivery Directorate,KINGS SCHOOL,1041010578,50000,Grants to educational establishments or not for profit organisations including other businesses
Department for Education,NATIONAL COLLEGE FOR TEACHING & LEADERSHIP,04/09/2017,Grants,Operations Directorate,KINGSBRIDGE EIP SCITT,1041008406,27870.93,Grants to educational establishments or not for profit organisations including other businesses
Department for Education,NATIONAL COLLEGE FOR TEACHING & LEADERSHIP,04/09/2017,Grants,Operations Directorate,KINGSTON UNIVERSITY,1041008459,63920.43,Grants to educational establishments or not for profit organisations including other businesses
Department for Education,DEPARTMENT FOR EDUCATION,14/09/2017,Grants,Academies Regional Delivery Group,KINGSWODE HOE SCHOOL,1041009682,25000,Grants to educational establishments or not for profit organisations including other businesses
Department for Education,DEPARTMENT FOR EDUCATION,13/09/2017,Grants,Academies Regional Delivery Group,LAKES ACADEMIES TRUST,1041009283,110000,Grants to educational establishments or not for profit organisations including other businesses
Department for Education,DEPARTMENT FOR EDUCATION,13/09/2017,Grants,System Reform Group,LANCASHIRE COUNTY COUNCIL,1041009374,54350,Grants to local authorities / other establishments within aggregate external funding or aggregate exchequer grant
Department for Education,DEPARTMENT FOR EDUCATION,04/09/2017,Grants,Academies Regional Delivery Group,LEAD MULTI ACADEMY TRUST,1041008386,25000,Grants to educational establishments or not for profit organisations including other businesses
Department for Education,NATIONAL COLLEGE FOR TEACHING & LEADERSHIP,04/09/2017,Grants,Operations Directorate,LEEDS BECKETT UNIVERSITY,1041008607,62484.84,Grants to educational establishments or not for profit organisations including other businesses
Department for Education,NATIONAL COLLEGE FOR TEACHING & LEADERSHIP,04/09/2017,Grants,Delivery Directorate,LEEDS CITY COUNCIL,1041008422,40000,Grants to educational establishments or not for profit organisations including other businesses
Department for Education,NATIONAL COLLEGE FOR TEACHING & LEADERSHIP,04/09/2017,Grants,Operations Directorate,LEEDS CITY COUNCIL,1041008491,39429,Grants to educational establishments or not for profit organisations including other businesses
Department for Education,NATIONAL COLLEGE FOR TEACHING & LEADERSHIP,04/09/2017,Grants,Operations Directorate,LEEDS TRINITY UNIVERSITY COLLEGE,1041008490,233096.94,Grants to educational establishments or not for profit organisations including other businesses
Department for Education,DEPARTMENT FOR EDUCATION,13/09/2017,Grants,System Reform Group,LEICESTERSHIRE COUNTY COUNCIL,1041009489,30700,Grants to local authorities / other establishments within aggregate external funding or aggregate exchequer grant
Department for Education,NATIONAL COLLEGE FOR TEACHING & LEADERSHIP,04/09/2017,Grants,Operations Directorate,LEICESTERSHIRE SECONDARY SCITT,1041008298,46609.47,Grants to educational establishments or not for profit organisations including other businesses
Department for Education,DEPARTMENT FOR EDUCATION,13/09/2017,Grants,System Reform Group,LINCOLNSHIRE COUNTY COUNCIL,1041009420,53367,Grants to local authorities / other establishments within aggregate external funding or aggregate exchequer grant
Department for Education,NATIONAL COLLEGE FOR TEACHING & LEADERSHIP,04/09/2017,Grants,Operations Directorate,LINCOLNSHIRE TEACHING SCHOOL ALLIANCE,1041008532,34394.49,Grants to educational establishments or not for profit organisations including other businesses
Department for Education,DEPARTMENT FOR EDUCATION,11/09/2017,Grants,Academies Regional Delivery Group,LINGFIELD EDUCATION TRUST,1041009078,70000,Grants to educational establishments or not for profit organisations including other businesses
Department for Education,NATIONAL COLLEGE FOR TEACHING & LEADERSHIP,04/09/2017,Grants,Operations Directorate,LIVERPOOL HOPE UNIVERSITY,1041008366,263793.51,Grants to educational establishments or not for profit organisations including other businesses
Department for Education,NATIONAL COLLEGE FOR TEACHING & LEADERSHIP,04/09/2017,Grants,Operations Directorate,LIVERPOOL JOHN MOORES UNIVERSITY,1041008627,311651.46,Grants to educational establishments or not for profit organisations including other businesses
Department for Education,DEPARTMENT FOR EDUCATION,07/09/2017,Grants,Strategy and Social Mobility and Opportunity Areas Group,LONDON BOROUGH OF EALING COUNCIL,1041008832,42374,Grants to local authorities / other establishments within aggregate external funding or aggregate exchequer grant
Department for Education,DEPARTMENT FOR EDUCATION,15/09/2017,Grants,Early Years Group,LONDON BOROUGH OF NEWHAM,1041009757,457654.82,Grants to local authorities / other establishments within aggregate external funding or aggregate exchequer grant
Department for Education,DEPARTMENT FOR EDUCATION,07/09/2017,Grants,Strategy and Social Mobility and Opportunity Areas Group,LONDON BOROUGH OF SOUTHWARK COUNCIL,1041008842,48000,Grants to local authorities / other establishments within aggregate external funding or aggregate exchequer grant
Department for Education,NATIONAL COLLEGE FOR TEACHING & LEADERSHIP,04/09/2017,Grants,Operations Directorate,LONDON METROPOLITAN UNIVERSITY,1041008493,131826.96,Grants to educational establishments or not for profit organisations including other businesses
Department for Education,NATIONAL COLLEGE FOR TEACHING & LEADERSHIP,04/09/2017,Grants,Operations Directorate,LOUGHBOROUGH UNIVERSITY ENTERPRISE LTD,1041008521,37800,Grants to educational establishments or not for profit organisations including other businesses
Department for Education,NATIONAL COLLEGE FOR TEACHING & LEADERSHIP,19/09/2017,Grants,Delivery Directorate,LUDWICK NURSERY SCHOOL,1041009939,40000,Grants to educational establishments or not for profit organisations including other businesses
Department for Education,NATIONAL COLLEGE FOR TEACHING & LEADERSHIP,19/09/2017,Grants,Delivery Directorate,LYONS HALL PRIMARY SCHOOL TS,1041009907,40000,Grants to educational establishments or not for profit organisations including other businesses
Department for Education,NATIONAL COLLEGE FOR TEACHING & LEADERSHIP,12/09/2017,Grants,Delivery Directorate,MAIDEN ERLEGH SCHOOL,1041009132,40000,Grants to educational establishments or not for profit organisations including other businesses
Department for Education,DEPARTMENT FOR EDUCATION,04/09/2017,Grants,Strategy and Social Mobility and Opportunity Areas Group,MANCHESTER CITY COUNCIL,1041008522,263868,Grants to local authorities / other establishments within aggregate external funding or aggregate exchequer grant
Department for Education,NATIONAL COLLEGE FOR TEACHING & LEADERSHIP,04/09/2017,Grants,Operations Directorate,MANCHESTER METROPOLITAN UNIVERSITY,1041008344,604517.58,Grants to educational establishments or not for profit organisations including other businesses
Department for Education,NATIONAL COLLEGE FOR TEACHING & LEADERSHIP,04/09/2017,Grants,Operations Directorate,MANCHESTER NEXUS SCITT,1041008427,40934.97,Grants to educational establishments or not for profit organisations including other businesses
Department for Education,NATIONAL COLLEGE FOR TEACHING & LEADERSHIP,12/09/2017,Grants,Delivery Directorate,MAPLEFIELDS ACADEMY,1041009158,40000,Grants to educational establishments or not for profit organisations including other businesses
Department for Education,DEPARTMENT FOR EDUCATION,04/09/2017,Grants,Academies Regional Delivery Group,MARKET FIELD LEARNING COMMUNITY,1041008449,70000,Grants to educational establishments or not for profit organisations including other businesses
Department for Education,DEPARTMENT FOR EDUCATION,14/09/2017,Grants,Free Schools Group,MARKET FIELD SCHOOL,1041009623,30000,Grants to educational establishments or not for profit organisations including other businesses
Department for Education,NATIONAL COLLEGE FOR TEACHING & LEADERSHIP,26/09/2017,Grants,Delivery Directorate,MARLBROOK PRIMARY SCHOOL,1041010729,40000,Grants to educational establishments or not for profit organisations including other businesses
Department for Education,NATIONAL COLLEGE FOR TEACHING & LEADERSHIP,12/09/2017,Grants,Delivery Directorate,MARLING SCHOOL,1041009122,40000,Grants to educational establishments or not for profit organisations including other businesses
Department for Education,NATIONAL COLLEGE FOR TEACHING & LEADERSHIP,04/09/2017,Grants,Operations Directorate,MID ESSEX INITIAL TEACHER TRAINING,1041008429,35475.03,Grants to educational establishments or not for profit organisations including other businesses
Department for Education,NATIONAL COLLEGE FOR TEACHING & LEADERSHIP,04/09/2017,Grants,Operations Directorate,MID SOMERSET CONSORTIUM FOR TEACHER TRAINING,1041008511,53479.53,Grants to educational establishments or not for profit organisations including other businesses
Department for Education,NATIONAL COLLEGE FOR TEACHING & LEADERSHIP,04/09/2017,Grants,Operations Directorate,MIDDLESEX UNIVERSITY,1041008327,114888.78,Grants to educational establishments or not for profit organisations including other businesses
Department for Education,NATIONAL COLLEGE FOR TEACHING & LEADERSHIP,12/09/2017,Grants,Delivery Directorate,MONTPELIER PRIMARY SCHOOL,1041009093,50000,Grants to educational establishments or not for profit organisations including other businesses
Department for Education,NATIONAL COLLEGE FOR TEACHING & LEADERSHIP,04/09/2017,Grants,Delivery Directorate,MOUNTS BAY ACADEMY,1041008582,40000,Grants to educational establishments or not for profit organisations including other businesses
Department for Education,DEPARTMENT FOR EDUCATION,22/09/2017,Grants,Student Finance and Analysis Group,NATIONAL ASSEMBLY FOR WALES,30000091,8467963,Current grant funding to other government departments for DfE's contribution to jointly funded programmes 
Department for Education,DEPARTMENT FOR EDUCATION,20/09/2017,Grants,Early Years Group,NATIONAL CHILDRENS BUREAU,1041010190,61688.53,Grants to educational establishments or not for profit organisations including other businesses
Department for Education,DEPARTMENT FOR EDUCATION,27/09/2017,Grants,Early Years Group,NATIONAL DAY NURSERIES ASSOCIATION,1041010818,29149.44,Grants to educational establishments or not for profit organisations including other businesses
Department for Education,DEPARTMENT FOR EDUCATION,27/09/2017,Grants,Early Years Group,NATIONAL DAY NURSERIES ASSOCIATION,1041010818,25057.8,Grants to educational establishments or not for profit organisations including other businesses
Department for Education,DEPARTMENT FOR EDUCATION,28/09/2017,Grants,Strategic Analysis and Research Group,NATIONAL FOUNDATION FOR EDUCATIONAL RESEARCH,1041010965,24005,Provision of boarding activities - other costs
Department for Education,DEPARTMENT FOR EDUCATION,12/09/2017,Grants,System Reform Group,NATIONAL GOVERNORS ASSOCIATION,1041009148,118880,Grants to educational establishments or not for profit organisations including other businesses
Department for Education,DEPARTMENT FOR EDUCATION,13/09/2017,Grants,"Accountability, Curriculum and Qualifications Group",NATIONAL SOCIETY C OF E,1041009546,179650,Grants to educational establishments or not for profit organisations including other businesses
Department for Education,DEPARTMENT FOR EDUCATION,18/09/2017,Grants,Academies Regional Delivery Group,NET ACADEMIES TRUST,1041009844,70000,Grants to educational establishments or not for profit organisations including other businesses
Department for Education,NATIONAL COLLEGE FOR TEACHING & LEADERSHIP,04/09/2017,Grants,Delivery Directorate,NEW COLLEGE EDUCATIONAL TRUST,1041008534,40000,Grants to educational establishments or not for profit organisations including other businesses
Department for Education,DEPARTMENT FOR EDUCATION,14/09/2017,Grants,Free Schools Group,NEW SCHOOLS NETWORK,1041009693,214294.23,Grants to educational establishments or not for profit organisations including other businesses
Department for Education,DEPARTMENT FOR EDUCATION,27/09/2017,Grants,Academies Regional Delivery Group,NEWCASTLE BRIDGES SCHOOL,1041010779,35000,Grants to educational establishments or not for profit organisations including other businesses
Department for Education,NATIONAL COLLEGE FOR TEACHING & LEADERSHIP,04/09/2017,Grants,Operations Directorate,NEWMAN COLLEGE,1041008301,108659.43,Grants to educational establishments or not for profit organisations including other businesses
Department for Education,NATIONAL COLLEGE FOR TEACHING & LEADERSHIP,12/09/2017,Grants,Delivery Directorate,NEWPORT COMMUNITY SCHOOL,1041009113,36925,Grants to educational establishments or not for profit organisations including other businesses
Department for Education,DEPARTMENT FOR EDUCATION,13/09/2017,Grants,System Reform Group,NORFOLK COUNTY COUNCIL,1041009380,55692,Grants to local authorities / other establishments within aggregate external funding or aggregate exchequer grant
Department for Education,NATIONAL COLLEGE FOR TEACHING & LEADERSHIP,04/09/2017,Grants,Operations Directorate,NORTH BEDS SCITT CONSORTIUM,1041008282,53248.86,Grants to educational establishments or not for profit organisations including other businesses
Department for Education,NATIONAL COLLEGE FOR TEACHING & LEADERSHIP,04/09/2017,Grants,Operations Directorate,NORTH ESSEX TEACHER TRAINING,1041008622,30852.18,Grants to educational establishments or not for profit organisations including other businesses
Department for Education,DEPARTMENT FOR EDUCATION,11/09/2017,Grants,Academies Regional Delivery Group,NORTH HAMPSHIRE EDUCATION ALLIANCE,1041009060,150000,Grants to educational establishments or not for profit organisations including other businesses
Department for Education,DEPARTMENT FOR EDUCATION,13/09/2017,Grants,System Reform Group,NORTH YORKSHIRE COUNTY COUNCIL,1041009519,26417,Grants to local authorities / other establishments within aggregate external funding or aggregate exchequer grant
Department for Education,NATIONAL COLLEGE FOR TEACHING & LEADERSHIP,04/09/2017,Grants,Operations Directorate,NORTHAMPTON TEACHER TRAINING,1041008621,25785,Grants to educational establishments or not for profit organisations including other businesses
Department for Education,DEPARTMENT FOR EDUCATION,14/09/2017,Grants,System Reform Group,NORTHAMPTONSHIRE COUNTY COUNCIL,1041009725,28467,Grants to local authorities / other establishments within aggregate external funding or aggregate exchequer grant
Department for Education,DEPARTMENT FOR EDUCATION,20/09/2017,Grants,Strategy and Social Mobility and Opportunity Areas Group,NORTHAMPTONSHIRE COUNTY COUNCIL,1041010189,144859.61,Grants to local authorities / other establishments within aggregate external funding or aggregate exchequer grant
Department for Education,NATIONAL COLLEGE FOR TEACHING & LEADERSHIP,04/09/2017,Grants,Operations Directorate,NORWICH CITY COLLEGE,1041008337,45060.03,Grants to educational establishments or not for profit organisations including other businesses
Department for Education,NATIONAL COLLEGE FOR TEACHING & LEADERSHIP,04/09/2017,Grants,Operations Directorate,NOTRE DAME HIGH SCHOOL,1041008513,42305.94,Grants to educational establishments or not for profit organisations including other businesses
Department for Education,NATIONAL COLLEGE FOR TEACHING & LEADERSHIP,04/09/2017,Grants,Operations Directorate,NOTTINGHAM TRENT UNIVERSITY,1041008435,128817.45,Grants to educational establishments or not for profit organisations including other businesses
Department for Education,DEPARTMENT FOR EDUCATION,07/09/2017,Grants,Strategy and Social Mobility and Opportunity Areas Group,NOTTINGHAMSHIRE COUNTY COUNCIL,1041008839,47593.34,Grants to local authorities / other establishments within aggregate external funding or aggregate exchequer grant
Department for Education,DEPARTMENT FOR EDUCATION,13/09/2017,Grants,System Reform Group,NOTTINGHAMSHIRE COUNTY COUNCIL,1041009343,35167,Grants to local authorities / other establishments within aggregate external funding or aggregate exchequer grant
Department for Education,NATIONAL COLLEGE FOR TEACHING & LEADERSHIP,04/09/2017,Grants,Operations Directorate,NOTTINGHAMSHIRE TORCH SCITT,1041008531,46746,Grants to educational establishments or not for profit organisations including other businesses
Department for Education,NATIONAL COLLEGE FOR TEACHING & LEADERSHIP,26/09/2017,Grants,Delivery Directorate,OAKDENE PRIMARY SCHOOL,1041010706,40000,Grants to educational establishments or not for profit organisations including other businesses
Department for Education,NATIONAL COLLEGE FOR TEACHING & LEADERSHIP,26/09/2017,Grants,Delivery Directorate,OAKWOOD ACADEMY,1041010580,50000,Grants to educational establishments or not for profit organisations including other businesses
Department for Education,NATIONAL COLLEGE FOR TEACHING & LEADERSHIP,04/09/2017,Grants,Delivery Directorate,OASIS ACADEMY LIMESIDE,1041008403,40000,Grants to educational establishments or not for profit organisations including other businesses
Department for Education,DEPARTMENT FOR EDUCATION,21/09/2017,Grants,Higher Education Strategy and Policy Group,OFFICE FOR FAIR ACCESS,30000089,185000,Current grants paid to organisations including arms length bodies and educational establishments
Department for Education,DEPARTMENT FOR EDUCATION,11/09/2017,Grants,Strategy and Social Mobility and Opportunity Areas Group,OFFICE OF THE CHILDRENS COMMISSIONER,30000081,236445.75,Current grants paid to organisations including arms length bodies and educational establishments
Department for Education,NATIONAL COLLEGE FOR TEACHING & LEADERSHIP,20/09/2017,Grants,Delivery Directorate,OLDHAM SIXTH FORM COLLEGE,1041010206,60000,Grants to educational establishments or not for profit organisations including other businesses
Department for Education,NATIONAL COLLEGE FOR TEACHING & LEADERSHIP,12/09/2017,Grants,Delivery Directorate,OUR LADY & ST HUBERTS CATHOLIC PRIMARY SCHOOL,1041009180,40000,Grants to educational establishments or not for profit organisations including other businesses
Department for Education,NATIONAL COLLEGE FOR TEACHING & LEADERSHIP,12/09/2017,Grants,Delivery Directorate,OUR LADYS BISHOP ETON SCHOOL,1041009127,40000,Grants to educational establishments or not for profit organisations including other businesses
Department for Education,NATIONAL COLLEGE FOR TEACHING & LEADERSHIP,04/09/2017,Grants,Delivery Directorate,OUR LADYS CATHOLIC HIGH SCHOOL,1041008296,40000,Grants to educational establishments or not for profit organisations including other businesses
Department for Education,DEPARTMENT FOR EDUCATION,05/09/2017,Grants,Academies Regional Delivery Group,OVAL LEARNING TRUST,1041008639,70000,Grants to educational establishments or not for profit organisations including other businesses
Department for Education,NATIONAL COLLEGE FOR TEACHING & LEADERSHIP,04/09/2017,Grants,Operations Directorate,OXFORD BROOKES UNIVERSITY,1041008286,40065.21,Grants to educational establishments or not for profit organisations including other businesses
Department for Education,DEPARTMENT FOR EDUCATION,13/09/2017,Grants,System Reform Group,OXFORDSHIRE COUNTY COUNCIL,1041009382,26775,Grants to local authorities / other establishments within aggregate external funding or aggregate exchequer grant
Department for Education,NATIONAL COLLEGE FOR TEACHING & LEADERSHIP,04/09/2017,Grants,Operations Directorate,PADDINGTON ACADEMY,1041008519,48977.73,Grants to educational establishments or not for profit organisations including other businesses
Department for Education,DEPARTMENT FOR EDUCATION,28/09/2017,Grants,Academies Regional Delivery Group,PARKSIDE ACADEMY,1041010964,25000,Grants to educational establishments or not for profit organisations including other businesses
Department for Education,NATIONAL COLLEGE FOR TEACHING & LEADERSHIP,04/09/2017,Grants,Operations Directorate,PARTNERSHIP LONDON SCITT,1041008294,32711.67,Grants to educational establishments or not for profit organisations including other businesses
Department for Education,NATIONAL COLLEGE FOR TEACHING & LEADERSHIP,04/09/2017,Grants,Operations Directorate,PENINSULA TEACHER TRAINING CORNWALL SCITT,1041008478,33599.97,Grants to educational establishments or not for profit organisations including other businesses
Department for Education,DEPARTMENT FOR EDUCATION,05/09/2017,Grants,Academies Regional Delivery Group,PLATANOS COLLEGE,1041008665,110000,Grants to educational establishments or not for profit organisations including other businesses
Department for Education,NATIONAL COLLEGE FOR TEACHING & LEADERSHIP,19/09/2017,Grants,Delivery Directorate,PLATT BRIDGE COMMUNITY SCHOOL,1041009888,40000,Grants to educational establishments or not for profit organisations including other businesses
Department for Education,NATIONAL COLLEGE FOR TEACHING & LEADERSHIP,04/09/2017,Grants,Operations Directorate,POOLE SECONDARY SCHOOLS,1041008598,31529.97,Grants to educational establishments or not for profit organisations including other businesses
Department for Education,DEPARTMENT FOR EDUCATION,27/09/2017,Grants,Early Years Group,PORTSMOUTH CITY COUNCIL,1041010855,488392.04,Grants to local authorities / other establishments within aggregate external funding or aggregate exchequer grant
Department for Education,DEPARTMENT FOR EDUCATION,13/09/2017,Grants,Academies Regional Delivery Group,PRESTOLEE PRIMARY SCHOOL,1041009450,25000,Grants to educational establishments or not for profit organisations including other businesses
Department for Education,NATIONAL COLLEGE FOR TEACHING & LEADERSHIP,04/09/2017,Grants,Delivery Directorate,PRIORY COMMUNITY SCHOOL,1041008420,50000,Grants to educational establishments or not for profit organisations including other businesses
Department for Education,DEPARTMENT FOR EDUCATION,14/09/2017,Grants,Academies Regional Delivery Group,PUSS BANK SCHOOL,1041009624,25000,Grants to educational establishments or not for profit organisations including other businesses
Department for Education,DEPARTMENT FOR EDUCATION,18/09/2017,Grants,Academies Regional Delivery Group,QUALITY FIRST EDUCATION TRUST,1041009858,65000,Grants to educational establishments or not for profit organisations including other businesses
Department for Education,NATIONAL COLLEGE FOR TEACHING & LEADERSHIP,26/09/2017,Grants,Delivery Directorate,QUEEN ELIZABETH II SILVER JUBILEE SCHOOL,1041010660,50000,Grants to educational establishments or not for profit organisations including other businesses
Department for Education,NATIONAL COLLEGE FOR TEACHING & LEADERSHIP,04/09/2017,Grants,Operations Directorate,RED KITE TEACHER TRAINING,1041008293,77415.75,Grants to educational establishments or not for profit organisations including other businesses
Department for Education,NATIONAL COLLEGE FOR TEACHING & LEADERSHIP,19/09/2017,Grants,Delivery Directorate,REIGATE SCHOOL,1041010048,40000,Grants to educational establishments or not for profit organisations including other businesses
Department for Education,NATIONAL COLLEGE FOR TEACHING & LEADERSHIP,19/09/2017,Grants,Delivery Directorate,RINGWOOD SCHOOL,1041009990,40000,Grants to educational establishments or not for profit organisations including other businesses
Department for Education,NATIONAL COLLEGE FOR TEACHING & LEADERSHIP,04/09/2017,Grants,Operations Directorate,RIPLEY ST THOMAS CE HIGH SCHOOL,1041008330,32389.11,Grants to educational establishments or not for profit organisations including other businesses
Department for Education,NATIONAL COLLEGE FOR TEACHING & LEADERSHIP,26/09/2017,Grants,Delivery Directorate,RIPLEY ST THOMAS CE HIGH SCHOOL TS ACCOUNT,1041010667,40000,Grants to educational establishments or not for profit organisations including other businesses
Department for Education,DEPARTMENT FOR EDUCATION,14/09/2017,Grants,Academies Regional Delivery Group,RIVERSIDE PRIMARY SCHOOL,1041009680,25000,Grants to educational establishments or not for profit organisations including other businesses
Department for Education,DEPARTMENT FOR EDUCATION,04/09/2017,Grants,Academies Regional Delivery Group,ROCKLANDS SCHOOL,1041008525,25000,Grants to educational establishments or not for profit organisations including other businesses
Department for Education,DEPARTMENT FOR EDUCATION,18/09/2017,Grants,Academies Regional Delivery Group,ROSCOE PRIMARY SCHOOL,1041009856,25000,Grants to educational establishments or not for profit organisations including other businesses
Department for Education,NATIONAL COLLEGE FOR TEACHING & LEADERSHIP,26/09/2017,Grants,Delivery Directorate,RUSHEY MEAD SCHOOL,1041010721,40000,Grants to educational establishments or not for profit organisations including other businesses
Department for Education,NATIONAL COLLEGE FOR TEACHING & LEADERSHIP,19/09/2017,Grants,Delivery Directorate,SACRED HEART HIGH SCHOOL,1041009959,40000,Grants to educational establishments or not for profit organisations including other businesses
Department for Education,NATIONAL COLLEGE FOR TEACHING & LEADERSHIP,04/09/2017,Grants,Operations Directorate,SACRED HEART NEWCASTLE SCITT,1041008333,39331.53,Grants to educational establishments or not for profit organisations including other businesses
Department for Education,NATIONAL COLLEGE FOR TEACHING & LEADERSHIP,19/09/2017,Grants,Delivery Directorate,SAFFRON WALDEN COMMUNITY HIGH SCHOOL TS ACCOUNT,1041010088,40000,Grants to educational establishments or not for profit organisations including other businesses
Department for Education,NATIONAL COLLEGE FOR TEACHING & LEADERSHIP,19/09/2017,Grants,Delivery Directorate,SALOP TEACHING SCHOOL ALLIANCE,1041009971,40000,Grants to educational establishments or not for profit organisations including other businesses
Department for Education,DEPARTMENT FOR EDUCATION,08/09/2017,Grants,Strategy and Social Mobility and Opportunity Areas Group,SANDWELL MBC,1041008919,1315697.5,Grants to local authorities / other establishments within aggregate external funding or aggregate exchequer grant
Department for Education,DEPARTMENT FOR EDUCATION,14/09/2017,Grants,Free Schools Group,SARACENS MULTI ACADEMY TRUST,1041009678,30000,Grants to educational establishments or not for profit organisations including other businesses
Department for Education,DEPARTMENT FOR EDUCATION,18/09/2017,Grants,Free Schools Group,SARACENS MULTI ACADEMY TRUST,1041009860,67500,Grants to educational establishments or not for profit organisations including other businesses
Department for Education,DEPARTMENT FOR EDUCATION,13/09/2017,Grants,Strategy and Social Mobility and Opportunity Areas Group,SHEFFIELD CITY COUNCIL,1041009514,233185,Grants to local authorities / other establishments within aggregate external funding or aggregate exchequer grant
Department for Education,NATIONAL COLLEGE FOR TEACHING & LEADERSHIP,04/09/2017,Grants,Operations Directorate,SHEFFIELD HALLAM UNIVERSITY,1041008496,316496.61,Grants to educational establishments or not for profit organisations including other businesses
Department for Education,DEPARTMENT FOR EDUCATION,28/09/2017,Grants,Academies Regional Delivery Group,SHEFFIELD SOUTH EAST TRUST,1041010939,70000,Grants to educational establishments or not for profit organisations including other businesses
Department for Education,NATIONAL COLLEGE FOR TEACHING & LEADERSHIP,25/09/2017,Grants,Delivery Directorate,SHENLEY BROOK END SCHOOL,1041010484,30000,Grants to educational establishments or not for profit organisations including other businesses
Department for Education,NATIONAL COLLEGE FOR TEACHING & LEADERSHIP,04/09/2017,Grants,Delivery Directorate,SHERINGHAM COMMUNITY PRIMARY SCHOOL,1041008535,40000,Grants to educational establishments or not for profit organisations including other businesses
Department for Education,NATIONAL COLLEGE FOR TEACHING & LEADERSHIP,04/09/2017,Grants,Operations Directorate,SHOTTON HALL SCITT,1041008383,88395.03,Grants to educational establishments or not for profit organisations including other businesses
Department for Education,DEPARTMENT FOR EDUCATION,27/09/2017,Grants,Academies Regional Delivery Group,SIR CHARLES PARSONS SCHOOL,1041010781,25000,Grants to educational establishments or not for profit organisations including other businesses
Department for Education,NATIONAL COLLEGE FOR TEACHING & LEADERSHIP,19/09/2017,Grants,Delivery Directorate,SIR THOMAS RICHS SCHOOL,1041010001,50000,Grants to educational establishments or not for profit organisations including other businesses
Department for Education,NATIONAL COLLEGE FOR TEACHING & LEADERSHIP,12/09/2017,Grants,Delivery Directorate,SIR WILLIAM BORLASES GRAMMAR SCHOOL,1041009125,40000,Grants to educational establishments or not for profit organisations including other businesses
Department for Education,NATIONAL COLLEGE FOR TEACHING & LEADERSHIP,19/09/2017,Grants,Delivery Directorate,SIRIUS ACADEMY,1041009952,40000,Grants to educational establishments or not for profit organisations including other businesses
Department for Education,NATIONAL COLLEGE FOR TEACHING & LEADERSHIP,04/09/2017,Grants,Operations Directorate,SKIPTON GIRLS HIGH SCHOOL,1041008287,29804.76,Grants to educational establishments or not for profit organisations including other businesses
Department for Education,DEPARTMENT FOR EDUCATION,04/09/2017,Grants,Strategy and Social Mobility and Opportunity Areas Group,SLOUGH CHILDRENS SERVICES TRUST LTD,1041008456,258341,Grants to local authorities / other establishments within aggregate external funding or aggregate exchequer grant
Department for Education,DEPARTMENT FOR EDUCATION,20/09/2017,Grants,Strategy and Social Mobility and Opportunity Areas Group,SLOUGH CHILDRENS SERVICES TRUST LTD,1041010118,227296.53,Grants to local authorities / other establishments within aggregate external funding or aggregate exchequer grant
Department for Education,DEPARTMENT FOR EDUCATION,13/09/2017,Grants,System Reform Group,SOMERSET COUNTY COUNCIL,1041009383,32308,Grants to local authorities / other establishments within aggregate external funding or aggregate exchequer grant
Department for Education,NATIONAL COLLEGE FOR TEACHING & LEADERSHIP,12/09/2017,Grants,Delivery Directorate,SOUTH BROMSGROVE COMMUNITY HIGH SCHOOL,1041009194,40000,Grants to educational establishments or not for profit organisations including other businesses
Department for Education,DEPARTMENT FOR EDUCATION,11/09/2017,Grants,Free Schools Group,SOUTH DARTMOOR,1041009058,30000,Grants to educational establishments or not for profit organisations including other businesses
Department for Education,NATIONAL COLLEGE FOR TEACHING & LEADERSHIP,19/09/2017,Grants,Delivery Directorate,SOUTH HUNSLEY SCHOOL,1041009948,40000,Grants to educational establishments or not for profit organisations including other businesses
Department for Education,NATIONAL COLLEGE FOR TEACHING & LEADERSHIP,04/09/2017,Grants,Delivery Directorate,SOUTH NOTTINGHAM CATHOLIC ACADEMY TRUST,1041008584,40000,Grants to educational establishments or not for profit organisations including other businesses
Department for Education,NATIONAL COLLEGE FOR TEACHING & LEADERSHIP,04/09/2017,Grants,Operations Directorate,SOUTHEND HIGH SCHOOL FOR GIRLS,1041008309,34486.74,Grants to educational establishments or not for profit organisations including other businesses
Department for Education,NATIONAL COLLEGE FOR TEACHING & LEADERSHIP,19/09/2017,Grants,Delivery Directorate,SPRINGFIELD COMMUNITY PRIMARY SCHOOL,1041009908,40000,Grants to educational establishments or not for profit organisations including other businesses
Department for Education,NATIONAL COLLEGE FOR TEACHING & LEADERSHIP,12/09/2017,Grants,Delivery Directorate,SPRINGWELL SCHOOL,1041009099,40000,Grants to educational establishments or not for profit organisations including other businesses
Department for Education,NATIONAL COLLEGE FOR TEACHING & LEADERSHIP,04/09/2017,Grants,Delivery Directorate,ST BEDE CE PRIMARY SCHOOL,1041008347,40000,Grants to educational establishments or not for profit organisations including other businesses
Department for Education,NATIONAL COLLEGE FOR TEACHING & LEADERSHIP,04/09/2017,Grants,Delivery Directorate,ST BEDE'S CATHOLIC SCHOOL & SIXTH FORM CENTRE,1041008575,40000,Grants to educational establishments or not for profit organisations including other businesses
Department for Education,NATIONAL COLLEGE FOR TEACHING & LEADERSHIP,04/09/2017,Grants,Delivery Directorate,ST BERNARDS CATHOLIC HIGH SCHOOL TS ACCOUNT,1041008340,40000,Grants to educational establishments or not for profit organisations including other businesses
Department for Education,NATIONAL COLLEGE FOR TEACHING & LEADERSHIP,19/09/2017,Grants,Delivery Directorate,ST BONAVENTURES CATHOLIC SCHOOL,1041009927,50000,Grants to educational establishments or not for profit organisations including other businesses
Department for Education,NATIONAL COLLEGE FOR TEACHING & LEADERSHIP,12/09/2017,Grants,Delivery Directorate,ST CUTHBERTS CATHOLIC HIGH SCHOOL,1041009250,60000,Grants to educational establishments or not for profit organisations including other businesses
Department for Education,NATIONAL COLLEGE FOR TEACHING & LEADERSHIP,04/09/2017,Grants,Operations Directorate,ST GEORGES ACADEMY SCITT,1041008596,26962.47,Grants to educational establishments or not for profit organisations including other businesses
Department for Education,NATIONAL COLLEGE FOR TEACHING & LEADERSHIP,19/09/2017,Grants,Delivery Directorate,ST GEORGES COFE PRIMARY SCHOOL CHORLEY,1041010000,40000,Grants to educational establishments or not for profit organisations including other businesses
Department for Education,DEPARTMENT FOR EDUCATION,18/09/2017,Grants,Academies Regional Delivery Group,ST GREGORY THE GREAT CATHOLIC ACADEMY TRUST,1041009859,70000,Grants to educational establishments or not for profit organisations including other businesses
Department for Education,DEPARTMENT FOR EDUCATION,28/09/2017,Grants,Academies Regional Delivery Group,ST GREGORY THE GREAT CATHOLIC ACADEMY TRUST,1041010869,85600,Grants to educational establishments or not for profit organisations including other businesses
Department for Education,NATIONAL COLLEGE FOR TEACHING & LEADERSHIP,12/09/2017,Grants,Delivery Directorate,ST JAMES COFE HIGH SCHOOL TS ACC,1041009195,40000,Grants to educational establishments or not for profit organisations including other businesses
Department for Education,NATIONAL COLLEGE FOR TEACHING & LEADERSHIP,26/09/2017,Grants,Delivery Directorate,ST JOHN THE BAPTIST SCHOOL,1041010728,40000,Grants to educational establishments or not for profit organisations including other businesses
Department for Education,NATIONAL COLLEGE FOR TEACHING & LEADERSHIP,04/09/2017,Grants,Operations Directorate,ST JOSEPH'S COLLEGE,1041008512,25483.5,Grants to educational establishments or not for profit organisations including other businesses
Department for Education,NATIONAL COLLEGE FOR TEACHING & LEADERSHIP,26/09/2017,Grants,Delivery Directorate,ST MARTINS SCHOOL,1041010696,40000,Grants to educational establishments or not for profit organisations including other businesses
Department for Education,NATIONAL COLLEGE FOR TEACHING & LEADERSHIP,01/09/2017,Grants,Operations Directorate,ST MARY & ST PAULS CE PRIMARY SCHOOL TS ACCOUNT,1041008186,162233.91,Grants to educational establishments or not for profit organisations including other businesses
Department for Education,NATIONAL COLLEGE FOR TEACHING & LEADERSHIP,12/09/2017,Grants,Delivery Directorate,ST MARY & ST THOMAS CE PRIMARY SCHOOL,1041009225,40000,Grants to educational establishments or not for profit organisations including other businesses
Department for Education,NATIONAL COLLEGE FOR TEACHING & LEADERSHIP,04/09/2017,Grants,Operations Directorate,ST MARYS UNIVERSITY COLLEGE,1041008461,257368.32,Grants to educational establishments or not for profit organisations including other businesses
Department for Education,NATIONAL COLLEGE FOR TEACHING & LEADERSHIP,04/09/2017,Grants,Delivery Directorate,ST MONICA'S RC HIGH SCHOOL SPECIALIST LANGUAGE COL,1041008487,40000,Grants to educational establishments or not for profit organisations including other businesses
Department for Education,NATIONAL COLLEGE FOR TEACHING & LEADERSHIP,04/09/2017,Grants,Delivery Directorate,ST NICHOLAS CATHOLIC PRIMARY SCHOOL,1041008310,50000,Grants to educational establishments or not for profit organisations including other businesses
Department for Education,NATIONAL COLLEGE FOR TEACHING & LEADERSHIP,19/09/2017,Grants,Delivery Directorate,ST PETERS CATHOLIC PRIMARY SCHOOL TS ACCOUNT ONLY,1041010071,40000,Grants to educational establishments or not for profit organisations including other businesses
Department for Education,NATIONAL COLLEGE FOR TEACHING & LEADERSHIP,26/09/2017,Grants,Delivery Directorate,ST PETERS CE PRIMARY SCHOOL,1041010666,60000,Grants to educational establishments or not for profit organisations including other businesses
Department for Education,NATIONAL COLLEGE FOR TEACHING & LEADERSHIP,12/09/2017,Grants,Delivery Directorate,ST PETERS CE PRIMARY SCHOOL TS ACCOUNT,1041009218,40000,Grants to educational establishments or not for profit organisations including other businesses
Department for Education,NATIONAL COLLEGE FOR TEACHING & LEADERSHIP,19/09/2017,Grants,Delivery Directorate,ST THOMAS MORE CATHOLIC PRIMARY SCHOOL,1041009930,40000,Grants to educational establishments or not for profit organisations including other businesses
Department for Education,NATIONAL COLLEGE FOR TEACHING & LEADERSHIP,12/09/2017,Grants,Delivery Directorate,ST THOMAS MORE CATHOLIC SCHOOL,1041009159,40000,Grants to educational establishments or not for profit organisations including other businesses
Department for Education,NATIONAL COLLEGE FOR TEACHING & LEADERSHIP,19/09/2017,Grants,Delivery Directorate,ST THOMAS MORE CATHOLIC SCHOOL,1041009940,40000,Grants to educational establishments or not for profit organisations including other businesses
Department for Education,NATIONAL COLLEGE FOR TEACHING & LEADERSHIP,19/09/2017,Grants,Delivery Directorate,ST THOMAS MORE CATHOLIC SCHOOL,1041009953,40000,Grants to educational establishments or not for profit organisations including other businesses
Department for Education,NATIONAL COLLEGE FOR TEACHING & LEADERSHIP,12/09/2017,Grants,Delivery Directorate,ST WILFREDS RC COLLEGE,1041009116,50000,Grants to educational establishments or not for profit organisations including other businesses
Department for Education,DEPARTMENT FOR EDUCATION,13/09/2017,Grants,Strategy and Social Mobility and Opportunity Areas Group,STAFFORDSHIRE COUNCIL,1041009453,106658,Grants to local authorities / other establishments within aggregate external funding or aggregate exchequer grant
Department for Education,DEPARTMENT FOR EDUCATION,22/09/2017,Grants,Early Years Group,STAFFORDSHIRE COUNCIL,1041010361,384360.91,Grants to local authorities / other establishments within aggregate external funding or aggregate exchequer grant
Department for Education,NATIONAL COLLEGE FOR TEACHING & LEADERSHIP,04/09/2017,Grants,Operations Directorate,STAFFORDSHIRE UNIVERSITY,1041008559,64654.11,Grants to educational establishments or not for profit organisations including other businesses
Department for Education,DEPARTMENT FOR EDUCATION,11/09/2017,Grants,Academies Regional Delivery Group,STEPHEN SUTTON MULTI ACADEMY TRUST,1041008987,25000,Grants to educational establishments or not for profit organisations including other businesses
Department for Education,NATIONAL COLLEGE FOR TEACHING & LEADERSHIP,04/09/2017,Grants,Operations Directorate,STOURPORT HIGH SCHOOL,1041008486,25296.93,Grants to educational establishments or not for profit organisations including other businesses
Department for Education,DEPARTMENT FOR EDUCATION,22/09/2017,Grants,Student Finance and Analysis Group,STUDENT AWARDS AGENCY FOR SCOTLAND SAAS,30000090,11962678,Current grant funding to other government departments for DfE's contribution to jointly funded programmes 
Department for Education,DEPARTMENT FOR EDUCATION,01/09/2017,Grants,Student Finance and Analysis Group,STUDENT LOANS CO LTD INVEST TO SAVE,30000071,16883210.53,Current grants paid to organisations including arms length bodies and educational establishments
Department for Education,DEPARTMENT FOR EDUCATION,01/09/2017,Grants,Student Finance and Analysis Group,STUDENT LOANS CO LTD INVEST TO SAVE,30000071,3359796.62,Current grants paid to organisations including arms length bodies and educational establishments
Department for Education,NATIONAL COLLEGE FOR TEACHING & LEADERSHIP,04/09/2017,Grants,Operations Directorate,SUFFOLK COUNTY COUNCIL,1041008516,26913.78,Grants to educational establishments or not for profit organisations including other businesses
Department for Education,DEPARTMENT FOR EDUCATION,13/09/2017,Grants,System Reform Group,SUFFOLK COUNTY COUNCIL,1041009400,45425,Grants to local authorities / other establishments within aggregate external funding or aggregate exchequer grant
Department for Education,NATIONAL COLLEGE FOR TEACHING & LEADERSHIP,04/09/2017,Grants,Operations Directorate,SUTTON PARK SCITT,1041008479,25957.44,Grants to educational establishments or not for profit organisations including other businesses
Department for Education,NATIONAL COLLEGE FOR TEACHING & LEADERSHIP,04/09/2017,Grants,Operations Directorate,SUTTON SCITT,1041008408,49825.53,Grants to educational establishments or not for profit organisations including other businesses
Department for Education,DEPARTMENT FOR EDUCATION,20/09/2017,Grants,Early Years Group,SWINDON BOROUGH COUNCIL,1041010171,311800,Grants to local authorities / other establishments within aggregate external funding or aggregate exchequer grant
Department for Education,NATIONAL COLLEGE FOR TEACHING & LEADERSHIP,12/09/2017,Grants,Delivery Directorate,TAUHEEDUL ISLAM GIRLS HIGH SCHOOL & SIXTH FORM COLLEGE,1041009156,40000,Grants to educational establishments or not for profit organisations including other businesses
Department for Education,NATIONAL COLLEGE FOR TEACHING & LEADERSHIP,04/09/2017,Grants,Operations Directorate,TEACH SOUTHEAST,1041008270,79498.62,Grants to educational establishments or not for profit organisations including other businesses
Department for Education,DEPARTMENT FOR EDUCATION,14/09/2017,Grants,Academies Regional Delivery Group,TEAM MULTI ACADEMY TRUST,1041009681,25000,Grants to educational establishments or not for profit organisations including other businesses
Department for Education,DEPARTMENT FOR EDUCATION,14/09/2017,Grants,Academies Regional Delivery Group,TEAM MULTI ACADEMY TRUST,1041009681,25000,Grants to educational establishments or not for profit organisations including other businesses
Department for Education,NATIONAL COLLEGE FOR TEACHING & LEADERSHIP,04/09/2017,Grants,Delivery Directorate,THE ARNEWOOD SCHOOL,1041008373,40000,Grants to educational establishments or not for profit organisations including other businesses
Department for Education,NATIONAL COLLEGE FOR TEACHING & LEADERSHIP,04/09/2017,Grants,Operations Directorate,THE ARTHUR TERRY SCHOOL SCITT,1041008411,46012.5,Grants to educational establishments or not for profit organisations including other businesses
Department for Education,NATIONAL COLLEGE FOR TEACHING & LEADERSHIP,25/09/2017,Grants,Delivery Directorate,THE BEACON SCHOOL,1041010481,36240,Grants to educational establishments or not for profit organisations including other businesses
Department for Education,NATIONAL COLLEGE FOR TEACHING & LEADERSHIP,26/09/2017,Grants,Delivery Directorate,THE BLUE COAT SCHOOL,1041010558,36613,Grants to educational establishments or not for profit organisations including other businesses
Department for Education,DEPARTMENT FOR EDUCATION,05/09/2017,Grants,Free Schools Group,THE BLUE KITE ACADEMY TRUST,1041008651,30000,Grants to educational establishments or not for profit organisations including other businesses
Department for Education,DEPARTMENT FOR EDUCATION,14/09/2017,Grants,Free Schools Group,THE BRIDGE SATELLITES,1041009687,220000,Grants to educational establishments or not for profit organisations including other businesses
Department for Education,NATIONAL COLLEGE FOR TEACHING & LEADERSHIP,04/09/2017,Grants,Operations Directorate,THE CAMBRIDGE PARTNERSHIP,1041008556,30330.09,Grants to educational establishments or not for profit organisations including other businesses
Department for Education,DEPARTMENT FOR EDUCATION,07/09/2017,Grants,Careers and Further Education Funding Group,THE CAREERS & ENTERPRISE COMPANY,1041008893,1689237,Grants to educational establishments or not for profit organisations including other businesses
Department for Education,DEPARTMENT FOR EDUCATION,14/09/2017,Grants,Academies Regional Delivery Group,THE CHALLENGE ACADEMY TRUST,1041009698,80000,Grants to educational establishments or not for profit organisations including other businesses
Department for Education,NATIONAL COLLEGE FOR TEACHING & LEADERSHIP,04/09/2017,Grants,Operations Directorate,THE COLLEGE OF ST MARK & ST JOHN,1041008343,104815.98,Grants to educational establishments or not for profit organisations including other businesses
Department for Education,DEPARTMENT FOR EDUCATION,05/09/2017,Grants,Free Schools Group,THE COLLEGIATE ACADEMY TRUST,1041008713,30000,Grants to educational establishments or not for profit organisations including other businesses
Department for Education,DEPARTMENT FOR EDUCATION,05/09/2017,Grants,Free Schools Group,THE COLLEGIATE ACADEMY TRUST,1041008713,30000,Grants to educational establishments or not for profit organisations including other businesses
Department for Education,DEPARTMENT FOR EDUCATION,05/09/2017,Grants,Free Schools Group,THE COLLEGIATE ACADEMY TRUST,1041008713,30000,Grants to educational establishments or not for profit organisations including other businesses
Department for Education,DEPARTMENT FOR EDUCATION,11/09/2017,Grants,Academies Regional Delivery Group,THE COLLEGIATE ACADEMY TRUST,1041009069,70000,Grants to educational establishments or not for profit organisations including other businesses
Department for Education,NATIONAL COLLEGE FOR TEACHING & LEADERSHIP,19/09/2017,Grants,Delivery Directorate,THE CRYPT SCHOOL TS ACCOUNT,1041010090,34777,Grants to educational establishments or not for profit organisations including other businesses
Department for Education,DEPARTMENT FOR EDUCATION,11/09/2017,Grants,Academies Regional Delivery Group,THE DIOCESE OF COVENTRY,1041009016,25000,Grants to educational establishments or not for profit organisations including other businesses
Department for Education,DEPARTMENT FOR EDUCATION,27/09/2017,Grants,Academies Regional Delivery Group,THE DIOCESE OF COVENTRY,1041010784,25000,Grants to educational establishments or not for profit organisations including other businesses
Department for Education,DEPARTMENT FOR EDUCATION,27/09/2017,Grants,Academies Regional Delivery Group,THE DIOCESE OF COVENTRY,1041010784,25000,Grants to educational establishments or not for profit organisations including other businesses
Department for Education,DEPARTMENT FOR EDUCATION,13/09/2017,Grants,Academies Regional Delivery Group,THE DIOCESE OF GLOUCESTER ACADEMIES TRUST,1041009449,25000,Grants to educational establishments or not for profit organisations including other businesses
Department for Education,DEPARTMENT FOR EDUCATION,14/09/2017,Grants,Academies Regional Delivery Group,THE DIOCESE OF LIVERPOOL ACADEMIES TRUST,1041009660,25000,Grants to educational establishments or not for profit organisations including other businesses
Department for Education,DEPARTMENT FOR EDUCATION,05/09/2017,Grants,Free Schools Group,THE EDEN ACADEMY CENTRAL FUND NO3,1041008711,30000,Grants to educational establishments or not for profit organisations including other businesses
Department for Education,DEPARTMENT FOR EDUCATION,14/09/2017,Grants,Free Schools Group,THE EDEN ACADEMY CENTRAL FUND NO3,1041009697,30000,Grants to educational establishments or not for profit organisations including other businesses
Department for Education,DEPARTMENT FOR EDUCATION,29/09/2017,Grants,Special Educational Needs and Disadvantage Group,THE FAMILY FUND TRUST,1041010988,2397000,Grants to educational establishments or not for profit organisations including other businesses
Department for Education,DEPARTMENT FOR EDUCATION,11/09/2017,Grants,Free Schools Group,THE FLAGSHIP SCHOOL,1041009059,30000,Grants to educational establishments or not for profit organisations including other businesses
Department for Education,NATIONAL COLLEGE FOR TEACHING & LEADERSHIP,04/09/2017,Grants,Operations Directorate,THE GREATER MANCHESTER BRIGHT FUTURES TRUST,1041008430,26038.89,Grants to educational establishments or not for profit organisations including other businesses
Department for Education,NATIONAL COLLEGE FOR TEACHING & LEADERSHIP,26/09/2017,Grants,Delivery Directorate,THE GREETLAND ACADEMY,1041010562,40000,Grants to educational establishments or not for profit organisations including other businesses
Department for Education,NATIONAL COLLEGE FOR TEACHING & LEADERSHIP,27/09/2017,Grants,Delivery Directorate,THE GREETLAND ACADEMY,1041010737,41106.25,Grants to educational establishments or not for profit organisations including other businesses
Department for Education,NATIONAL COLLEGE FOR TEACHING & LEADERSHIP,20/09/2017,Grants,Delivery Directorate,THE GRYPHON SCHOOL,1041010146,60000,Grants to educational establishments or not for profit organisations including other businesses
Department for Education,NATIONAL COLLEGE FOR TEACHING & LEADERSHIP,12/09/2017,Grants,Delivery Directorate,THE HAMMOND ACADEMY,1041009089,40000,Grants to educational establishments or not for profit organisations including other businesses
Department for Education,DEPARTMENT FOR EDUCATION,14/09/2017,Grants,Free Schools Group,THE HAWKSMOOR LEARNING TRUST,1041009605,25000,Grants to educational establishments or not for profit organisations including other businesses
Department for Education,NATIONAL COLLEGE FOR TEACHING & LEADERSHIP,19/09/2017,Grants,Delivery Directorate,THE HERTFORDSHIRE & ESSEX HIGH SCHOOL & SCIENCE COLLEGE,1041009917,40000,Grants to educational establishments or not for profit organisations including other businesses
Department for Education,DEPARTMENT FOR EDUCATION,07/09/2017,Grants,"Accountability, Curriculum and Qualifications Group",THE HOLOCAUST EDUCATIONAL TRUST,1041008843,523756,Grants to educational establishments or not for profit organisations including other businesses
Department for Education,NATIONAL COLLEGE FOR TEACHING & LEADERSHIP,04/09/2017,Grants,Operations Directorate,THE KEMNAL ACADEMIES TRUST,1041008326,29805.03,Grants to educational establishments or not for profit organisations including other businesses
Department for Education,NATIONAL COLLEGE FOR TEACHING & LEADERSHIP,04/09/2017,Grants,Operations Directorate,THE MORLEY ACADEMY,1041008423,122046.48,Grants to educational establishments or not for profit organisations including other businesses
Department for Education,NATIONAL COLLEGE FOR TEACHING & LEADERSHIP,04/09/2017,Grants,Operations Directorate,THE NATIONAL MODERN LANGUAGES SCITT,1041008425,33750,Grants to educational establishments or not for profit organisations including other businesses
Department for Education,NATIONAL COLLEGE FOR TEACHING & LEADERSHIP,04/09/2017,Grants,Operations Directorate,THE OAKS SCITT,1041008595,66217.5,Grants to educational establishments or not for profit organisations including other businesses
Department for Education,DEPARTMENT FOR EDUCATION,22/09/2017,Grants,Free Schools Group,THE PILGRIM SCHOOL,1041010426,30000,Grants to educational establishments or not for profit organisations including other businesses
Department for Education,NATIONAL COLLEGE FOR TEACHING & LEADERSHIP,04/09/2017,Grants,Delivery Directorate,THE POLESWORTH SCHOOL,1041008434,50000,Grants to educational establishments or not for profit organisations including other businesses
Department for Education,NATIONAL COLLEGE FOR TEACHING & LEADERSHIP,26/09/2017,Grants,Delivery Directorate,THE ROCHESTER GRAMMAR SCHOOL,1041010659,33300,Grants to educational establishments or not for profit organisations including other businesses
Department for Education,NATIONAL COLLEGE FOR TEACHING & LEADERSHIP,04/09/2017,Grants,Operations Directorate,THE ROYAL LATIN SCHOOL,1041008604,37439.01,Grants to educational establishments or not for profit organisations including other businesses
Department for Education,DEPARTMENT FOR EDUCATION,14/09/2017,Grants,Free Schools Group,THE SABDEN MULTI ACADEMY TRUST,1041009632,30000,Grants to educational establishments or not for profit organisations including other businesses
Department for Education,NATIONAL COLLEGE FOR TEACHING & LEADERSHIP,26/09/2017,Grants,Delivery Directorate,THE SABDEN MULTI ACADEMY TRUST,1041010605,40000,Grants to educational establishments or not for profit organisations including other businesses
Department for Education,DEPARTMENT FOR EDUCATION,13/09/2017,Grants,Academies Regional Delivery Group,THE SAXON CROSSES MAT,1041009262,25000,Grants to educational establishments or not for profit organisations including other businesses
Department for Education,DEPARTMENT FOR EDUCATION,27/09/2017,Grants,Academies Regional Delivery Group,THE SOVEREIGN TRUST,1041010773,80000,Grants to educational establishments or not for profit organisations including other businesses
Department for Education,DEPARTMENT FOR EDUCATION,04/09/2017,Grants,Academies Regional Delivery Group,THE SPIRE CE LEARNING TRUST,1041008404,70000,Grants to educational establishments or not for profit organisations including other businesses
Department for Education,NATIONAL COLLEGE FOR TEACHING & LEADERSHIP,19/09/2017,Grants,Delivery Directorate,THE STREETLY ACADEMY,1041009978,39328,Grants to educational establishments or not for profit organisations including other businesses
Department for Education,DEPARTMENT FOR EDUCATION,04/09/2017,Grants,Academies Regional Delivery Group,THE SWEYNE PARK SCHOOL,1041008278,75000,Grants to educational establishments or not for profit organisations including other businesses
Department for Education,DEPARTMENT FOR EDUCATION,07/09/2017,Grants,Strategy and Social Mobility and Opportunity Areas Group,THE TAVISTOCK & PORTMAN NHS FOUNDATION TRUST,1041008906,126737,Grants to educational establishments or not for profit organisations including other businesses
Department for Education,DEPARTMENT FOR EDUCATION,22/09/2017,Grants,Free Schools Group,THE THINKING SCHOOLS ACADEMY TRUST,1041010429,30000,Grants to educational establishments or not for profit organisations including other businesses
Department for Education,DEPARTMENT FOR EDUCATION,11/09/2017,Grants,Academies Regional Delivery Group,THE TILIAN PARTNERSHIP,1041009073,70000,Grants to educational establishments or not for profit organisations including other businesses
Department for Education,DEPARTMENT FOR EDUCATION,13/09/2017,Grants,Academies Regional Delivery Group,THE TILIAN PARTNERSHIP,1041009328,70000,Grants to educational establishments or not for profit organisations including other businesses
Department for Education,NATIONAL COLLEGE FOR TEACHING & LEADERSHIP,04/09/2017,Grants,Operations Directorate,THE UNIVERSITY OF MANCHESTER,1041008520,290333.16,Grants to educational establishments or not for profit organisations including other businesses
Department for Education,NATIONAL COLLEGE FOR TEACHING & LEADERSHIP,04/09/2017,Grants,Operations Directorate,THE UNIVERSITY OF READING,1041008325,291798.54,Grants to educational establishments or not for profit organisations including other businesses
Department for Education,NATIONAL COLLEGE FOR TEACHING & LEADERSHIP,26/09/2017,Grants,Delivery Directorate,THE WESTLANDS SCHOOL,1041010572,40000,Grants to educational establishments or not for profit organisations including other businesses
Department for Education,NATIONAL COLLEGE FOR TEACHING & LEADERSHIP,27/09/2017,Grants,Delivery Directorate,THE WILLINK SCHOOL,1041010770,60000,Grants to educational establishments or not for profit organisations including other businesses
Department for Education,NATIONAL COLLEGE FOR TEACHING & LEADERSHIP,12/09/2017,Grants,Delivery Directorate,THE WROXHAM SCHOOL TS ACCOUNT,1041009237,40000,Grants to educational establishments or not for profit organisations including other businesses
Department for Education,NATIONAL COLLEGE FOR TEACHING & LEADERSHIP,12/09/2017,Grants,Delivery Directorate,THOMAS ESTLEY COMMUNITY COLLEGE,1041009259,40000,Grants to educational establishments or not for profit organisations including other businesses
Department for Education,NATIONAL COLLEGE FOR TEACHING & LEADERSHIP,04/09/2017,Grants,Operations Directorate,THORNDEN SCHOOL,1041008626,31158,Grants to educational establishments or not for profit organisations including other businesses
Department for Education,DEPARTMENT FOR EDUCATION,04/09/2017,Grants,Academies Regional Delivery Group,TOLLBAR MULTI ACADEMY TRUST,1041008362,70000,Grants to educational establishments or not for profit organisations including other businesses
Department for Education,NATIONAL COLLEGE FOR TEACHING & LEADERSHIP,19/09/2017,Grants,Delivery Directorate,TOR VIEW SCHOOL TS ACCOUNT,1041010087,40000,Grants to educational establishments or not for profit organisations including other businesses
Department for Education,NATIONAL COLLEGE FOR TEACHING & LEADERSHIP,04/09/2017,Grants,Operations Directorate,TRAIN TO TEACH AT SURREY & HANTS,1041008506,62522.28,Grants to educational establishments or not for profit organisations including other businesses
Department for Education,NATIONAL COLLEGE FOR TEACHING & LEADERSHIP,19/09/2017,Grants,Delivery Directorate,TRINITY ACADEMY HALIFAX,1041010033,40000,Grants to educational establishments or not for profit organisations including other businesses
Department for Education,NATIONAL COLLEGE FOR TEACHING & LEADERSHIP,20/09/2017,Grants,Delivery Directorate,TRURO NURSERY SCHOOL,1041010217,60000,Grants to educational establishments or not for profit organisations including other businesses
Department for Education,DEPARTMENT FOR EDUCATION,22/09/2017,Grants,Further Education Group,TUC,1041010424,1010403,Grants to educational establishments or not for profit organisations including other businesses
Department for Education,NATIONAL COLLEGE FOR TEACHING & LEADERSHIP,04/09/2017,Grants,Operations Directorate,TUDOR GRANGE ACADEMY SOLIHULL,1041008308,25920,Grants to educational establishments or not for profit organisations including other businesses
Department for Education,NATIONAL COLLEGE FOR TEACHING & LEADERSHIP,12/09/2017,Grants,Delivery Directorate,TWYFORD CE HIGH SCHOOL TS ACCOUNT,1041009216,40000,Grants to educational establishments or not for profit organisations including other businesses
Department for Education,NATIONAL COLLEGE FOR TEACHING & LEADERSHIP,04/09/2017,Grants,Operations Directorate,UCL INSTITUTE OF EDUCATION,1041008457,761286.96,Grants to educational establishments or not for profit organisations including other businesses
Department for Education,NATIONAL COLLEGE FOR TEACHING & LEADERSHIP,04/09/2017,Grants,Operations Directorate,UNIVERSITY OF BEDFORDSHIRE,1041008322,89868.69,Grants to educational establishments or not for profit organisations including other businesses
Department for Education,NATIONAL COLLEGE FOR TEACHING & LEADERSHIP,04/09/2017,Grants,Operations Directorate,UNIVERSITY OF BIRMINGHAM,1041008350,278625.15,Grants to educational establishments or not for profit organisations including other businesses
Department for Education,NATIONAL COLLEGE FOR TEACHING & LEADERSHIP,04/09/2017,Grants,Operations Directorate,UNIVERSITY OF BRIGHTON,1041008602,202629.51,Grants to educational establishments or not for profit organisations including other businesses
Department for Education,NATIONAL COLLEGE FOR TEACHING & LEADERSHIP,04/09/2017,Grants,Operations Directorate,UNIVERSITY OF BRISTOL,1041008471,269669.07,Grants to educational establishments or not for profit organisations including other businesses
Department for Education,NATIONAL COLLEGE FOR TEACHING & LEADERSHIP,04/09/2017,Grants,Operations Directorate,UNIVERSITY OF CAMBRIDGE,1041008372,242180.01,Grants to educational establishments or not for profit organisations including other businesses
Department for Education,NATIONAL COLLEGE FOR TEACHING & LEADERSHIP,04/09/2017,Grants,Operations Directorate,UNIVERSITY OF CHESTER,1041008396,225388.26,Grants to educational establishments or not for profit organisations including other businesses
Department for Education,NATIONAL COLLEGE FOR TEACHING & LEADERSHIP,04/09/2017,Grants,Operations Directorate,UNIVERSITY OF CHICHESTER,1041008599,96355.26,Grants to educational establishments or not for profit organisations including other businesses
Department for Education,NATIONAL COLLEGE FOR TEACHING & LEADERSHIP,04/09/2017,Grants,Operations Directorate,UNIVERSITY OF CUMBRIA,1041008321,264655.26,Grants to educational establishments or not for profit organisations including other businesses
Department for Education,NATIONAL COLLEGE FOR TEACHING & LEADERSHIP,04/09/2017,Grants,Operations Directorate,UNIVERSITY OF DERBY,1041008304,48698.37,Grants to educational establishments or not for profit organisations including other businesses
Department for Education,NATIONAL COLLEGE FOR TEACHING & LEADERSHIP,04/09/2017,Grants,Operations Directorate,UNIVERSITY OF DURHAM,1041008374,158045.13,Grants to educational establishments or not for profit organisations including other businesses
Department for Education,NATIONAL COLLEGE FOR TEACHING & LEADERSHIP,04/09/2017,Grants,Operations Directorate,UNIVERSITY OF EAST ANGLIA,1041008289,217363.14,Grants to educational establishments or not for profit organisations including other businesses
Department for Education,NATIONAL COLLEGE FOR TEACHING & LEADERSHIP,04/09/2017,Grants,Operations Directorate,UNIVERSITY OF EAST LONDON,1041008303,274978.26,Grants to educational establishments or not for profit organisations including other businesses
Department for Education,DEPARTMENT FOR EDUCATION,13/09/2017,Grants,Strategy and Social Mobility and Opportunity Areas Group,UNIVERSITY OF ESSEX,1041009394,25504.08,Grants to educational establishments or not for profit organisations including other businesses
Department for Education,NATIONAL COLLEGE FOR TEACHING & LEADERSHIP,04/09/2017,Grants,Operations Directorate,UNIVERSITY OF EXETER,1041008399,274521.06,Grants to educational establishments or not for profit organisations including other businesses
Department for Education,NATIONAL COLLEGE FOR TEACHING & LEADERSHIP,04/09/2017,Grants,Delivery Directorate,UNIVERSITY OF GLOUCESTERSHIRE,1041008302,28350,Grants to educational establishments or not for profit organisations including other businesses
Department for Education,NATIONAL COLLEGE FOR TEACHING & LEADERSHIP,04/09/2017,Grants,Operations Directorate,UNIVERSITY OF GLOUCESTERSHIRE,1041008302,25859.97,Grants to educational establishments or not for profit organisations including other businesses
Department for Education,NATIONAL COLLEGE FOR TEACHING & LEADERSHIP,04/09/2017,Grants,Operations Directorate,UNIVERSITY OF GREENWICH,1041008300,118127.88,Grants to educational establishments or not for profit organisations including other businesses
Department for Education,NATIONAL COLLEGE FOR TEACHING & LEADERSHIP,04/09/2017,Grants,Operations Directorate,UNIVERSITY OF HERTFORDSHIRE,1041008283,121189.14,Grants to educational establishments or not for profit organisations including other businesses
Department for Education,NATIONAL COLLEGE FOR TEACHING & LEADERSHIP,04/09/2017,Grants,Operations Directorate,UNIVERSITY OF HUDDERSFIELD,1041008566,100620.45,Grants to educational establishments or not for profit organisations including other businesses
Department for Education,NATIONAL COLLEGE FOR TEACHING & LEADERSHIP,01/09/2017,Grants,Operations Directorate,UNIVERSITY OF HULL,1041008210,91200,Grants to educational establishments or not for profit organisations including other businesses
Department for Education,NATIONAL COLLEGE FOR TEACHING & LEADERSHIP,04/09/2017,Grants,Operations Directorate,UNIVERSITY OF HULL,1041008281,141853.77,Grants to educational establishments or not for profit organisations including other businesses
Department for Education,NATIONAL COLLEGE FOR TEACHING & LEADERSHIP,04/09/2017,Grants,Operations Directorate,UNIVERSITY OF LEICESTER,1041008307,168214.23,Grants to educational establishments or not for profit organisations including other businesses
Department for Education,NATIONAL COLLEGE FOR TEACHING & LEADERSHIP,04/09/2017,Grants,Operations Directorate,UNIVERSITY OF NEWCASTLE UPON TYNE,1041008494,202935.51,Grants to educational establishments or not for profit organisations including other businesses
Department for Education,NATIONAL COLLEGE FOR TEACHING & LEADERSHIP,04/09/2017,Grants,Operations Directorate,UNIVERSITY OF NORTHUMBRIA,1041008280,29512.08,Grants to educational establishments or not for profit organisations including other businesses
Department for Education,NATIONAL COLLEGE FOR TEACHING & LEADERSHIP,04/09/2017,Grants,Operations Directorate,UNIVERSITY OF NOTTINGHAM,1041008323,233076.06,Grants to educational establishments or not for profit organisations including other businesses
Department for Education,NATIONAL COLLEGE FOR TEACHING & LEADERSHIP,04/09/2017,Grants,Operations Directorate,UNIVERSITY OF OXFORD,1041008279,265856.49,Grants to educational establishments or not for profit organisations including other businesses
Department for Education,NATIONAL COLLEGE FOR TEACHING & LEADERSHIP,04/09/2017,Grants,Operations Directorate,UNIVERSITY OF PLYMOUTH,1041008284,112277.7,Grants to educational establishments or not for profit organisations including other businesses
Department for Education,NATIONAL COLLEGE FOR TEACHING & LEADERSHIP,04/09/2017,Grants,Operations Directorate,UNIVERSITY OF PORTSMOUTH,1041008346,176673.24,Grants to educational establishments or not for profit organisations including other businesses
Department for Education,NATIONAL COLLEGE FOR TEACHING & LEADERSHIP,04/09/2017,Grants,Operations Directorate,UNIVERSITY OF ROEHAMPTON,1041008359,156384.45,Grants to educational establishments or not for profit organisations including other businesses
Department for Education,NATIONAL COLLEGE FOR TEACHING & LEADERSHIP,04/09/2017,Grants,Operations Directorate,UNIVERSITY OF SHEFFIELD,1041008586,205252.47,Grants to educational establishments or not for profit organisations including other businesses
Department for Education,NATIONAL COLLEGE FOR TEACHING & LEADERSHIP,04/09/2017,Grants,Operations Directorate,UNIVERSITY OF SOUTHAMPTON,1041008446,262807.02,Grants to educational establishments or not for profit organisations including other businesses
Department for Education,NATIONAL COLLEGE FOR TEACHING & LEADERSHIP,04/09/2017,Grants,Operations Directorate,UNIVERSITY OF SUNDERLAND,1041008620,136442.61,Grants to educational establishments or not for profit organisations including other businesses
Department for Education,NATIONAL COLLEGE FOR TEACHING & LEADERSHIP,01/09/2017,Grants,Operations Directorate,UNIVERSITY OF SUSSEX,1041008208,373805.31,Grants to educational establishments or not for profit organisations including other businesses
Department for Education,NATIONAL COLLEGE FOR TEACHING & LEADERSHIP,04/09/2017,Grants,Operations Directorate,UNIVERSITY OF SUSSEX,1041008619,297536.31,Grants to educational establishments or not for profit organisations including other businesses
Department for Education,NATIONAL COLLEGE FOR TEACHING & LEADERSHIP,04/09/2017,Grants,Operations Directorate,UNIVERSITY OF THE WEST OF ENGLAND,1041008421,160843.41,Grants to educational establishments or not for profit organisations including other businesses
Department for Education,NATIONAL COLLEGE FOR TEACHING & LEADERSHIP,04/09/2017,Grants,Operations Directorate,UNIVERSITY OF WARWICK,1041008484,277799.76,Grants to educational establishments or not for profit organisations including other businesses
Department for Education,NATIONAL COLLEGE FOR TEACHING & LEADERSHIP,04/09/2017,Grants,Operations Directorate,UNIVERSITY OF WINCHESTER,1041008370,49311.9,Grants to educational establishments or not for profit organisations including other businesses
Department for Education,NATIONAL COLLEGE FOR TEACHING & LEADERSHIP,01/09/2017,Grants,Operations Directorate,UNIVERSITY OF WOLVERHAMPTON,1041008260,33600.14,Grants to educational establishments or not for profit organisations including other businesses
Department for Education,NATIONAL COLLEGE FOR TEACHING & LEADERSHIP,04/09/2017,Grants,Operations Directorate,UNIVERSITY OF WOLVERHAMPTON,1041008305,172723.14,Grants to educational establishments or not for profit organisations including other businesses
Department for Education,NATIONAL COLLEGE FOR TEACHING & LEADERSHIP,04/09/2017,Grants,Operations Directorate,UNIVERSITY OF WORCESTER,1041008618,210897.18,Grants to educational establishments or not for profit organisations including other businesses
Department for Education,NATIONAL COLLEGE FOR TEACHING & LEADERSHIP,04/09/2017,Grants,Operations Directorate,UNIVERSITY OF YORK,1041008601,180280.98,Grants to educational establishments or not for profit organisations including other businesses
Department for Education,DEPARTMENT FOR EDUCATION,13/09/2017,Grants,Academies Regional Delivery Group,UPTON HEATH C OF E PRIMARY SCHOOL,1041009534,25000,Grants to educational establishments or not for profit organisations including other businesses
Department for Education,DEPARTMENT FOR EDUCATION,05/09/2017,Grants,Insight Resources and Transformation Group,US UK FULBRIGHT EDUCATIONAL COMMISSION,1041008636,250000,Grants to educational establishments or not for profit organisations including other businesses
Department for Education,NATIONAL COLLEGE FOR TEACHING & LEADERSHIP,19/09/2017,Grants,Delivery Directorate,VAUXHALL PRIMARY SCHOOL,1041010015,40000,Grants to educational establishments or not for profit organisations including other businesses
Department for Education,NATIONAL COLLEGE FOR TEACHING & LEADERSHIP,19/09/2017,Grants,Delivery Directorate,WALDEGRAVE SCHOOL FOR GIRLS,1041009951,40000,Grants to educational establishments or not for profit organisations including other businesses
Department for Education,NATIONAL COLLEGE FOR TEACHING & LEADERSHIP,12/09/2017,Grants,Delivery Directorate,WARREN ROAD PRIMARY SCHOOL,1041009226,40000,Grants to educational establishments or not for profit organisations including other businesses
Department for Education,NATIONAL COLLEGE FOR TEACHING & LEADERSHIP,19/09/2017,Grants,Delivery Directorate,WELLINGTON COLLEGE,1041010063,40000,Grants to educational establishments or not for profit organisations including other businesses
Department for Education,NATIONAL COLLEGE FOR TEACHING & LEADERSHIP,20/09/2017,Grants,Delivery Directorate,WEST LAKES ACADEMY,1041010178,60000,Grants to educational establishments or not for profit organisations including other businesses
Department for Education,DEPARTMENT FOR EDUCATION,13/09/2017,Grants,System Reform Group,WEST SUSSEX COUNTY COUNCIL,1041009334,29092,Grants to local authorities / other establishments within aggregate external funding or aggregate exchequer grant
Department for Education,NATIONAL COLLEGE FOR TEACHING & LEADERSHIP,19/09/2017,Grants,Delivery Directorate,WESTON COLLEGE,1041010050,50000,Grants to educational establishments or not for profit organisations including other businesses
Department for Education,NATIONAL COLLEGE FOR TEACHING & LEADERSHIP,19/09/2017,Grants,Delivery Directorate,WICKERSLEY SCHOOL & SPORTS COLLEGE,1041010049,40000,Grants to educational establishments or not for profit organisations including other businesses
Department for Education,DEPARTMENT FOR EDUCATION,15/09/2017,Grants,Early Years Group,WIGAN MBC,1041009750,540140.2,Grants to local authorities / other establishments within aggregate external funding or aggregate exchequer grant
Department for Education,DEPARTMENT FOR EDUCATION,25/09/2017,Grants,Strategy and Social Mobility and Opportunity Areas Group,WIGAN MBC,1041010479,123726.31,Grants to local authorities / other establishments within aggregate external funding or aggregate exchequer grant
Department for Education,NATIONAL COLLEGE FOR TEACHING & LEADERSHIP,19/09/2017,Grants,Delivery Directorate,WINDMILL PRIMARY SCHOOL,1041009964,50000,Grants to educational establishments or not for profit organisations including other businesses
Department for Education,DEPARTMENT FOR EDUCATION,05/09/2017,Grants,Academies Regional Delivery Group,WINDSOR ACADEMY TRUST,1041008637,56000,Grants to educational establishments or not for profit organisations including other businesses
Department for Education,NATIONAL COLLEGE FOR TEACHING & LEADERSHIP,19/09/2017,Grants,Delivery Directorate,WINDSOR GIRLS SCHOOL,1041010032,40000,Grants to educational establishments or not for profit organisations including other businesses
Department for Education,DEPARTMENT FOR EDUCATION,13/09/2017,Grants,System Reform Group,WORCESTERSHIRE COUNTY COUNCIL,1041009377,25167,Grants to local authorities / other establishments within aggregate external funding or aggregate exchequer grant
Department for Education,DEPARTMENT FOR EDUCATION,14/09/2017,Grants,Academies Regional Delivery Group,WYBURNS PRIMARY SCHOOL,1041009677,25000,Grants to educational establishments or not for profit organisations including other businesses
Department for Education,DEPARTMENT FOR EDUCATION,14/09/2017,Grants,Early Years Group,YORK CITY COUNCIL,1041009717,1214544,Grants to local authorities / other establishments within aggregate external funding or aggregate exchequer grant
Department for Education,NATIONAL COLLEGE FOR TEACHING & LEADERSHIP,04/09/2017,Grants,Operations Directorate,YORK ST JOHN UNIVERSITY,1041008555,31447.26,Grants to educational establishments or not for profit organisations including other businesses
Department for Education,NATIONAL COLLEGE FOR TEACHING & LEADERSHIP,04/09/2017,Grants,Operations Directorate,YORKSHIRE AND HUMBER TEACHER TRAINING,1041008313,32818.23,Grants to educational establishments or not for profit organisations including other businesses
Department for Education,DEPARTMENT FOR EDUCATION,27/09/2017,ICT,Digital and Technology Group,APPZERO SOFTWARE CORP,20000025,48896.74,ICT Software
Department for Education,DEPARTMENT FOR EDUCATION,06/09/2017,ICT,Data Group,CAPGEMINI UK PLC,1041008792,70700,ICT Services
Department for Education,DEPARTMENT FOR EDUCATION,22/09/2017,ICT,Digital and Technology Group,CAPGEMINI UK PLC,1041010359,-36370,ICT Software
Department for Education,DEPARTMENT FOR EDUCATION,22/09/2017,ICT,Digital and Technology Group,CAPGEMINI UK PLC,1041010359,30075,ICT Software
Department for Education,DEPARTMENT FOR EDUCATION,22/09/2017,ICT,Digital and Technology Group,CAPGEMINI UK PLC,1041010359,47115,ICT Software
Department for Education,DEPARTMENT FOR EDUCATION,22/09/2017,ICT,Digital and Technology Group,CAPGEMINI UK PLC,1041010359,64999,ICT Software
Department for Education,DEPARTMENT FOR EDUCATION,22/09/2017,ICT,Digital and Technology Group,CAPGEMINI UK PLC,1041010359,-7274,ICT Software
Department for Education,DEPARTMENT FOR EDUCATION,22/09/2017,ICT,Digital and Technology Group,CAPGEMINI UK PLC,1041010359,6015,ICT Software
Department for Education,DEPARTMENT FOR EDUCATION,22/09/2017,ICT,Digital and Technology Group,CAPGEMINI UK PLC,1041010359,9423,ICT Software
Department for Education,DEPARTMENT FOR EDUCATION,22/09/2017,ICT,Digital and Technology Group,CAPGEMINI UK PLC,1041010359,12999.8,ICT Software
Department for Education,DEPARTMENT FOR EDUCATION,22/09/2017,ICT,Digital and Technology Group,CAPGEMINI UK PLC,1041010359,-133121,ICT Software
Department for Education,DEPARTMENT FOR EDUCATION,22/09/2017,ICT,Digital and Technology Group,CAPGEMINI UK PLC,1041010359,217954.66,ICT Software
Department for Education,DEPARTMENT FOR EDUCATION,22/09/2017,ICT,Digital and Technology Group,CAPGEMINI UK PLC,1041010359,-26624.2,ICT Software
Department for Education,DEPARTMENT FOR EDUCATION,22/09/2017,ICT,Digital and Technology Group,CAPGEMINI UK PLC,1041010359,43590.93,ICT Software
Department for Education,DEPARTMENT FOR EDUCATION,13/09/2017,ICT,Careers and Further Education Funding Group,CAREERVISION LTD,1041009312,67762.5,ICT Services - hardware maintenance and support
Department for Education,DEPARTMENT FOR EDUCATION,04/09/2017,ICT,Digital and Technology Group,CDW LTD,1041008334,-40466.66,ICT Hardware
Department for Education,DEPARTMENT FOR EDUCATION,04/09/2017,ICT,Digital and Technology Group,CDW LTD,1041008334,8084.89,ICT Hardware
Department for Education,DEPARTMENT FOR EDUCATION,04/09/2017,ICT,Digital and Technology Group,CDW LTD,1041008334,51792.62,ICT Hardware
Department for Education,DEPARTMENT FOR EDUCATION,04/09/2017,ICT,Digital and Technology Group,CDW LTD,1041008334,-202333.32,ICT Hardware
Department for Education,DEPARTMENT FOR EDUCATION,04/09/2017,ICT,Digital and Technology Group,CDW LTD,1041008334,40424.45,ICT Hardware
Department for Education,DEPARTMENT FOR EDUCATION,04/09/2017,ICT,Digital and Technology Group,CDW LTD,1041008334,258963.12,ICT Hardware
Department for Education,DEPARTMENT FOR EDUCATION,25/09/2017,ICT,Digital and Technology Group,CDW LTD,1041010451,31606.07,ICT Services - hardware maintenance and support
Department for Education,DEPARTMENT FOR EDUCATION,25/09/2017,ICT,Digital and Technology Group,CDW LTD,1041010451,215573.03,ICT Services - hardware maintenance and support
Department for Education,DEPARTMENT FOR EDUCATION,25/09/2017,ICT,Digital and Technology Group,CDW LTD,1041010451,6321.21,ICT Services - hardware maintenance and support
Department for Education,DEPARTMENT FOR EDUCATION,25/09/2017,ICT,Digital and Technology Group,CDW LTD,1041010451,43114.61,ICT Services - hardware maintenance and support
Department for Education,DEPARTMENT FOR EDUCATION,08/09/2017,ICT,Ministerial and Public Communications Group,CONTENT SUPPORT SERVICES LTD,1041008969,97122.67,Networking systems
Department for Education,DEPARTMENT FOR EDUCATION,08/09/2017,ICT,Ministerial and Public Communications Group,CONTENT SUPPORT SERVICES LTD,1041008969,19424.54,Networking systems
Department for Education,DEPARTMENT FOR EDUCATION,12/09/2017,ICT,Digital and Technology Group,EDUSERV,1041009160,61882,ICT Services
Department for Education,DEPARTMENT FOR EDUCATION,01/09/2017,ICT,Digital and Technology Group,KYKLOUD,1041008163,37440,ICT Software
Department for Education,DEPARTMENT FOR EDUCATION,01/09/2017,ICT,Digital and Technology Group,KYKLOUD,1041008163,7488,ICT Software
Department for Education,DEPARTMENT FOR EDUCATION,05/09/2017,ICT,Digital and Technology Group,KYKLOUD,1041008645,21725,ICT Software
Department for Education,DEPARTMENT FOR EDUCATION,05/09/2017,ICT,Digital and Technology Group,KYKLOUD,1041008645,4345,ICT Software
Department for Education,DEPARTMENT FOR EDUCATION,25/09/2017,ICT,Digital and Technology Group,KYKLOUD,1041010447,22225,ICT Software
Department for Education,DEPARTMENT FOR EDUCATION,25/09/2017,ICT,Digital and Technology Group,KYKLOUD,1041010447,4445,ICT Software
Department for Education,DEPARTMENT FOR EDUCATION,18/09/2017,ICT,Digital and Technology Group,ORACLE CORPORATION UK LTD,1041009802,167942.32,ICT Software
Department for Education,DEPARTMENT FOR EDUCATION,18/09/2017,ICT,Digital and Technology Group,ORACLE CORPORATION UK LTD,1041009802,33588.47,ICT Software
Department for Education,DEPARTMENT FOR EDUCATION,26/09/2017,ICT,Digital and Technology Group,ORACLE CORPORATION UK LTD,1041010654,48291.84,ICT Software
Department for Education,DEPARTMENT FOR EDUCATION,26/09/2017,ICT,Digital and Technology Group,ORACLE CORPORATION UK LTD,1041010654,9658.37,ICT Software
Department for Education,DEPARTMENT FOR EDUCATION,28/09/2017,ICT,Digital and Technology Group,PROACT IT UK LTD,1041010874,144334.17,ICT Software
Department for Education,DEPARTMENT FOR EDUCATION,28/09/2017,ICT,Digital and Technology Group,PROACT IT UK LTD,1041010874,28866.83,ICT Software
Department for Education,DEPARTMENT FOR EDUCATION,26/09/2017,ICT,Finance and Commercial Group,SHARED SERVICES CONNECTED LTD,1041010649,28112,ICT Software
Department for Education,DEPARTMENT FOR EDUCATION,26/09/2017,ICT,Finance and Commercial Group,SHARED SERVICES CONNECTED LTD,1041010649,5622.4,ICT Software
Department for Education,DEPARTMENT FOR EDUCATION,28/09/2017,ICT,Digital and Technology Group,TRUSTMARQUE SOLUTIONS LTD,1041010987,30395,ICT Software
Department for Education,DEPARTMENT FOR EDUCATION,28/09/2017,ICT,Digital and Technology Group,TRUSTMARQUE SOLUTIONS LTD,1041010987,54282.5,ICT Software
Department for Education,DEPARTMENT FOR EDUCATION,28/09/2017,ICT,Digital and Technology Group,TRUSTMARQUE SOLUTIONS LTD,1041010987,6079,ICT Software
Department for Education,DEPARTMENT FOR EDUCATION,28/09/2017,ICT,Digital and Technology Group,TRUSTMARQUE SOLUTIONS LTD,1041010987,10856.5,ICT Software
Department for Education,DEPARTMENT FOR EDUCATION,29/09/2017,ICT,Digital and Technology Group,VODAFONE,1041011045,101322.26,ICT Services
Department for Education,DEPARTMENT FOR EDUCATION,27/09/2017,ICT,Government Equalities Office,VODAFONE CORPORATE,1041010854,10,Telecoms facilities and services - mobiles and pagers
Department for Education,DEPARTMENT FOR EDUCATION,27/09/2017,ICT,Government Equalities Office,VODAFONE CORPORATE,1041010854,10,Telecoms facilities and services - mobiles and pagers
Department for Education,DEPARTMENT FOR EDUCATION,27/09/2017,ICT,Government Equalities Office,VODAFONE CORPORATE,1041010854,10,Telecoms facilities and services - mobiles and pagers
Department for Education,DEPARTMENT FOR EDUCATION,27/09/2017,ICT,Government Equalities Office,VODAFONE CORPORATE,1041010854,10,Telecoms facilities and services - mobiles and pagers
Department for Education,DEPARTMENT FOR EDUCATION,27/09/2017,ICT,Government Equalities Office,VODAFONE CORPORATE,1041010854,10,Telecoms facilities and services - mobiles and pagers
Department for Education,DEPARTMENT FOR EDUCATION,27/09/2017,ICT,Government Equalities Office,VODAFONE CORPORATE,1041010854,9,Telecoms facilities and services - mobiles and pagers
Department for Education,DEPARTMENT FOR EDUCATION,27/09/2017,ICT,Government Equalities Office,VODAFONE CORPORATE,1041010854,10,Telecoms facilities and services - mobiles and pagers
Department for Education,DEPARTMENT FOR EDUCATION,27/09/2017,ICT,Government Equalities Office,VODAFONE CORPORATE,1041010854,10,Telecoms facilities and services - mobiles and pagers
Department for Education,DEPARTMENT FOR EDUCATION,27/09/2017,ICT,Government Equalities Office,VODAFONE CORPORATE,1041010854,10,Telecoms facilities and services - mobiles and pagers
Department for Education,DEPARTMENT FOR EDUCATION,27/09/2017,ICT,Government Equalities Office,VODAFONE CORPORATE,1041010854,10,Telecoms facilities and services - mobiles and pagers
Department for Education,DEPARTMENT FOR EDUCATION,27/09/2017,ICT,Government Equalities Office,VODAFONE CORPORATE,1041010854,10,Telecoms facilities and services - mobiles and pagers
Department for Education,DEPARTMENT FOR EDUCATION,27/09/2017,ICT,Government Equalities Office,VODAFONE CORPORATE,1041010854,10,Telecoms facilities and services - mobiles and pagers
Department for Education,DEPARTMENT FOR EDUCATION,27/09/2017,ICT,Government Equalities Office,VODAFONE CORPORATE,1041010854,10,Telecoms facilities and services - mobiles and pagers
Department for Education,DEPARTMENT FOR EDUCATION,27/09/2017,ICT,Government Equalities Office,VODAFONE CORPORATE,1041010854,4.67,Telecoms facilities and services - mobiles and pagers
Department for Education,DEPARTMENT FOR EDUCATION,27/09/2017,ICT,Government Equalities Office,VODAFONE CORPORATE,1041010854,10,Telecoms facilities and services - mobiles and pagers
Department for Education,DEPARTMENT FOR EDUCATION,27/09/2017,ICT,Government Equalities Office,VODAFONE CORPORATE,1041010854,10,Telecoms facilities and services - mobiles and pagers
Department for Education,DEPARTMENT FOR EDUCATION,27/09/2017,ICT,Government Equalities Office,VODAFONE CORPORATE,1041010854,10,Telecoms facilities and services - mobiles and pagers
Department for Education,DEPARTMENT FOR EDUCATION,27/09/2017,ICT,Government Equalities Office,VODAFONE CORPORATE,1041010854,10,Telecoms facilities and services - mobiles and pagers
Department for Education,DEPARTMENT FOR EDUCATION,27/09/2017,ICT,Government Equalities Office,VODAFONE CORPORATE,1041010854,30,Telecoms facilities and services - mobiles and pagers
Department for Education,DEPARTMENT FOR EDUCATION,27/09/2017,ICT,Government Equalities Office,VODAFONE CORPORATE,1041010854,10,Telecoms facilities and services - mobiles and pagers
Department for Education,DEPARTMENT FOR EDUCATION,27/09/2017,ICT,Government Equalities Office,VODAFONE CORPORATE,1041010854,10,Telecoms facilities and services - mobiles and pagers
Department for Education,DEPARTMENT FOR EDUCATION,27/09/2017,ICT,Government Equalities Office,VODAFONE CORPORATE,1041010854,10,Telecoms facilities and services - mobiles and pagers
Department for Education,DEPARTMENT FOR EDUCATION,27/09/2017,ICT,Government Equalities Office,VODAFONE CORPORATE,1041010854,42.73,Telecoms facilities and services - mobiles and pagers
Department for Education,DEPARTMENT FOR EDUCATION,27/09/2017,ICT,Communications Group,VODAFONE CORPORATE,1041010854,10,Telecoms facilities and services - mobiles and pagers
Department for Education,DEPARTMENT FOR EDUCATION,27/09/2017,ICT,Communications Group,VODAFONE CORPORATE,1041010854,10,Telecoms facilities and services - mobiles and pagers
Department for Education,DEPARTMENT FOR EDUCATION,27/09/2017,ICT,Communications Group,VODAFONE CORPORATE,1041010854,10,Telecoms facilities and services - mobiles and pagers
Department for Education,DEPARTMENT FOR EDUCATION,27/09/2017,ICT,Communications Group,VODAFONE CORPORATE,1041010854,10,Telecoms facilities and services - mobiles and pagers
Department for Education,DEPARTMENT FOR EDUCATION,27/09/2017,ICT,Communications Group,VODAFONE CORPORATE,1041010854,10,Telecoms facilities and services - mobiles and pagers
Department for Education,DEPARTMENT FOR EDUCATION,27/09/2017,ICT,Communications Group,VODAFONE CORPORATE,1041010854,10,Telecoms facilities and services - mobiles and pagers
Department for Education,DEPARTMENT FOR EDUCATION,27/09/2017,ICT,Communications Group,VODAFONE CORPORATE,1041010854,10,Telecoms facilities and services - mobiles and pagers
Department for Education,DEPARTMENT FOR EDUCATION,27/09/2017,ICT,Communications Group,VODAFONE CORPORATE,1041010854,10,Telecoms facilities and services - mobiles and pagers
Department for Education,DEPARTMENT FOR EDUCATION,27/09/2017,ICT,Communications Group,VODAFONE CORPORATE,1041010854,10,Telecoms facilities and services - mobiles and pagers
Department for Education,DEPARTMENT FOR EDUCATION,27/09/2017,ICT,Communications Group,VODAFONE CORPORATE,1041010854,10,Telecoms facilities and services - mobiles and pagers
Department for Education,DEPARTMENT FOR EDUCATION,27/09/2017,ICT,Communications Group,VODAFONE CORPORATE,1041010854,10,Telecoms facilities and services - mobiles and pagers
Department for Education,DEPARTMENT FOR EDUCATION,27/09/2017,ICT,Communications Group,VODAFONE CORPORATE,1041010854,10,Telecoms facilities and services - mobiles and pagers
Department for Education,DEPARTMENT FOR EDUCATION,27/09/2017,ICT,Communications Group,VODAFONE CORPORATE,1041010854,10.6,Telecoms facilities and services - mobiles and pagers
Department for Education,DEPARTMENT FOR EDUCATION,27/09/2017,ICT,Communications Group,VODAFONE CORPORATE,1041010854,10,Telecoms facilities and services - mobiles and pagers
Department for Education,DEPARTMENT FOR EDUCATION,27/09/2017,ICT,Communications Group,VODAFONE CORPORATE,1041010854,10,Telecoms facilities and services - mobiles and pagers
Department for Education,DEPARTMENT FOR EDUCATION,27/09/2017,ICT,Communications Group,VODAFONE CORPORATE,1041010854,10,Telecoms facilities and services - mobiles and pagers
Department for Education,DEPARTMENT FOR EDUCATION,27/09/2017,ICT,Communications Group,VODAFONE CORPORATE,1041010854,10,Telecoms facilities and services - mobiles and pagers
Department for Education,DEPARTMENT FOR EDUCATION,27/09/2017,ICT,Communications Group,VODAFONE CORPORATE,1041010854,10,Telecoms facilities and services - mobiles and pagers
Department for Education,DEPARTMENT FOR EDUCATION,27/09/2017,ICT,Communications Group,VODAFONE CORPORATE,1041010854,10,Telecoms facilities and services - mobiles and pagers
Department for Education,DEPARTMENT FOR EDUCATION,27/09/2017,ICT,Communications Group,VODAFONE CORPORATE,1041010854,10,Telecoms facilities and services - mobiles and pagers
Department for Education,DEPARTMENT FOR EDUCATION,27/09/2017,ICT,Communications Group,VODAFONE CORPORATE,1041010854,10,Telecoms facilities and services - mobiles and pagers
Department for Education,DEPARTMENT FOR EDUCATION,27/09/2017,ICT,Communications Group,VODAFONE CORPORATE,1041010854,10,Telecoms facilities and services - mobiles and pagers
Department for Education,DEPARTMENT FOR EDUCATION,27/09/2017,ICT,Communications Group,VODAFONE CORPORATE,1041010854,10,Telecoms facilities and services - mobiles and pagers
Department for Education,DEPARTMENT FOR EDUCATION,27/09/2017,ICT,Communications Group,VODAFONE CORPORATE,1041010854,10,Telecoms facilities and services - mobiles and pagers
Department for Education,DEPARTMENT FOR EDUCATION,27/09/2017,ICT,Communications Group,VODAFONE CORPORATE,1041010854,10,Telecoms facilities and services - mobiles and pagers
Department for Education,DEPARTMENT FOR EDUCATION,27/09/2017,ICT,Communications Group,VODAFONE CORPORATE,1041010854,10,Telecoms facilities and services - mobiles and pagers
Department for Education,DEPARTMENT FOR EDUCATION,27/09/2017,ICT,Communications Group,VODAFONE CORPORATE,1041010854,10,Telecoms facilities and services - mobiles and pagers
Department for Education,DEPARTMENT FOR EDUCATION,27/09/2017,ICT,Communications Group,VODAFONE CORPORATE,1041010854,10,Telecoms facilities and services - mobiles and pagers
Department for Education,DEPARTMENT FOR EDUCATION,27/09/2017,ICT,Communications Group,VODAFONE CORPORATE,1041010854,10,Telecoms facilities and services - mobiles and pagers
Department for Education,DEPARTMENT FOR EDUCATION,27/09/2017,ICT,Communications Group,VODAFONE CORPORATE,1041010854,10,Telecoms facilities and services - mobiles and pagers
Department for Education,DEPARTMENT FOR EDUCATION,27/09/2017,ICT,Communications Group,VODAFONE CORPORATE,1041010854,10,Telecoms facilities and services - mobiles and pagers
Department for Education,DEPARTMENT FOR EDUCATION,27/09/2017,ICT,Communications Group,VODAFONE CORPORATE,1041010854,12,Telecoms facilities and services - mobiles and pagers
Department for Education,DEPARTMENT FOR EDUCATION,27/09/2017,ICT,Communications Group,VODAFONE CORPORATE,1041010854,10,Telecoms facilities and services - mobiles and pagers
Department for Education,DEPARTMENT FOR EDUCATION,27/09/2017,ICT,Communications Group,VODAFONE CORPORATE,1041010854,10.22,Telecoms facilities and services - mobiles and pagers
Department for Education,DEPARTMENT FOR EDUCATION,27/09/2017,ICT,Communications Group,VODAFONE CORPORATE,1041010854,10,Telecoms facilities and services - mobiles and pagers
Department for Education,DEPARTMENT FOR EDUCATION,27/09/2017,ICT,Communications Group,VODAFONE CORPORATE,1041010854,10,Telecoms facilities and services - mobiles and pagers
Department for Education,DEPARTMENT FOR EDUCATION,27/09/2017,ICT,Communications Group,VODAFONE CORPORATE,1041010854,10,Telecoms facilities and services - mobiles and pagers
Department for Education,DEPARTMENT FOR EDUCATION,27/09/2017,ICT,Communications Group,VODAFONE CORPORATE,1041010854,10,Telecoms facilities and services - mobiles and pagers
Department for Education,DEPARTMENT FOR EDUCATION,27/09/2017,ICT,Communications Group,VODAFONE CORPORATE,1041010854,10,Telecoms facilities and services - mobiles and pagers
Department for Education,DEPARTMENT FOR EDUCATION,27/09/2017,ICT,Communications Group,VODAFONE CORPORATE,1041010854,10,Telecoms facilities and services - mobiles and pagers
Department for Education,DEPARTMENT FOR EDUCATION,27/09/2017,ICT,Communications Group,VODAFONE CORPORATE,1041010854,10,Telecoms facilities and services - mobiles and pagers
Department for Education,DEPARTMENT FOR EDUCATION,27/09/2017,ICT,Communications Group,VODAFONE CORPORATE,1041010854,10,Telecoms facilities and services - mobiles and pagers
Department for Education,DEPARTMENT FOR EDUCATION,27/09/2017,ICT,Communications Group,VODAFONE CORPORATE,1041010854,10,Telecoms facilities and services - mobiles and pagers
Department for Education,DEPARTMENT FOR EDUCATION,27/09/2017,ICT,Communications Group,VODAFONE CORPORATE,1041010854,10,Telecoms facilities and services - mobiles and pagers
Department for Education,DEPARTMENT FOR EDUCATION,27/09/2017,ICT,Communications Group,VODAFONE CORPORATE,1041010854,10,Telecoms facilities and services - mobiles and pagers
Department for Education,DEPARTMENT FOR EDUCATION,27/09/2017,ICT,Communications Group,VODAFONE CORPORATE,1041010854,10,Telecoms facilities and services - mobiles and pagers
Department for Education,DEPARTMENT FOR EDUCATION,27/09/2017,ICT,Communications Group,VODAFONE CORPORATE,1041010854,10,Telecoms facilities and services - mobiles and pagers
Department for Education,DEPARTMENT FOR EDUCATION,27/09/2017,ICT,Communications Group,VODAFONE CORPORATE,1041010854,9.32,Telecoms facilities and services - mobiles and pagers
Department for Education,DEPARTMENT FOR EDUCATION,27/09/2017,ICT,Communications Group,VODAFONE CORPORATE,1041010854,10,Telecoms facilities and services - mobiles and pagers
Department for Education,DEPARTMENT FOR EDUCATION,27/09/2017,ICT,Communications Group,VODAFONE CORPORATE,1041010854,10,Telecoms facilities and services - mobiles and pagers
Department for Education,DEPARTMENT FOR EDUCATION,27/09/2017,ICT,Communications Group,VODAFONE CORPORATE,1041010854,10,Telecoms facilities and services - mobiles and pagers
Department for Education,DEPARTMENT FOR EDUCATION,27/09/2017,ICT,Communications Group,VODAFONE CORPORATE,1041010854,10,Telecoms facilities and services - mobiles and pagers
Department for Education,DEPARTMENT FOR EDUCATION,27/09/2017,ICT,Communications Group,VODAFONE CORPORATE,1041010854,10,Telecoms facilities and services - mobiles and pagers
Department for Education,DEPARTMENT FOR EDUCATION,27/09/2017,ICT,Communications Group,VODAFONE CORPORATE,1041010854,10,Telecoms facilities and services - mobiles and pagers
Department for Education,DEPARTMENT FOR EDUCATION,27/09/2017,ICT,Communications Group,VODAFONE CORPORATE,1041010854,10,Telecoms facilities and services - mobiles and pagers
Department for Education,DEPARTMENT FOR EDUCATION,27/09/2017,ICT,Communications Group,VODAFONE CORPORATE,1041010854,15.57,Telecoms facilities and services - mobiles and pagers
Department for Education,DEPARTMENT FOR EDUCATION,27/09/2017,ICT,Communications Group,VODAFONE CORPORATE,1041010854,11.6,Telecoms facilities and services - mobiles and pagers
Department for Education,DEPARTMENT FOR EDUCATION,27/09/2017,ICT,Communications Group,VODAFONE CORPORATE,1041010854,10,Telecoms facilities and services - mobiles and pagers
Department for Education,DEPARTMENT FOR EDUCATION,27/09/2017,ICT,Communications Group,VODAFONE CORPORATE,1041010854,10,Telecoms facilities and services - mobiles and pagers
Department for Education,DEPARTMENT FOR EDUCATION,27/09/2017,ICT,Communications Group,VODAFONE CORPORATE,1041010854,10,Telecoms facilities and services - mobiles and pagers
Department for Education,DEPARTMENT FOR EDUCATION,27/09/2017,ICT,Communications Group,VODAFONE CORPORATE,1041010854,10,Telecoms facilities and services - mobiles and pagers
Department for Education,DEPARTMENT FOR EDUCATION,27/09/2017,ICT,Communications Group,VODAFONE CORPORATE,1041010854,10,Telecoms facilities and services - mobiles and pagers
Department for Education,DEPARTMENT FOR EDUCATION,27/09/2017,ICT,Communications Group,VODAFONE CORPORATE,1041010854,10,Telecoms facilities and services - mobiles and pagers
Department for Education,DEPARTMENT FOR EDUCATION,27/09/2017,ICT,Communications Group,VODAFONE CORPORATE,1041010854,10,Telecoms facilities and services - mobiles and pagers
Department for Education,DEPARTMENT FOR EDUCATION,27/09/2017,ICT,Communications Group,VODAFONE CORPORATE,1041010854,129.85,Telecoms facilities and services - mobiles and pagers
Department for Education,DEPARTMENT FOR EDUCATION,27/09/2017,ICT,"Social Care, Mobility and Equalities Directorate Support",VODAFONE CORPORATE,1041010854,10,Telecoms facilities and services - mobiles and pagers
Department for Education,DEPARTMENT FOR EDUCATION,27/09/2017,ICT,"Social Care, Mobility and Equalities Directorate Support",VODAFONE CORPORATE,1041010854,12,Telecoms facilities and services - mobiles and pagers
Department for Education,DEPARTMENT FOR EDUCATION,27/09/2017,ICT,"Social Care, Mobility and Equalities Directorate Support",VODAFONE CORPORATE,1041010854,4.4,Telecoms facilities and services - mobiles and pagers
Department for Education,DEPARTMENT FOR EDUCATION,27/09/2017,ICT,Children's Social Care Group,VODAFONE CORPORATE,1041010854,10,Telecoms facilities and services - mobiles and pagers
Department for Education,DEPARTMENT FOR EDUCATION,27/09/2017,ICT,Children's Social Care Group,VODAFONE CORPORATE,1041010854,10,Telecoms facilities and services - mobiles and pagers
Department for Education,DEPARTMENT FOR EDUCATION,27/09/2017,ICT,Children's Social Care Group,VODAFONE CORPORATE,1041010854,10,Telecoms facilities and services - mobiles and pagers
Department for Education,DEPARTMENT FOR EDUCATION,27/09/2017,ICT,Children's Social Care Group,VODAFONE CORPORATE,1041010854,10,Telecoms facilities and services - mobiles and pagers
Department for Education,DEPARTMENT FOR EDUCATION,27/09/2017,ICT,Children's Social Care Group,VODAFONE CORPORATE,1041010854,10,Telecoms facilities and services - mobiles and pagers
Department for Education,DEPARTMENT FOR EDUCATION,27/09/2017,ICT,Children's Social Care Group,VODAFONE CORPORATE,1041010854,10,Telecoms facilities and services - mobiles and pagers
Department for Education,DEPARTMENT FOR EDUCATION,27/09/2017,ICT,Children's Social Care Group,VODAFONE CORPORATE,1041010854,10,Telecoms facilities and services - mobiles and pagers
Department for Education,DEPARTMENT FOR EDUCATION,27/09/2017,ICT,Children's Social Care Group,VODAFONE CORPORATE,1041010854,10,Telecoms facilities and services - mobiles and pagers
Department for Education,DEPARTMENT FOR EDUCATION,27/09/2017,ICT,Children's Social Care Group,VODAFONE CORPORATE,1041010854,10,Telecoms facilities and services - mobiles and pagers
Department for Education,DEPARTMENT FOR EDUCATION,27/09/2017,ICT,Children's Social Care Group,VODAFONE CORPORATE,1041010854,10,Telecoms facilities and services - mobiles and pagers
Department for Education,DEPARTMENT FOR EDUCATION,27/09/2017,ICT,Children's Social Care Group,VODAFONE CORPORATE,1041010854,9,Telecoms facilities and services - mobiles and pagers
Department for Education,DEPARTMENT FOR EDUCATION,27/09/2017,ICT,Children's Social Care Group,VODAFONE CORPORATE,1041010854,10,Telecoms facilities and services - mobiles and pagers
Department for Education,DEPARTMENT FOR EDUCATION,27/09/2017,ICT,Children's Social Care Group,VODAFONE CORPORATE,1041010854,12,Telecoms facilities and services - mobiles and pagers
Department for Education,DEPARTMENT FOR EDUCATION,27/09/2017,ICT,Children's Social Care Group,VODAFONE CORPORATE,1041010854,10,Telecoms facilities and services - mobiles and pagers
Department for Education,DEPARTMENT FOR EDUCATION,27/09/2017,ICT,Children's Social Care Group,VODAFONE CORPORATE,1041010854,10,Telecoms facilities and services - mobiles and pagers
Department for Education,DEPARTMENT FOR EDUCATION,27/09/2017,ICT,Children's Social Care Group,VODAFONE CORPORATE,1041010854,10,Telecoms facilities and services - mobiles and pagers
Department for Education,DEPARTMENT FOR EDUCATION,27/09/2017,ICT,Children's Social Care Group,VODAFONE CORPORATE,1041010854,10,Telecoms facilities and services - mobiles and pagers
Department for Education,DEPARTMENT FOR EDUCATION,27/09/2017,ICT,Children's Social Care Group,VODAFONE CORPORATE,1041010854,10,Telecoms facilities and services - mobiles and pagers
Department for Education,DEPARTMENT FOR EDUCATION,27/09/2017,ICT,Children's Social Care Group,VODAFONE CORPORATE,1041010854,2.5,Telecoms facilities and services - mobiles and pagers
Department for Education,DEPARTMENT FOR EDUCATION,27/09/2017,ICT,Children's Social Care Group,VODAFONE CORPORATE,1041010854,10,Telecoms facilities and services - mobiles and pagers
Department for Education,DEPARTMENT FOR EDUCATION,27/09/2017,ICT,Children's Social Care Group,VODAFONE CORPORATE,1041010854,10,Telecoms facilities and services - mobiles and pagers
Department for Education,DEPARTMENT FOR EDUCATION,27/09/2017,ICT,Children's Social Care Group,VODAFONE CORPORATE,1041010854,10,Telecoms facilities and services - mobiles and pagers
Department for Education,DEPARTMENT FOR EDUCATION,27/09/2017,ICT,Children's Social Care Group,VODAFONE CORPORATE,1041010854,10,Telecoms facilities and services - mobiles and pagers
Department for Education,DEPARTMENT FOR EDUCATION,27/09/2017,ICT,Children's Social Care Group,VODAFONE CORPORATE,1041010854,10,Telecoms facilities and services - mobiles and pagers
Department for Education,DEPARTMENT FOR EDUCATION,27/09/2017,ICT,Children's Social Care Group,VODAFONE CORPORATE,1041010854,10,Telecoms facilities and services - mobiles and pagers
Department for Education,DEPARTMENT FOR EDUCATION,27/09/2017,ICT,Children's Social Care Group,VODAFONE CORPORATE,1041010854,10,Telecoms facilities and services - mobiles and pagers
Department for Education,DEPARTMENT FOR EDUCATION,27/09/2017,ICT,Children's Social Care Group,VODAFONE CORPORATE,1041010854,10,Telecoms facilities and services - mobiles and pagers
Department for Education,DEPARTMENT FOR EDUCATION,27/09/2017,ICT,Children's Social Care Group,VODAFONE CORPORATE,1041010854,10,Telecoms facilities and services - mobiles and pagers
Department for Education,DEPARTMENT FOR EDUCATION,27/09/2017,ICT,Children's Social Care Group,VODAFONE CORPORATE,1041010854,10,Telecoms facilities and services - mobiles and pagers
Department for Education,DEPARTMENT FOR EDUCATION,27/09/2017,ICT,Children's Social Care Group,VODAFONE CORPORATE,1041010854,10,Telecoms facilities and services - mobiles and pagers
Department for Education,DEPARTMENT FOR EDUCATION,27/09/2017,ICT,Children's Social Care Group,VODAFONE CORPORATE,1041010854,10,Telecoms facilities and services - mobiles and pagers
Department for Education,DEPARTMENT FOR EDUCATION,27/09/2017,ICT,Children's Social Care Group,VODAFONE CORPORATE,1041010854,10.43,Telecoms facilities and services - mobiles and pagers
Department for Education,DEPARTMENT FOR EDUCATION,27/09/2017,ICT,Children's Social Care Group,VODAFONE CORPORATE,1041010854,10,Telecoms facilities and services - mobiles and pagers
Department for Education,DEPARTMENT FOR EDUCATION,27/09/2017,ICT,Children's Social Care Group,VODAFONE CORPORATE,1041010854,10,Telecoms facilities and services - mobiles and pagers
Department for Education,DEPARTMENT FOR EDUCATION,27/09/2017,ICT,Children's Social Care Group,VODAFONE CORPORATE,1041010854,10,Telecoms facilities and services - mobiles and pagers
Department for Education,DEPARTMENT FOR EDUCATION,27/09/2017,ICT,Children's Social Care Group,VODAFONE CORPORATE,1041010854,10,Telecoms facilities and services - mobiles and pagers
Department for Education,DEPARTMENT FOR EDUCATION,27/09/2017,ICT,Children's Social Care Group,VODAFONE CORPORATE,1041010854,10,Telecoms facilities and services - mobiles and pagers
Department for Education,DEPARTMENT FOR EDUCATION,27/09/2017,ICT,Children's Social Care Group,VODAFONE CORPORATE,1041010854,10,Telecoms facilities and services - mobiles and pagers
Department for Education,DEPARTMENT FOR EDUCATION,27/09/2017,ICT,Children's Social Care Group,VODAFONE CORPORATE,1041010854,10,Telecoms facilities and services - mobiles and pagers
Department for Education,DEPARTMENT FOR EDUCATION,27/09/2017,ICT,Children's Social Care Group,VODAFONE CORPORATE,1041010854,10,Telecoms facilities and services - mobiles and pagers
Department for Education,DEPARTMENT FOR EDUCATION,27/09/2017,ICT,Children's Social Care Group,VODAFONE CORPORATE,1041010854,10,Telecoms facilities and services - mobiles and pagers
Department for Education,DEPARTMENT FOR EDUCATION,27/09/2017,ICT,Children's Social Care Group,VODAFONE CORPORATE,1041010854,10,Telecoms facilities and services - mobiles and pagers
Department for Education,DEPARTMENT FOR EDUCATION,27/09/2017,ICT,Children's Social Care Group,VODAFONE CORPORATE,1041010854,10,Telecoms facilities and services - mobiles and pagers
Department for Education,DEPARTMENT FOR EDUCATION,27/09/2017,ICT,Children's Social Care Group,VODAFONE CORPORATE,1041010854,10.54,Telecoms facilities and services - mobiles and pagers
Department for Education,DEPARTMENT FOR EDUCATION,27/09/2017,ICT,Children's Social Care Group,VODAFONE CORPORATE,1041010854,10,Telecoms facilities and services - mobiles and pagers
Department for Education,DEPARTMENT FOR EDUCATION,27/09/2017,ICT,Children's Social Care Group,VODAFONE CORPORATE,1041010854,10,Telecoms facilities and services - mobiles and pagers
Department for Education,DEPARTMENT FOR EDUCATION,27/09/2017,ICT,Children's Social Care Group,VODAFONE CORPORATE,1041010854,10,Telecoms facilities and services - mobiles and pagers
Department for Education,DEPARTMENT FOR EDUCATION,27/09/2017,ICT,Children's Social Care Group,VODAFONE CORPORATE,1041010854,10,Telecoms facilities and services - mobiles and pagers
Department for Education,DEPARTMENT FOR EDUCATION,27/09/2017,ICT,Children's Social Care Group,VODAFONE CORPORATE,1041010854,10,Telecoms facilities and services - mobiles and pagers
Department for Education,DEPARTMENT FOR EDUCATION,27/09/2017,ICT,Children's Social Care Group,VODAFONE CORPORATE,1041010854,10,Telecoms facilities and services - mobiles and pagers
Department for Education,DEPARTMENT FOR EDUCATION,27/09/2017,ICT,Children's Social Care Group,VODAFONE CORPORATE,1041010854,10,Telecoms facilities and services - mobiles and pagers
Department for Education,DEPARTMENT FOR EDUCATION,27/09/2017,ICT,Children's Social Care Group,VODAFONE CORPORATE,1041010854,10,Telecoms facilities and services - mobiles and pagers
Department for Education,DEPARTMENT FOR EDUCATION,27/09/2017,ICT,Children's Social Care Group,VODAFONE CORPORATE,1041010854,10,Telecoms facilities and services - mobiles and pagers
Department for Education,DEPARTMENT FOR EDUCATION,27/09/2017,ICT,Children's Social Care Group,VODAFONE CORPORATE,1041010854,10,Telecoms facilities and services - mobiles and pagers
Department for Education,DEPARTMENT FOR EDUCATION,27/09/2017,ICT,Children's Social Care Group,VODAFONE CORPORATE,1041010854,10,Telecoms facilities and services - mobiles and pagers
Department for Education,DEPARTMENT FOR EDUCATION,27/09/2017,ICT,Children's Social Care Group,VODAFONE CORPORATE,1041010854,12,Telecoms facilities and services - mobiles and pagers
Department for Education,DEPARTMENT FOR EDUCATION,27/09/2017,ICT,Children's Social Care Group,VODAFONE CORPORATE,1041010854,10,Telecoms facilities and services - mobiles and pagers
Department for Education,DEPARTMENT FOR EDUCATION,27/09/2017,ICT,Children's Social Care Group,VODAFONE CORPORATE,1041010854,10,Telecoms facilities and services - mobiles and pagers
Department for Education,DEPARTMENT FOR EDUCATION,27/09/2017,ICT,Children's Social Care Group,VODAFONE CORPORATE,1041010854,12,Telecoms facilities and services - mobiles and pagers
Department for Education,DEPARTMENT FOR EDUCATION,27/09/2017,ICT,Children's Social Care Group,VODAFONE CORPORATE,1041010854,10,Telecoms facilities and services - mobiles and pagers
Department for Education,DEPARTMENT FOR EDUCATION,27/09/2017,ICT,Children's Social Care Group,VODAFONE CORPORATE,1041010854,10.12,Telecoms facilities and services - mobiles and pagers
Department for Education,DEPARTMENT FOR EDUCATION,27/09/2017,ICT,Children's Social Care Group,VODAFONE CORPORATE,1041010854,10,Telecoms facilities and services - mobiles and pagers
Department for Education,DEPARTMENT FOR EDUCATION,27/09/2017,ICT,Children's Social Care Group,VODAFONE CORPORATE,1041010854,10,Telecoms facilities and services - mobiles and pagers
Department for Education,DEPARTMENT FOR EDUCATION,27/09/2017,ICT,Children's Social Care Group,VODAFONE CORPORATE,1041010854,10,Telecoms facilities and services - mobiles and pagers
Department for Education,DEPARTMENT FOR EDUCATION,27/09/2017,ICT,Children's Social Care Group,VODAFONE CORPORATE,1041010854,10,Telecoms facilities and services - mobiles and pagers
Department for Education,DEPARTMENT FOR EDUCATION,27/09/2017,ICT,Children's Social Care Group,VODAFONE CORPORATE,1041010854,10,Telecoms facilities and services - mobiles and pagers
Department for Education,DEPARTMENT FOR EDUCATION,27/09/2017,ICT,Children's Social Care Group,VODAFONE CORPORATE,1041010854,10,Telecoms facilities and services - mobiles and pagers
Department for Education,DEPARTMENT FOR EDUCATION,27/09/2017,ICT,Children's Social Care Group,VODAFONE CORPORATE,1041010854,10,Telecoms facilities and services - mobiles and pagers
Department for Education,DEPARTMENT FOR EDUCATION,27/09/2017,ICT,Children's Social Care Group,VODAFONE CORPORATE,1041010854,10,Telecoms facilities and services - mobiles and pagers
Department for Education,DEPARTMENT FOR EDUCATION,27/09/2017,ICT,Children's Social Care Group,VODAFONE CORPORATE,1041010854,12,Telecoms facilities and services - mobiles and pagers
Department for Education,DEPARTMENT FOR EDUCATION,27/09/2017,ICT,Children's Social Care Group,VODAFONE CORPORATE,1041010854,10,Telecoms facilities and services - mobiles and pagers
Department for Education,DEPARTMENT FOR EDUCATION,27/09/2017,ICT,Children's Social Care Group,VODAFONE CORPORATE,1041010854,10,Telecoms facilities and services - mobiles and pagers
Department for Education,DEPARTMENT FOR EDUCATION,27/09/2017,ICT,Children's Social Care Group,VODAFONE CORPORATE,1041010854,10,Telecoms facilities and services - mobiles and pagers
Department for Education,DEPARTMENT FOR EDUCATION,27/09/2017,ICT,Children's Social Care Group,VODAFONE CORPORATE,1041010854,10,Telecoms facilities and services - mobiles and pagers
Department for Education,DEPARTMENT FOR EDUCATION,27/09/2017,ICT,Children's Social Care Group,VODAFONE CORPORATE,1041010854,10,Telecoms facilities and services - mobiles and pagers
Department for Education,DEPARTMENT FOR EDUCATION,27/09/2017,ICT,Children's Social Care Group,VODAFONE CORPORATE,1041010854,10.03,Telecoms facilities and services - mobiles and pagers
Department for Education,DEPARTMENT FOR EDUCATION,27/09/2017,ICT,Children's Social Care Group,VODAFONE CORPORATE,1041010854,10,Telecoms facilities and services - mobiles and pagers
Department for Education,DEPARTMENT FOR EDUCATION,27/09/2017,ICT,Children's Social Care Group,VODAFONE CORPORATE,1041010854,10,Telecoms facilities and services - mobiles and pagers
Department for Education,DEPARTMENT FOR EDUCATION,27/09/2017,ICT,Children's Social Care Group,VODAFONE CORPORATE,1041010854,10,Telecoms facilities and services - mobiles and pagers
Department for Education,DEPARTMENT FOR EDUCATION,27/09/2017,ICT,Children's Social Care Group,VODAFONE CORPORATE,1041010854,10,Telecoms facilities and services - mobiles and pagers
Department for Education,DEPARTMENT FOR EDUCATION,27/09/2017,ICT,Children's Social Care Group,VODAFONE CORPORATE,1041010854,2.5,Telecoms facilities and services - mobiles and pagers
Department for Education,DEPARTMENT FOR EDUCATION,27/09/2017,ICT,Children's Social Care Group,VODAFONE CORPORATE,1041010854,10,Telecoms facilities and services - mobiles and pagers
Department for Education,DEPARTMENT FOR EDUCATION,27/09/2017,ICT,Children's Social Care Group,VODAFONE CORPORATE,1041010854,10,Telecoms facilities and services - mobiles and pagers
Department for Education,DEPARTMENT FOR EDUCATION,27/09/2017,ICT,Children's Social Care Group,VODAFONE CORPORATE,1041010854,10,Telecoms facilities and services - mobiles and pagers
Department for Education,DEPARTMENT FOR EDUCATION,27/09/2017,ICT,Children's Social Care Group,VODAFONE CORPORATE,1041010854,10,Telecoms facilities and services - mobiles and pagers
Department for Education,DEPARTMENT FOR EDUCATION,27/09/2017,ICT,Children's Social Care Group,VODAFONE CORPORATE,1041010854,10,Telecoms facilities and services - mobiles and pagers
Department for Education,DEPARTMENT FOR EDUCATION,27/09/2017,ICT,Children's Social Care Group,VODAFONE CORPORATE,1041010854,10,Telecoms facilities and services - mobiles and pagers
Department for Education,DEPARTMENT FOR EDUCATION,27/09/2017,ICT,Children's Social Care Group,VODAFONE CORPORATE,1041010854,10,Telecoms facilities and services - mobiles and pagers
Department for Education,DEPARTMENT FOR EDUCATION,27/09/2017,ICT,Children's Social Care Group,VODAFONE CORPORATE,1041010854,10,Telecoms facilities and services - mobiles and pagers
Department for Education,DEPARTMENT FOR EDUCATION,27/09/2017,ICT,Children's Social Care Group,VODAFONE CORPORATE,1041010854,10,Telecoms facilities and services - mobiles and pagers
Department for Education,DEPARTMENT FOR EDUCATION,27/09/2017,ICT,Children's Social Care Group,VODAFONE CORPORATE,1041010854,10,Telecoms facilities and services - mobiles and pagers
Department for Education,DEPARTMENT FOR EDUCATION,27/09/2017,ICT,Children's Social Care Group,VODAFONE CORPORATE,1041010854,10,Telecoms facilities and services - mobiles and pagers
Department for Education,DEPARTMENT FOR EDUCATION,27/09/2017,ICT,Children's Social Care Group,VODAFONE CORPORATE,1041010854,10,Telecoms facilities and services - mobiles and pagers
Department for Education,DEPARTMENT FOR EDUCATION,27/09/2017,ICT,Children's Social Care Group,VODAFONE CORPORATE,1041010854,10,Telecoms facilities and services - mobiles and pagers
Department for Education,DEPARTMENT FOR EDUCATION,27/09/2017,ICT,Children's Social Care Group,VODAFONE CORPORATE,1041010854,10,Telecoms facilities and services - mobiles and pagers
Department for Education,DEPARTMENT FOR EDUCATION,27/09/2017,ICT,Children's Social Care Group,VODAFONE CORPORATE,1041010854,10,Telecoms facilities and services - mobiles and pagers
Department for Education,DEPARTMENT FOR EDUCATION,27/09/2017,ICT,Children's Social Care Group,VODAFONE CORPORATE,1041010854,10,Telecoms facilities and services - mobiles and pagers
Department for Education,DEPARTMENT FOR EDUCATION,27/09/2017,ICT,Children's Social Care Group,VODAFONE CORPORATE,1041010854,10,Telecoms facilities and services - mobiles and pagers
Department for Education,DEPARTMENT FOR EDUCATION,27/09/2017,ICT,Children's Social Care Group,VODAFONE CORPORATE,1041010854,10,Telecoms facilities and services - mobiles and pagers
Department for Education,DEPARTMENT FOR EDUCATION,27/09/2017,ICT,Children's Social Care Group,VODAFONE CORPORATE,1041010854,10,Telecoms facilities and services - mobiles and pagers
Department for Education,DEPARTMENT FOR EDUCATION,27/09/2017,ICT,Children's Social Care Group,VODAFONE CORPORATE,1041010854,10.36,Telecoms facilities and services - mobiles and pagers
Department for Education,DEPARTMENT FOR EDUCATION,27/09/2017,ICT,Children's Social Care Group,VODAFONE CORPORATE,1041010854,10,Telecoms facilities and services - mobiles and pagers
Department for Education,DEPARTMENT FOR EDUCATION,27/09/2017,ICT,Children's Social Care Group,VODAFONE CORPORATE,1041010854,10,Telecoms facilities and services - mobiles and pagers
Department for Education,DEPARTMENT FOR EDUCATION,27/09/2017,ICT,Children's Social Care Group,VODAFONE CORPORATE,1041010854,10,Telecoms facilities and services - mobiles and pagers
Department for Education,DEPARTMENT FOR EDUCATION,27/09/2017,ICT,Children's Social Care Group,VODAFONE CORPORATE,1041010854,10,Telecoms facilities and services - mobiles and pagers
Department for Education,DEPARTMENT FOR EDUCATION,27/09/2017,ICT,Children's Social Care Group,VODAFONE CORPORATE,1041010854,10,Telecoms facilities and services - mobiles and pagers
Department for Education,DEPARTMENT FOR EDUCATION,27/09/2017,ICT,Children's Social Care Group,VODAFONE CORPORATE,1041010854,10,Telecoms facilities and services - mobiles and pagers
Department for Education,DEPARTMENT FOR EDUCATION,27/09/2017,ICT,Children's Social Care Group,VODAFONE CORPORATE,1041010854,10,Telecoms facilities and services - mobiles and pagers
Department for Education,DEPARTMENT FOR EDUCATION,27/09/2017,ICT,Children's Social Care Group,VODAFONE CORPORATE,1041010854,10,Telecoms facilities and services - mobiles and pagers
Department for Education,DEPARTMENT FOR EDUCATION,27/09/2017,ICT,Children's Social Care Group,VODAFONE CORPORATE,1041010854,10,Telecoms facilities and services - mobiles and pagers
Department for Education,DEPARTMENT FOR EDUCATION,27/09/2017,ICT,Children's Social Care Group,VODAFONE CORPORATE,1041010854,10,Telecoms facilities and services - mobiles and pagers
Department for Education,DEPARTMENT FOR EDUCATION,27/09/2017,ICT,Children's Social Care Group,VODAFONE CORPORATE,1041010854,10,Telecoms facilities and services - mobiles and pagers
Department for Education,DEPARTMENT FOR EDUCATION,27/09/2017,ICT,Children's Social Care Group,VODAFONE CORPORATE,1041010854,10,Telecoms facilities and services - mobiles and pagers
Department for Education,DEPARTMENT FOR EDUCATION,27/09/2017,ICT,Children's Social Care Group,VODAFONE CORPORATE,1041010854,10,Telecoms facilities and services - mobiles and pagers
Department for Education,DEPARTMENT FOR EDUCATION,27/09/2017,ICT,Children's Social Care Group,VODAFONE CORPORATE,1041010854,12,Telecoms facilities and services - mobiles and pagers
Department for Education,DEPARTMENT FOR EDUCATION,27/09/2017,ICT,Children's Social Care Group,VODAFONE CORPORATE,1041010854,10,Telecoms facilities and services - mobiles and pagers
Department for Education,DEPARTMENT FOR EDUCATION,27/09/2017,ICT,Children's Social Care Group,VODAFONE CORPORATE,1041010854,10,Telecoms facilities and services - mobiles and pagers
Department for Education,DEPARTMENT FOR EDUCATION,27/09/2017,ICT,Children's Social Care Group,VODAFONE CORPORATE,1041010854,10,Telecoms facilities and services - mobiles and pagers
Department for Education,DEPARTMENT FOR EDUCATION,27/09/2017,ICT,Children's Social Care Group,VODAFONE CORPORATE,1041010854,10,Telecoms facilities and services - mobiles and pagers
Department for Education,DEPARTMENT FOR EDUCATION,27/09/2017,ICT,Children's Social Care Group,VODAFONE CORPORATE,1041010854,10,Telecoms facilities and services - mobiles and pagers
Department for Education,DEPARTMENT FOR EDUCATION,27/09/2017,ICT,Children's Social Care Group,VODAFONE CORPORATE,1041010854,10,Telecoms facilities and services - mobiles and pagers
Department for Education,DEPARTMENT FOR EDUCATION,27/09/2017,ICT,Children's Social Care Group,VODAFONE CORPORATE,1041010854,12.5,Telecoms facilities and services - mobiles and pagers
Department for Education,DEPARTMENT FOR EDUCATION,27/09/2017,ICT,Children's Social Care Group,VODAFONE CORPORATE,1041010854,10,Telecoms facilities and services - mobiles and pagers
Department for Education,DEPARTMENT FOR EDUCATION,27/09/2017,ICT,Children's Social Care Group,VODAFONE CORPORATE,1041010854,2.5,Telecoms facilities and services - mobiles and pagers
Department for Education,DEPARTMENT FOR EDUCATION,27/09/2017,ICT,Children's Social Care Group,VODAFONE CORPORATE,1041010854,10,Telecoms facilities and services - mobiles and pagers
Department for Education,DEPARTMENT FOR EDUCATION,27/09/2017,ICT,Children's Social Care Group,VODAFONE CORPORATE,1041010854,10,Telecoms facilities and services - mobiles and pagers
Department for Education,DEPARTMENT FOR EDUCATION,27/09/2017,ICT,Children's Social Care Group,VODAFONE CORPORATE,1041010854,10,Telecoms facilities and services - mobiles and pagers
Department for Education,DEPARTMENT FOR EDUCATION,27/09/2017,ICT,Children's Social Care Group,VODAFONE CORPORATE,1041010854,10,Telecoms facilities and services - mobiles and pagers
Department for Education,DEPARTMENT FOR EDUCATION,27/09/2017,ICT,Children's Social Care Group,VODAFONE CORPORATE,1041010854,10,Telecoms facilities and services - mobiles and pagers
Department for Education,DEPARTMENT FOR EDUCATION,27/09/2017,ICT,Children's Social Care Group,VODAFONE CORPORATE,1041010854,10,Telecoms facilities and services - mobiles and pagers
Department for Education,DEPARTMENT FOR EDUCATION,27/09/2017,ICT,Children's Social Care Group,VODAFONE CORPORATE,1041010854,10,Telecoms facilities and services - mobiles and pagers
Department for Education,DEPARTMENT FOR EDUCATION,27/09/2017,ICT,Children's Social Care Group,VODAFONE CORPORATE,1041010854,10,Telecoms facilities and services - mobiles and pagers
Department for Education,DEPARTMENT FOR EDUCATION,27/09/2017,ICT,Children's Social Care Group,VODAFONE CORPORATE,1041010854,10,Telecoms facilities and services - mobiles and pagers
Department for Education,DEPARTMENT FOR EDUCATION,27/09/2017,ICT,Children's Social Care Group,VODAFONE CORPORATE,1041010854,264.1,Telecoms facilities and services - mobiles and pagers
Department for Education,DEPARTMENT FOR EDUCATION,27/09/2017,ICT,Strategy and Social Mobility and Opportunity Areas Group,VODAFONE CORPORATE,1041010854,8,Telecoms facilities and services - mobiles and pagers
Department for Education,DEPARTMENT FOR EDUCATION,27/09/2017,ICT,Strategy and Social Mobility and Opportunity Areas Group,VODAFONE CORPORATE,1041010854,10,Telecoms facilities and services - mobiles and pagers
Department for Education,DEPARTMENT FOR EDUCATION,27/09/2017,ICT,Strategy and Social Mobility and Opportunity Areas Group,VODAFONE CORPORATE,1041010854,10,Telecoms facilities and services - mobiles and pagers
Department for Education,DEPARTMENT FOR EDUCATION,27/09/2017,ICT,Strategy and Social Mobility and Opportunity Areas Group,VODAFONE CORPORATE,1041010854,10,Telecoms facilities and services - mobiles and pagers
Department for Education,DEPARTMENT FOR EDUCATION,27/09/2017,ICT,Strategy and Social Mobility and Opportunity Areas Group,VODAFONE CORPORATE,1041010854,10,Telecoms facilities and services - mobiles and pagers
Department for Education,DEPARTMENT FOR EDUCATION,27/09/2017,ICT,Strategy and Social Mobility and Opportunity Areas Group,VODAFONE CORPORATE,1041010854,10,Telecoms facilities and services - mobiles and pagers
Department for Education,DEPARTMENT FOR EDUCATION,27/09/2017,ICT,Strategy and Social Mobility and Opportunity Areas Group,VODAFONE CORPORATE,1041010854,10,Telecoms facilities and services - mobiles and pagers
Department for Education,DEPARTMENT FOR EDUCATION,27/09/2017,ICT,Strategy and Social Mobility and Opportunity Areas Group,VODAFONE CORPORATE,1041010854,13.6,Telecoms facilities and services - mobiles and pagers
Department for Education,DEPARTMENT FOR EDUCATION,27/09/2017,ICT,Ministerial and Public Communications Group,VODAFONE CORPORATE,1041010854,10,Telecoms facilities and services - mobiles and pagers
Department for Education,DEPARTMENT FOR EDUCATION,27/09/2017,ICT,Ministerial and Public Communications Group,VODAFONE CORPORATE,1041010854,10,Telecoms facilities and services - mobiles and pagers
Department for Education,DEPARTMENT FOR EDUCATION,27/09/2017,ICT,Ministerial and Public Communications Group,VODAFONE CORPORATE,1041010854,10,Telecoms facilities and services - mobiles and pagers
Department for Education,DEPARTMENT FOR EDUCATION,27/09/2017,ICT,Ministerial and Public Communications Group,VODAFONE CORPORATE,1041010854,10,Telecoms facilities and services - mobiles and pagers
Department for Education,DEPARTMENT FOR EDUCATION,27/09/2017,ICT,Ministerial and Public Communications Group,VODAFONE CORPORATE,1041010854,10,Telecoms facilities and services - mobiles and pagers
Department for Education,DEPARTMENT FOR EDUCATION,27/09/2017,ICT,Ministerial and Public Communications Group,VODAFONE CORPORATE,1041010854,10,Telecoms facilities and services - mobiles and pagers
Department for Education,DEPARTMENT FOR EDUCATION,27/09/2017,ICT,Ministerial and Public Communications Group,VODAFONE CORPORATE,1041010854,10,Telecoms facilities and services - mobiles and pagers
Department for Education,DEPARTMENT FOR EDUCATION,27/09/2017,ICT,Ministerial and Public Communications Group,VODAFONE CORPORATE,1041010854,10,Telecoms facilities and services - mobiles and pagers
Department for Education,DEPARTMENT FOR EDUCATION,27/09/2017,ICT,Ministerial and Public Communications Group,VODAFONE CORPORATE,1041010854,11.09,Telecoms facilities and services - mobiles and pagers
Department for Education,DEPARTMENT FOR EDUCATION,27/09/2017,ICT,Ministerial and Public Communications Group,VODAFONE CORPORATE,1041010854,10,Telecoms facilities and services - mobiles and pagers
Department for Education,DEPARTMENT FOR EDUCATION,27/09/2017,ICT,Ministerial and Public Communications Group,VODAFONE CORPORATE,1041010854,12,Telecoms facilities and services - mobiles and pagers
Department for Education,DEPARTMENT FOR EDUCATION,27/09/2017,ICT,Ministerial and Public Communications Group,VODAFONE CORPORATE,1041010854,10,Telecoms facilities and services - mobiles and pagers
Department for Education,DEPARTMENT FOR EDUCATION,27/09/2017,ICT,Ministerial and Public Communications Group,VODAFONE CORPORATE,1041010854,10,Telecoms facilities and services - mobiles and pagers
Department for Education,DEPARTMENT FOR EDUCATION,27/09/2017,ICT,Ministerial and Public Communications Group,VODAFONE CORPORATE,1041010854,10,Telecoms facilities and services - mobiles and pagers
Department for Education,DEPARTMENT FOR EDUCATION,27/09/2017,ICT,Ministerial and Public Communications Group,VODAFONE CORPORATE,1041010854,10,Telecoms facilities and services - mobiles and pagers
Department for Education,DEPARTMENT FOR EDUCATION,27/09/2017,ICT,Ministerial and Public Communications Group,VODAFONE CORPORATE,1041010854,10,Telecoms facilities and services - mobiles and pagers
Department for Education,DEPARTMENT FOR EDUCATION,27/09/2017,ICT,Ministerial and Public Communications Group,VODAFONE CORPORATE,1041010854,10,Telecoms facilities and services - mobiles and pagers
Department for Education,DEPARTMENT FOR EDUCATION,27/09/2017,ICT,Ministerial and Public Communications Group,VODAFONE CORPORATE,1041010854,2.5,Telecoms facilities and services - mobiles and pagers
Department for Education,DEPARTMENT FOR EDUCATION,27/09/2017,ICT,Ministerial and Public Communications Group,VODAFONE CORPORATE,1041010854,10,Telecoms facilities and services - mobiles and pagers
Department for Education,DEPARTMENT FOR EDUCATION,27/09/2017,ICT,Ministerial and Public Communications Group,VODAFONE CORPORATE,1041010854,10,Telecoms facilities and services - mobiles and pagers
Department for Education,DEPARTMENT FOR EDUCATION,27/09/2017,ICT,Ministerial and Public Communications Group,VODAFONE CORPORATE,1041010854,10,Telecoms facilities and services - mobiles and pagers
Department for Education,DEPARTMENT FOR EDUCATION,27/09/2017,ICT,Ministerial and Public Communications Group,VODAFONE CORPORATE,1041010854,10,Telecoms facilities and services - mobiles and pagers
Department for Education,DEPARTMENT FOR EDUCATION,27/09/2017,ICT,Ministerial and Public Communications Group,VODAFONE CORPORATE,1041010854,2.5,Telecoms facilities and services - mobiles and pagers
Department for Education,DEPARTMENT FOR EDUCATION,27/09/2017,ICT,Ministerial and Public Communications Group,VODAFONE CORPORATE,1041010854,10,Telecoms facilities and services - mobiles and pagers
Department for Education,DEPARTMENT FOR EDUCATION,27/09/2017,ICT,Ministerial and Public Communications Group,VODAFONE CORPORATE,1041010854,10,Telecoms facilities and services - mobiles and pagers
Department for Education,DEPARTMENT FOR EDUCATION,27/09/2017,ICT,Ministerial and Public Communications Group,VODAFONE CORPORATE,1041010854,10,Telecoms facilities and services - mobiles and pagers
Department for Education,DEPARTMENT FOR EDUCATION,27/09/2017,ICT,Ministerial and Public Communications Group,VODAFONE CORPORATE,1041010854,10,Telecoms facilities and services - mobiles and pagers
Department for Education,DEPARTMENT FOR EDUCATION,27/09/2017,ICT,Ministerial and Public Communications Group,VODAFONE CORPORATE,1041010854,10,Telecoms facilities and services - mobiles and pagers
Department for Education,DEPARTMENT FOR EDUCATION,27/09/2017,ICT,Ministerial and Public Communications Group,VODAFONE CORPORATE,1041010854,10,Telecoms facilities and services - mobiles and pagers
Department for Education,DEPARTMENT FOR EDUCATION,27/09/2017,ICT,Ministerial and Public Communications Group,VODAFONE CORPORATE,1041010854,10,Telecoms facilities and services - mobiles and pagers
Department for Education,DEPARTMENT FOR EDUCATION,27/09/2017,ICT,Ministerial and Public Communications Group,VODAFONE CORPORATE,1041010854,10,Telecoms facilities and services - mobiles and pagers
Department for Education,DEPARTMENT FOR EDUCATION,27/09/2017,ICT,Ministerial and Public Communications Group,VODAFONE CORPORATE,1041010854,10,Telecoms facilities and services - mobiles and pagers
Department for Education,DEPARTMENT FOR EDUCATION,27/09/2017,ICT,Ministerial and Public Communications Group,VODAFONE CORPORATE,1041010854,10,Telecoms facilities and services - mobiles and pagers
Department for Education,DEPARTMENT FOR EDUCATION,27/09/2017,ICT,Ministerial and Public Communications Group,VODAFONE CORPORATE,1041010854,10,Telecoms facilities and services - mobiles and pagers
Department for Education,DEPARTMENT FOR EDUCATION,27/09/2017,ICT,Ministerial and Public Communications Group,VODAFONE CORPORATE,1041010854,10,Telecoms facilities and services - mobiles and pagers
Department for Education,DEPARTMENT FOR EDUCATION,27/09/2017,ICT,Ministerial and Public Communications Group,VODAFONE CORPORATE,1041010854,10,Telecoms facilities and services - mobiles and pagers
Department for Education,DEPARTMENT FOR EDUCATION,27/09/2017,ICT,Ministerial and Public Communications Group,VODAFONE CORPORATE,1041010854,10,Telecoms facilities and services - mobiles and pagers
Department for Education,DEPARTMENT FOR EDUCATION,27/09/2017,ICT,Ministerial and Public Communications Group,VODAFONE CORPORATE,1041010854,12,Telecoms facilities and services - mobiles and pagers
Department for Education,DEPARTMENT FOR EDUCATION,27/09/2017,ICT,Ministerial and Public Communications Group,VODAFONE CORPORATE,1041010854,10,Telecoms facilities and services - mobiles and pagers
Department for Education,DEPARTMENT FOR EDUCATION,27/09/2017,ICT,Ministerial and Public Communications Group,VODAFONE CORPORATE,1041010854,10,Telecoms facilities and services - mobiles and pagers
Department for Education,DEPARTMENT FOR EDUCATION,27/09/2017,ICT,Ministerial and Public Communications Group,VODAFONE CORPORATE,1041010854,10,Telecoms facilities and services - mobiles and pagers
Department for Education,DEPARTMENT FOR EDUCATION,27/09/2017,ICT,Ministerial and Public Communications Group,VODAFONE CORPORATE,1041010854,80.02,Telecoms facilities and services - mobiles and pagers
Department for Education,DEPARTMENT FOR EDUCATION,27/09/2017,ICT,Private Office,VODAFONE CORPORATE,1041010854,11.09,Telecoms facilities and services - mobiles and pagers
Department for Education,DEPARTMENT FOR EDUCATION,27/09/2017,ICT,Private Office,VODAFONE CORPORATE,1041010854,10,Telecoms facilities and services - mobiles and pagers
Department for Education,DEPARTMENT FOR EDUCATION,27/09/2017,ICT,Private Office,VODAFONE CORPORATE,1041010854,10,Telecoms facilities and services - mobiles and pagers
Department for Education,DEPARTMENT FOR EDUCATION,27/09/2017,ICT,Private Office,VODAFONE CORPORATE,1041010854,12,Telecoms facilities and services - mobiles and pagers
Department for Education,DEPARTMENT FOR EDUCATION,27/09/2017,ICT,Private Office,VODAFONE CORPORATE,1041010854,12,Telecoms facilities and services - mobiles and pagers
Department for Education,DEPARTMENT FOR EDUCATION,27/09/2017,ICT,Private Office,VODAFONE CORPORATE,1041010854,12,Telecoms facilities and services - mobiles and pagers
Department for Education,DEPARTMENT FOR EDUCATION,27/09/2017,ICT,Private Office,VODAFONE CORPORATE,1041010854,9,Telecoms facilities and services - mobiles and pagers
Department for Education,DEPARTMENT FOR EDUCATION,27/09/2017,ICT,Private Office,VODAFONE CORPORATE,1041010854,9,Telecoms facilities and services - mobiles and pagers
Department for Education,DEPARTMENT FOR EDUCATION,27/09/2017,ICT,Private Office,VODAFONE CORPORATE,1041010854,10,Telecoms facilities and services - mobiles and pagers
Department for Education,DEPARTMENT FOR EDUCATION,27/09/2017,ICT,Private Office,VODAFONE CORPORATE,1041010854,10,Telecoms facilities and services - mobiles and pagers
